Workbook

Sheet _TM_Uvod (hidden)
A1: Left | B1: Top | C1: Right | D1: Bottom | E1: Ref
A2: 1 | B2: 12 | C2: 2 | D2: 12 | E2: $A$12:$B$12

Sheet (Naslovna)
A1: v_2.11/2020
B2: Prilog 9.2.2 | I2: Godišnji financijski plan poslovanja
B3: Ministarstvo prostornoga uređenja, graditeljstva i državne imovine
B8: Godišnji financijski plan poslovanja
C12: ="za "&LEFT(Podloga!B8,4)&". godinu" -> za 2025. godinu
C16: =HYPERLINK("#Uvod!A1","Uvod") -> Uvod
C18: =HYPERLINK("#Podloga!$A$1","Podloga za izradu plana") -> Podloga za izradu plana
C20: =HYPERLINK("#'Tijela društva'!A1","Tijela društva") -> Tijela društva
C22: =HYPERLINK("#'Vl. struktura'!A1","Vlasnička struktura") -> Vlasnička struktura
C24: =HYPERLINK("#Bilanca!A1","Izvještaj o financijskom položaju ") -> Izvještaj o financijskom položaju
C26: =HYPERLINK("#RDG!A1","Račun dobiti i gubitka ") -> Račun dobiti i gubitka
C28: =HYPERLINK("#'NT dir.'!A1","Izvještaj o novčanom toku (direktna metoda)") -> Izvještaj o novčanom toku (direktna metoda)
C30: =HYPERLINK("#'NT indir.'!A1","Izvještaj o novčanom toku (indirektna metoda)") -> Izvještaj o novčanom toku (indirektna metoda)
C32: =HYPERLINK("#MFIN!A1","Podaci za Ministarstvo financija") -> Podaci za Ministarstvo financija
C34: =HYPERLINK("#'Sektorski pokazatelji'!A1","Ključni sektorski pokazatelji ") -> Ključni sektorski pokazatelji

Sheet Naslovna (hidden)
B1: 6
B2: Prilog 9.2.2 | I2: Godišnji financijski plan poslovanja
B3: Ministarstvo državne imovine
B8: Godišnji financijski plan poslovanja
C12: ="za "&LEFT(Podloga!B8,4)&". godinu" -> za 2025. godinu
C16: =HYPERLINK("#Uvod!A1","Uvod") -> Uvod
C18: =HYPERLINK("#Sadržaj!A1","Sadržaj") -> Sadržaj
C20: =HYPERLINK("#Podloga!$A$1","Podloga za izradu plana") -> Podloga za izradu plana
C22: =HYPERLINK("#Bilanca!A1","Izvještaj o financijskom položaju ") -> Izvještaj o financijskom položaju
C24: =HYPERLINK("#RDG!A1","Račun dobiti i gubitka ") -> Račun dobiti i gubitka
C26: =HYPERLINK("#'NT dir.'!A1","Izvještaj o novčanom toku (direktna metoda)") -> Izvještaj o novčanom toku (direktna metoda)
C28: =HYPERLINK("#'NT indir.'!A1","Izvještaj o novčanom toku (indirektna metoda)") -> Izvještaj o novčanom toku (indirektna metoda)
C30: =HYPERLINK("#MFIN!A1","Podaci za Ministarstvo financija") -> Podaci za Ministarstvo financija
C32: =HYPERLINK("#Dashboard!A1","Dashboard") -> Dashboard
C34: =HYPERLINK("#DuPont!A1","DuPont analiza") -> DuPont analiza
C36: =HYPERLINK("#'Altman Integral (Basic)'!A1","Altman Integral (Basic)") -> Altman Integral (Basic)
C38: =HYPERLINK("#'Altman Integral (A)'!A1","Altman Integral (A model)") -> Altman Integral (A model)
C40: =HYPERLINK("#'Altman Integral (B)'!A1","Altman Integral (B model)") -> Altman Integral (B model)
C42: =HYPERLINK("#'Zračne luke'!A1","Ključni sektorski pokazatelji ") -> Ključni sektorski pokazatelji

Sheet Uvod
A1: Prilog: Podloga za izradu godišnjeg financijskog plana poslovanja
A3: Sukladno važećim zakonskim i podzakonskim propisima sve pravne osobe na koje se odnosi Uputa za izradu i dostavu planova i izvještaja o poslovanju, dužne su dostavljati planove poslovanja Primateljima planova i izvještaja kako je definirano Uputom.
A5: Kao što je propisano u Uputi za izradu i dostavu planova i izvještaja o poslovanju, ovaj dokument sadrži propisanu formu većine potrebnih sastavnica plana poslovanja.
A7: Sve pravne osobe na koje se odnosi Uputa za izradu i dostavu planova i izvještaja o poslovanju obvezne su popuniti: Zelene Listove u Excel podlozi: Prvi List “Podloga” → Subjekti izvještavanja trebaju unijeti osnovne informacije o društvu, na primjer: ime društva, adresa, članovi Uprave, temeljni kapital, planirane investicije (kratki opis). Također, Subjekti izvještavanja trebaju odabrati metodu pripreme Izvještaja o novčanom toku (direktna ili indirektna), popuniti informacije o broju izdanih dionica, njihovoj vrijednosti te o prosječnom broju zaposlenika u promatranom razdoblju. Podloge za planske financijske izvještaje (Listovi: “Bilanca”, “RDG”, “NT dir.” ili “NT indir.") → Subjekti izvještavanja trebaju unijeti stvarne podatke. Napomena: Podloge za planske izvještaje pripremljene su u skladu s standardnim formatima za financijsko izvještavanje u Republici Hrvatskoj (kako je utvrđeno Zakonom). Specijalni List za Ministarstvo financija → Subjekti izvještavanja trebaju unijeti specifične podatke koji su traženi od strane Ministarstva financija poput: iznosa državnih subvencija, investicija, iznosa isplaćenih dividendi itd. Specifične sektorske pokazatelje (narančasti Listovi) → navedeni Listovi uključuju operativne, financijske, tržišne i razvojne pokazatelje. Subjekti izvještavanja trebaju popuniti pokazatelje za industriju u kojoj posluju.
A12: Objašnjenje boja Listova:
B14: Listovi s osnovnim informacijama i uputama
B15: Listovi s financijskim izvještajima (potrebno unijeti podatke)
B16: Listovi s osnovnim pokazateljima o poslovanju (pokazatelji su dostupni nakon što su ispunjeni Listovi s podacima iz financijskih izvještaja)
B17: Listovi s specifičnim sektorskim pokazateljima

Sheet Sadržaj (hidden)
A1: Sadržaj
A2: Podloga za izradu plana | B2: =HYPERLINK("#Podloga!A1","Podloga za izradu plana") -> Podloga za izradu plana
A3: Izvještaj o financijskom položaju | B3: =HYPERLINK("#Bilanca!A1","Bilanca") -> Bilanca
A4: Račun dobiti i gubitka | B4: =HYPERLINK("#RDG!A1","RDG") -> RDG
A5: Izvještaj o novčanom toku (direktna metoda) | B5: =HYPERLINK("#'NT dir.'!A1","NT dir.") -> NT dir.
A6: Izvještaj o novčanom toku (indirektna metoda) | B6: =HYPERLINK("#'NT indir.'!A1","NT indir.") -> NT indir.
A7: Podaci za Ministarstvo financija | B7: =HYPERLINK("#MFIN!A1","MFIN") -> MFIN
A8: Dashboard | B8: =HYPERLINK("#Dashboard!A1","Dashboard") -> Dashboard
A9: DuPont | B9: =HYPERLINK("#DuPont!A1","DuPont") -> DuPont
A10: Altman Integral
A11: • Za proizvodna trgovačka društva koja kotiraju na burzi (Basic model) | B11: =HYPERLINK("#'Altman Integral (Basic)'!A1","Altman - Basic") -> Altman - Basic
A12: • Za trgovačka društva koja ne kotiraju na burzi (A model) | B12: =HYPERLINK("#'Altman Integral (A)'!A1","Altman - A") -> Altman - A
A13: • Za neproizvodna trgovačka društva koja kotiraju na burzi (B model) | B13: =HYPERLINK("#'Altman Integral (B)'!A1","Altman - B") -> Altman - B
A14: Sektorski ključni pokazatelji poslovanja

Sheet _TM_Podloga (hidden)
A1: Left | B1: Top | C1: Right | D1: Bottom | E1: Ref
A2: 1 | B2: 19 | C2: 9 | D2: 22 | E2: $A$19:$I$22
A3: 1 | B3: 1 | C3: 9 | D3: 10 | E3: $A$1:$I$10
A4: 1 | B4: 11 | C4: 9 | D4: 17 | E4: $A$11:$I$17

Sheet _TM_Bilanca (hidden)
A1: Left | B1: Top | C1: Right | D1: Bottom | E1: Ref
A2: 3 | B2: 105 | C2: 5 | D2: 105 | E2: $C$105:$E$105

Sheet Podloga
A1: Informacije o trgovačkom društvu
A2: Naziv društva: | B2: Zračna luka Osijek d.o.o.
A3: Adresa društva: | B3: Klisa, Vukovarska 67, Osijek
A4: Temeljni kapital (HRK): | B4: 3.478.000 eura
A5: Plan je konsolidiran: | B5: Ne
A6: Plan je odobren / od nadležnog tijela / datum: | B6: Ne | C6: Skupština društva | E6: =IF(B6="DA", "< Upisati datum", "") -> 
A7: Primjena računovodstvenih standarda: | B7: MSFI
A8: Sastavlja se za godinu: | B8: 2025
A9: Veličina subjekta: | B9: Mali
A10: Osnovna djelatnost društva: | B10: Uslužne djelatnosti u svezi sa zračnim prijevozom.
A11: Pravni oblik: | B11: d.o.o.
A12: OIB: | B12: 48188420009
A13: Da li je društvo u procesu restrukturiranja: | B13: Ne | C13: =IF(B13="DA","Potrebno postupiti prema točki 6.3.1. Upute","") -> 
A14: Primjena Kodeksa korporativnog upravljanja trgovačkim društvima | B14: DA
A15: Compliance officer (funkcija usklađenosti) | B15: DA
A16: Temeljni akt (datum zadnje promjene): | B16: 2017-11-22
A17: Datum zadnje održane skupštine: | B17: 20.06.2024. | C17: =IF((B17>0),"Molimo dostaviti zapisnike.","") -> Molimo dostaviti zapisnike.
A18: Opis strateških i financijskih ciljeva / planiranog poslovanja: | B18: Povećanje broja destinacija, razvoj robnog (cargo) prometa i investicije u aerodromsku infrastrukturu. Planiran je pozitivan financijski rezultat za sve tri godine razdoblja.
A19: Korištena metoda kod Izvještaja o novčanom toku: | B19: Indirektna
A20: Datum ispunjavanja plana: | B20: 2024-12-19
A21: Razrada godišnjeg plana poslovanja trgovačkog društva
A22: Planirane investicije za razdoblje: | B22: 13000000 eur | C22: Financiranje rekonstrukcije putničke zgrade, financiranje studije izvodljivosti, idejnog rješenja i dijela projektno-tehničke dokumentacije za projekt Rekonstrukcije i proširenja Zračne luke Osijek.
A23: Izvor sredstava za investicije (iznos - izvor): | B23: MMPI - kapitalna ulaganja prema Planu nabave zaštitne i sigurnosne opreme i izgradnje infrastrukture
A24: Sudski sporovi sa značajnim utjecajem na poslovni rezultat:
A25: Planirana bespovratna sredstva iz EU (naziv projekta / izvor-fond / iznos u kn):
A26: Planirana državna jamstva: | B26: 2256288 | D26: =IF(B26>0, "Molimo opisati u opisnom dijelu.","") -> Molimo opisati u opisnom dijelu.
A27: Planirane subvencije (iznos / opis): | B27: 1440000 | D27: -
A28: Planirane donacije (iznos / opis): | B28: 0 | D28: -
A30: Tržišni pokazatelji dionica*
B31: =LEFT(B8,4)-2&". ostvareno" -> 2023. ostvareno | C31: =LEFT(B8,4)-1&". procijenjeno" -> 2024. procijenjeno
A32: Broj izdanih dionica: | B32: - | C32: -
A33: Tržišna vrijednost dionice: | B33: - | C33: -
A36: Vremenska razdoblja: | B36: =LEFT(B8,4)-2&". planirano" -> 2023. planirano | C36: =LEFT(B8,4)-2&". ostvareno" -> 2023. ostvareno | D36: =LEFT(B8,4)-1&". planirano" -> 2024. planirano | E36: =LEFT(B8,4)-1&". procijenjeno" -> 2024. procijenjeno | F36: =LEFT(B8,4)&". planirano" -> 2025. planirano
A37: Prosječan broj zaposlenih za izvještajno razdoblje:
A38: Investicije za razdoblje (HRK 000):
A41: * Tržišni pokazatelji dionica ispunjavaju se za zadnji dan u razdoblju

Sheet Tijela društva
B1: Tijela društva
B3: Datum ispunjavanja plana: | G3: =Podloga!B20 -> 2024-12-19
B4: Promjene u Tijelima društva od posljednjeg plana / izvještaja: | G4: DA | I4: =IF(G4="DA","Molimo dostaviti Zapisnike MPGI-u - ako već nisu dostavljeni","") -> Molimo dostaviti Zapisnike MPGI-u - ako već nisu dostavljeni
B6: Uprava
B7: R.Br. | C7: Ime | D7: Prezime | E7: Funkcija | G7: Spol | H7: Početak mandata | I7: Kraj mandata | J7: Kontakt e-mail | K7: Broj telefona | L7: Broj mobitela
B8: 1 | C8: Ivan | D8: Kos | E8: Direktor | G8: M | H8: 2022-10-25 | I8: 2026-10-25 | J8: ivan.kos@osijek-airport.hr | K8: 031 514 405
B9: 2
B10: 3
B11: 4
B12: 5
B14: Nadzorni odbor*
B15: R.Br. | C15: Ime | D15: Prezime | E15: Funkcija | F15: Predstavnik | G15: Spol | H15: Početak mandata | I15: Kraj mandata | J15: Kontakt e-mail | K15: Broj telefona | L15: Broj mobitela
B16: 1 | C16: Krešimir | D16: Trtanj | E16: Član | F16: Grad Osijek | G16: M | H16: 06.07.2022. | I16: 06.07.2026.
B17: 2 | C17: Maja | D17: Alduk | E17: Član | F17: Osječko - baranjska županija | G17: Ž | H17: 21.06.2023. | I17: 21.06.2027.
B18: 3 | C18: Jerko | D18: Glavaš | E18: Predsjednik | F18: RH | G18: M | H18: 13.12.2023. | I18: 13.12.2027.
B19: 4 | C19: Zlatko | D19: Franjić | E19: Predstavnik radnika | F19: predst. radnika | G19: M | H19: 07.08.2024. | I19: 7.8.2028.
B20: 5
B22: Revizijski odbor
B23: R.Br. | C23: Ime | D23: Prezime | E23: Funkcija | G23: Spol | H23: Početak mandata | I23: Kraj mandata | J23: Kontakt e-mail | K23: Broj telefona | L23: Broj mobitela
B24: 1 | C24: Domagoj | D24: Karačić | E24: Predsjednik | G24: M | H24: 2024-06-20 | I24: 20.06.2028. | K24: -
B25: 2 | C25: Milena | D25: Kordi | E25: Član | G25: Ž | H25: 25.08.2020. | I25: 25.08.2024. | J25: milena.kordi@osijek.hr | K25: 031 229 190 | L25: 098 486 379
B26: 3 | C26: Suzana | D26: Tretinjak | E26: Član | G26: Ž | H26: 25.08.2020 | I26: 25.08.2024. | J26: suzana.tretinjak@obz.hr | K26: 031 221 716 | L26: 099 659 8130
B27: 4
B28: 5
B31: Osobe ovlaštene za komunikaciju s Primateljima
B32: R.Br. | C32: Ime | D32: Prezime | E32: Funkcija | J32: Kontakt e-mail | K32: Broj telefona | L32: Broj mobitela
B33: 1 | C33: Ivan | D33: Kos | E33: Direktor | G33: M | H33: 2022-10-25 | I33: 2026-10-25 | J33: ivan.kos@osijek-airport.hr | K33: 031 514 405
B34: 2 | C34: Katarina | D34: Jelečević | E34: Rukovoditelj finncija i računovodstva | G34: Ž | H34: 01.06.2015. | I34: - | J34: katarina.jelecevic@osijek-airport.hr | K34: 031 514 440
B35: 3
B36: 4
B37: 5
B39: * Ako u društvu postoje pomoćna tijela nadzornog odbora (odbori. komisije, povjerenstva i sl.) potrebno ih je obrazložiti u opisnom dijelu (obavezno navesti članove).

Sheet Vl. struktura
A1: Vlasnička struktura na dan: | D1: =IFERROR(Podloga!B20,0) -> 2024-12-19
A3: Promjene u Vlasničkoj strukturi društva od posljednjeg izvještaja / plana:
A5: Društvo s ograničenom odgovornošću
A6: R.Br. | B6: Naziv društva | C6: Poštanski broj sjedišta | D6: Sjedište | E6: OIB društva | F6: Temeljni kapital (kn) | G6: Nominalna vrijednost imatelja RH (kn) | H6: % vlas. RH | I6: Nominalna vrijednost ost. drž. Imatelja (kn) | J6: % vlas. ostalih drž. Imatelja | K6: Teret | L6: Sudski spor
A7: 1. | B7: =IF(ISBLANK(Podloga!B2),"",Podloga!B2) -> Zračna luka Osijek d.o.o. | C7: 31207 | D7: Klisa | E7: 48188420009 | F7: 3478000 | G7: 1912900 | H7: 55 | I7: 1565100 | J7: 45 | K7: nema | L7: nema
A11: Dioničko društvo
A12: R. Br. | B12: Naziv društva | C12: Poštanski broj sjedišta | D12: Sjedište | E12: Oznaka VP | F12: OIB društva | G12: Temeljni kapital (kn) | H12: Izdana količina dionica | I12: Nominalna vrijednost dionice (kn) | J12: broj dionica čiji je imatelj RH | K12: % vlas. RH | L12: broj dionica ost. drž. imatelja | M12: % vlas.ost. drž. Imatelja | N12: Teret | O12: Sudski spor
B13: =IF(ISBLANK(Podloga!B2),"",Podloga!B2) -> Zračna luka Osijek d.o.o.
A18: NAPOMENA
A19: * popunjava se tablica ovisno o pravnom obliku pravne osobe od posebnog interesa

Sheet Bilanca
A1: IZVJEŠTAJ O FINANCIJSKOM POLOŽAJU SA STANJEM NA 31.12. | C1: =IF(C68=C131,Podloga!B36&" bilancira",Podloga!B36&" ne bilancira") -> 2023. planirano ne bilancira | D1: =IF(D68=D131,Podloga!C36&" bilancira",Podloga!C36&" ne bilancira") -> 2023. ostvareno ne bilancira | E1: =IF(E68=E131,Podloga!D36&" bilancira",Podloga!D36&" ne bilancira") -> 2024. planirano ne bilancira | F1: =IF(F68=F131,Podloga!E36&" bilancira",Podloga!E36&" ne bilancira") -> 2024. procijenjeno ne bilancira | G1: =IF(G68=G131,Podloga!F36&" bilancira",Podloga!F36&" ne bilancira") -> 2025. planirano ne bilancira
A2: Obveznik: | B2: =IF(ISBLANK(Podloga!B2),"",Podloga!B2) -> Zračna luka Osijek d.o.o. | C2: I Z N O S (u 000 kn) | H2: ="Indeks "& RIGHT(LEFT(Podloga!C36,7),5) &" / "& RIGHT(LEFT(Podloga!B36,8),6) -> Indeks 23. o / 23. pl | I2: ="Indeks "& RIGHT(LEFT(Podloga!E36,8),6) &" / "& RIGHT(LEFT(Podloga!D36,8),6) -> Indeks 24. pr / 24. pl | J2: ="Indeks "& RIGHT(LEFT(Podloga!E36,8),6) &" / "& RIGHT(LEFT(Podloga!C36,7),5) -> Indeks 24. pr / 23. o | K2: ="Indeks "& RIGHT(LEFT(Podloga!D36,8),6) &" / "& RIGHT(LEFT(Podloga!B36,8),6) -> Indeks 24. pl / 23. pl | L2: ="Indeks "& RIGHT(LEFT(Podloga!F36,8),6) &" / "& RIGHT(LEFT(Podloga!D36,8),6) -> Indeks 25. pl / 24. pl | M2: ="Indeks "& RIGHT(LEFT(Podloga!F36,8),6) &" / "& RIGHT(LEFT(Podloga!E36,8),6) -> Indeks 25. pl / 24. pr
B3: A K T I V A | C3: =Podloga!B36 -> 2023. planirano | D3: =Podloga!C36 -> 2023. ostvareno | E3: =Podloga!D36 -> 2024. planirano | F3: =Podloga!E36 -> 2024. procijenjeno | G3: =Podloga!F36 -> 2025. planirano
A4: 1. | B4: POTRAŽIVANJA ZA UPISANI A NEUPLAĆENI KAPITAL | H4: =IFERROR(D4/C4*100,) -> 0 | I4: =IFERROR(F4/E4*100,) -> 0 | J4: =IFERROR(F4/D4*100,) -> 0 | K4: =IFERROR(E4/C4*100,) -> 0 | L4: =IFERROR(G4/E4*100,) -> 0 | M4: =IFERROR(G4/F4*100,) -> 0
A5: 2. | B5: DUGOTRAJNA IMOVINA | C5: =C6+C13+C23+C34+C39 -> 18497.026 | D5: =D6+D13+D23+D34+D39 -> 13185.73 | E5: =E6+E13+E23+E34+E39 -> 19752.51 | F5: 13933.584 | G5: 26432.344 | H5: =IFERROR(D5/C5*100,) -> 71.28567587 | I5: =IFERROR(F5/E5*100,) -> 70.54082747 | J5: =IFERROR(F5/D5*100,) -> 105.671692 | K5: =IFERROR(E5/C5*100,) -> 106.7874911 | L5: =IFERROR(G5/E5*100,) -> 133.8176465 | M5: 189.7024054
A6: 2.1. | B6: Nematerijalna imovina | C6: =SUM(C7:C12) -> 39.763 | D6: =SUM(D7:D12) -> 213.753 | E6: =SUM(E7:E12) -> 195.3 | F6: 174.685 | G6: 205.789 | H6: 537.567588 | I6: 89.44444444 | J6: 81.72282962 | K6: 491.1601237 | L6: 105.3707117 | M6: 117.8057647
A7: 2.1.1. | B7: Izdaci za razvoj | H7: 0 | I7: 0 | J7: 0 | K7: 0 | L7: 0 | M7: 0
A8: 2.1.2. | B8: Koncesije, patenti, licencencije, robne i uslužne marke, softver i ostala prava | C8: 39.763 | D8: 213.753 | E8: 195.3 | F8: 174.685 | G8: 205.789 | H8: 537.567588 | I8: 89.44444444 | J8: 81.72282962 | K8: 491.1601237 | L8: 105.3707117 | M8: 117.8057647
A9: 2.1.3. | B9: Goodwill | H9: 0 | I9: 0 | J9: 0 | K9: 0 | L9: 0 | M9: 0
A10: 2.1.4. | B10: Predujmovi za nabavu nematerijalne imovine | H10: 0 | I10: 0 | J10: 0 | K10: 0 | L10: 0 | M10: 0
A11: 2.1.5. | B11: Nematerijalna imovina u pripremi | H11: 0 | I11: 0 | J11: 0 | K11: 0 | L11: 0 | M11: 0
A12: 2.1.6. | B12: Ostala nematerijalna imovina | H12: 0 | I12: 0 | J12: 0 | K12: 0 | L12: 0 | M12: 0
A13: 2.2. | B13: Materijalna imovina | C13: =SUM(C14:C22) -> 18448.052 | D13: =SUM(D14:D22) -> 12957.886 | E13: =SUM(E14:E22) -> 19542.2 | F13: =SUM(F14:F22) -> 13744.809 | G13: 26212.465 | H13: 70.23986056 | I13: 70.33399003 | J13: 106.0729273 | K13: 105.9309677 | L13: 134.1326207 | M13: 190.7081066
A14: 2.2.1. | B14: Zemljište | C14: 2033.977 | D14: 2033.856 | E14: 2033.98 | F14: 2033.86 | G14: 2033.68 | H14: =IFERROR(D14/C14*100,) -> 99.99405106 | I14: =IFERROR(F14/E14*100,) -> 99.99410024 | J14: 100.0001967 | K14: =IFERROR(E14/C14*100,) -> 100.0001475 | L14: =IFERROR(G14/E14*100,) -> 99.98525059 | M14: 99.99114983
A15: 2.2.2. | B15: Građevinski objekti | C15: 13560.4778 | D15: 8124.824 | E15: 16073.23 | F15: 8844.232 | G15: 22292.375 | H15: 59.91546994 | I15: 55.02460924 | J15: 108.8544441 | K15: 118.529968 | L15: 138.6925652 | M15: 252.0555205
A16: 2.2.3. | B16: Postrojenja i oprema | C16: 1285.1854 | D16: 671.411 | E16: 721.25 | F16: 681.25 | G16: 721.15 | H16: 52.24234573 | I16: 94.45407279 | J16: 101.4654213 | K16: 56.12030762 | L16: 99.98613518 | M16: 105.8568807
A17: 2.2.4. | B17: Alati, pogonski inventar i transportna imovina | C17: 755.1476 | D17: 419.9 | E17: 465.24 | F17: 459.22 | G17: 498.52 | H17: 55.60502344 | I17: 98.70604419 | J17: 109.3641343 | K17: 61.60914767 | L17: 107.1532972 | M17: 108.5579896
A18: 2.2.5. | B18: Biološka imovina | H18: 0 | I18: 0 | J18: 0 | K18: 0 | L18: 0 | M18: 0
A19: 2.2.6. | B19: Predujmovi za materijalnu imovinu | D19: 905.945 | F19: 905.95 | H19: 0 | I19: 0 | J19: 100.0005519 | K19: 0 | L19: 0 | M19: 0
A20: 2.2.7. | B20: Materijalna imovina u pripremi | C20: 744.8881 | D20: 784.552 | E20: 231.25 | F20: 784.552 | G20: 629.52 | H20: 105.3248132 | I20: 339.2657297 | J20: 100 | K20: 31.04493145 | L20: 272.2248649 | M20: 80.23942326
A21: 2.2.8. | B21: Ostala materijalna imovina | C21: 68.3761 | D21: 17.398 | E21: 17.25 | F21: 35.745 | G21: 37.22 | H21: 25.44456323 | I21: 207.2173913 | J21: 205.45465 | K21: 25.22811333 | L21: 215.7681159 | M21: 104.1264513
A22: 2.2.9. | B22: Ulaganja u nekretnine | H22: 0 | I22: 0 | J22: 0 | K22: 0 | L22: 0 | M22: 0
A23: 2.3. | B23: Dugotrajna financijska imovina | C23: =SUM(C24:C33) -> 9.211 | D23: =SUM(D24:D33) -> 14.091 | E23: =SUM(E24:E33) -> 15.01 | F23: 14.09 | G23: 14.09 | H23: 152.9801325 | I23: 93.87075283 | J23: 99.99290327 | K23: 162.9573336 | L23: 93.87075283 | M23: 100
A24: 2.3.1. | B24: Ulaganja u udjele (dionice) poduzetnika unutar grupe | H24: 0 | I24: 0 | J24: 0 | K24: 0 | L24: 0 | M24: 0
A25: 2.3.2. | B25: Ulaganja u ostale vrijednosne papire poduzetnika unutar grupe | H25: 0 | I25: 0 | J25: 0 | K25: 0 | L25: 0 | M25: 0
A26: 2.3.3. | B26: Dani zajmovi, depoziti i slično poduzetnicima unutar grupe | H26: 0 | I26: 0 | J26: 0 | K26: 0 | L26: 0 | M26: 0
A27: 2.3.4. | B27: Ulaganja u udjele (dionice) društava povezanih sudjelujućim interesom | H27: 0 | I27: 0 | J27: 0 | K27: 0 | L27: 0 | M27: 0
A28: 2.3.5. | B28: Ulaganja u ostale vrijednosne papire društava povezanih sudjelujućim interesom | C28: 9.211 | D28: 9.211 | E28: 15.01 | F28: 9.21 | G28: 9.21 | H28: 100 | I28: 61.35909394 | J28: 99.98914342 | K28: 162.9573336 | L28: 61.35909394 | M28: 100
A29: 2.3.6. | B29: Dani zajmovi, depoziti i slično društvima povezanim sudjelujućim interesom | H29: 0 | I29: 0 | J29: 0 | K29: 0 | L29: 0 | M29: 0
A30: 2.3.7. | B30: Ulaganja u vrijednosne papire | H30: 0 | I30: 0 | J30: 0 | K30: 0 | L30: 0 | M30: 0
A31: 2.3.8. | B31: Dani zajmovi, depoziti i slično | D31: 4.88 | F31: 4.88 | G31: 4.88 | H31: 0 | I31: 0 | J31: 100 | K31: 0 | L31: 0 | M31: 100
A32: 2.3.9. | B32: Ostala ulaganja koja se obračunavaju metodom udjela | H32: 0 | I32: 0 | J32: 0 | K32: 0 | L32: 0 | M32: 0
A33: 2.3.10. | B33: Ostala dugotrajna financijska imovina | H33: 0 | I33: 0 | J33: 0 | K33: 0 | L33: 0 | M33: 0
A34: 2.4. | B34: Potraživanja | C34: =SUM(C35:C38) -> 0 | D34: =SUM(D35:D38) -> 0 | E34: =SUM(E35:E38) -> 0 | F34: 0 | G34: 0 | H34: 0 | I34: 0 | J34: 0 | K34: 0 | L34: 0 | M34: 0
A35: 2.4.1. | B35: Potraživanja od poduzetnika unutar grupe | H35: 0 | I35: 0 | J35: 0 | K35: 0 | L35: 0 | M35: 0
A36: 2.4.2. | B36: Potraživanja od društava povezanih sudjelujućim interesom | H36: 0 | I36: 0 | J36: 0 | K36: 0 | L36: 0 | M36: 0
A37: 2.4.3. | B37: Potraživanja od kupaca | H37: 0 | I37: 0 | J37: 0 | K37: 0 | L37: =IFERROR(G37/E37*100,) -> 0 | M37: =IFERROR(G37/F37*100,) -> 0
A38: 2.4.4. | B38: Ostala potraživanja | H38: 0 | I38: 0 | J38: 0 | K38: 0 | L38: 0 | M38: 0
A39: 2.5. | B39: Odgođena porezna imovina | H39: 0 | I39: 0 | J39: 0 | K39: 0 | L39: 0 | M39: 0
A40: 3. | B40: KRATKOTRAJNA IMOVINA | C40: =C41+C49+C56+C66 -> 932.3456 | D40: =D41+D49+D56+D66 -> 309.541 | E40: =E41+E49+E56+E66 -> 657.328 | F40: 600.079 | G40: 510.067 | H40: 33.20024249 | I40: 91.29064942 | J40: 193.8609102 | K40: 70.50261191 | L40: 77.59702918 | M40: 84.999975
A41: 3.1. | B41: Zalihe | C41: =SUM(C42:C48) -> 35.6436 | D41: =SUM(D42:D48) -> 25.756 | E41: =SUM(E42:E48) -> 36.499 | F41: 41.417 | G41: 49.552 | H41: 72.25981663 | I41: 113.4743418 | J41: 160.8052493 | K41: 102.3998698 | L41: 135.7626236 | M41: 119.641693
A42: 3.1.1. | B42: Sirovine i materijal | C42: 27.813 | D42: 20.129 | E42: 30.789 | F42: 34.527 | G42: 41.231 | H42: 72.3726315 | I42: 112.1406996 | J42: 171.5286403 | K42: 110.7000324 | L42: 133.9147098 | M42: 119.4166884
A43: 3.1.2. | B43: Proizvodnja u tijeku | H43: 0 | I43: 0 | J43: 0 | K43: 0 | L43: 0 | M43: 0
A44: 3.1.3. | B44: Gotovi proizvodi | H44: 0 | I44: 0 | J44: 0 | K44: 0 | L44: 0 | M44: 0
A45: 3.1.4. | B45: Trgovačka roba | C45: 7.8306 | D45: 5.627 | E45: 5.71 | F45: 6.89 | G45: 8.321 | H45: 71.8591168 | I45: 120.6654991 | J45: 122.4453528 | K45: 72.91906112 | L45: 145.7267951 | M45: 120.7692308
A46: 3.1.5. | B46: Predujmovi za zalihe | H46: 0 | I46: 0 | J46: 0 | K46: 0 | L46: 0 | M46: 0
A47: 3.1.6. | B47: Dugotrajna imovina namijenjena prodaji | C47: 0 | H47: 0 | I47: 0 | J47: 0 | K47: 0 | L47: 0 | M47: 0
A48: 3.1.7. | B48: Biološka imovina | H48: 0 | I48: 0 | J48: 0 | K48: 0 | L48: 0 | M48: 0
A49: 3.2. | B49: Potraživanja | C49: 272.905 | D49: =SUM(D50:D54) -> 232.881 | E49: =SUM(E50:E54) -> 268.828 | F49: =SUM(F50:F54) -> 254.74 | G49: =SUM(G50:G54) -> 230.515 | H49: 85.33409062 | I49: 94.75947446 | J49: 109.3863389 | K49: 98.50607354 | L49: 85.74813635 | M49: 90.49030384
A50: 3.2.1. | B50: Potraživanja od poduzetnika unutar grupe | C50: 111.085 | D50: 189.519 | E50: 123.764 | H50: 170.6071927 | I50: 0 | J50: 0 | K50: 111.4137822 | L50: 0 | M50: 0
A51: 3.2.2. | B51: Potraživanja od društava povezanih sudjelujućim interesom | H51: =IFERROR(#REF!/#REF!*100,) -> 0 | I51: =IFERROR(#REF!/#REF!*100,) -> 0 | J51: =IFERROR(#REF!/#REF!*100,) -> 0 | K51: =IFERROR(#REF!/#REF!*100,) -> 0 | L51: =IFERROR(#REF!/#REF!*100,) -> 0 | M51: =IFERROR(#REF!/#REF!*100,) -> 0
A52: 3.2.3. | B52: Potraživanja od kupaca | C52: 96.596 | D52: 37.092 | E52: 103.524 | F52: 218.231 | G52: 175.515 | H52: =IFERROR(D51/C51*100,) -> 0 | I52: =IFERROR(F51/E51*100,) -> 0 | J52: =IFERROR(F51/D51*100,) -> 0 | K52: =IFERROR(E51/C51*100,) -> 0 | L52: =IFERROR(G51/E51*100,) -> 0 | M52: =IFERROR(G51/F51*100,) -> 0
A53: 3.2.4. | B53: Potraživanja od zaposlenika i članova poduzetnika | H53: =IFERROR(D52/C52*100,) -> 38.39910555 | I53: =IFERROR(F52/E52*100,) -> 210.802326 | J53: =IFERROR(F52/D52*100,) -> 588.3505877 | K53: =IFERROR(E52/C52*100,) -> 107.1721396 | L53: =IFERROR(G52/E52*100,) -> 169.5403964 | M53: =IFERROR(G52/F52*100,) -> 80.42624558
A54: 3.2.5. | B54: Potraživanja od države i drugih institucija | C54: 65.23 | D54: 6.27 | E54: 41.54 | F54: 36.509 | G54: 55 | H54: =IFERROR(D53/C53*100,) -> 0 | I54: =IFERROR(F53/E53*100,) -> 0 | J54: =IFERROR(F53/D53*100,) -> 0 | K54: =IFERROR(E53/C53*100,) -> 0 | L54: =IFERROR(G54/E53*100,) -> 0 | M54: =IFERROR(G54/F53*100,) -> 0
A55: 3.2.6. | B55: Ostala potraživanja | H55: =IFERROR(#REF!/#REF!*100,) -> 0 | I55: =IFERROR(#REF!/#REF!*100,) -> 0 | J55: =IFERROR(#REF!/#REF!*100,) -> 0 | K55: =IFERROR(#REF!/#REF!*100,) -> 0 | L55: =IFERROR(#REF!/#REF!*100,) -> 0 | M55: =IFERROR(#REF!/#REF!*100,) -> 0
A56: 3.3. | B56: Kratkotrajna financijska imovina | C56: =SUM(C57:C65) -> 0 | D56: =SUM(D57:D65) -> 0 | E56: =SUM(E57:E65) -> 0 | F56: 0 | G56: 0 | H56: 0 | I56: 0 | J56: 0 | K56: 0 | L56: 0 | M56: 0
A57: 3.3.1. | B57: Ulaganja u udjele (dionice) poduzetnika unutar grupe | H57: 0 | I57: 0 | J57: 0 | K57: 0 | L57: 0 | M57: 0
A58: 3.3.2. | B58: Ulaganja u ostale vrijednosne papire poduzetnika unutar grupe | H58: 0 | I58: 0 | J58: 0 | K58: 0 | L58: 0 | M58: 0
A59: 3.3.3. | B59: Dani zajmovi, depoziti i slično poduzetnicima unutar grupe | H59: 0 | I59: 0 | J59: 0 | K59: 0 | L59: 0 | M59: 0
A60: 3.3.4. | B60: Ulaganja u udjele (dionice) društava povezanih sudjelujućim interesom | H60: 0 | I60: 0 | J60: 0 | K60: 0 | L60: 0 | M60: 0
A61: 3.3.5. | B61: Ulaganja u ostale vrijednosne papire društava povezanih sudjelujućim interesom | H61: 0 | I61: 0 | J61: 0 | K61: 0 | L61: 0 | M61: 0
A62: 3.3.6. | B62: Dani zajmovi, depoziti i slično društvima povezanim sudjelujućim interesom | H62: 0 | I62: 0 | J62: 0 | K62: 0 | L62: 0 | M62: 0
A63: 3.3.7. | B63: Ulaganja u vrijednosne papire | H63: 0 | I63: 0 | J63: 0 | K63: 0 | L63: 0 | M63: 0
A64: 3.3.8. | B64: Dani zajmovi, depoziti i slično | H64: 0 | I64: 0 | J64: 0 | K64: 0 | L64: 0 | M64: 0
A65: 3.3.9. | B65: Ostala financijska imovina | H65: 0 | I65: 0 | J65: 0 | K65: 0 | L65: 0 | M65: 0
A66: 3.4. | B66: Novac u banci i blagajni | C66: 623.797 | D66: 50.904 | E66: 352.001 | F66: 303.922 | G66: 230 | H66: 8.160347036 | I66: 86.34123199 | J66: 597.0493478 | K66: 56.4287741 | L66: 65.34072346 | M66: 75.67731194
A67: 4. | B67: PLAĆENI TROŠKOVI BUDUĆEG RAZDOBLJA I OBRAČUNATI PRIHODI | D67: 104.845 | F67: 122.146 | G67: 106.75 | H67: 0 | I67: 0 | J67: 116.5015022 | K67: 0 | L67: 0 | M67: 87.39541205
A68: 5. | B68: UKUPNA AKTIVA | C68: =C4+C5+C40+C67 -> 19429.3716 | D68: =D4+D5+D40+D67 -> 13600.116 | E68: =E4+E5+E40+E67 -> 20409.838 | F68: 14655.809 | G68: 27049.161 | H68: 69.99771418 | I68: 71.80757143 | J68: 107.7623823 | K68: 105.0463104 | L68: 132.5300132 | M68: 184.5627287
A69: 6. | B69: IZVANBILANČNI ZAPISI | H69: =IFERROR(D69/C69*100,) -> 0 | I69: =IFERROR(F69/E69*100,) -> 0 | J69: =IFERROR(F69/D69*100,) -> 0 | K69: =IFERROR(E69/C69*100,) -> 0 | L69: 0 | M69: 0
C73: I Z N O S (u 000 kn) | H73: ="Indeks "& RIGHT(LEFT(Podloga!C36,7),5) &" / "& RIGHT(LEFT(Podloga!B36,7),5) -> Indeks 23. o / 23. p | I73: ="Indeks "& RIGHT(LEFT(Podloga!E36,8),6) &" / "& RIGHT(LEFT(Podloga!D36,8),6) -> Indeks 24. pr / 24. pl | J73: ="Indeks "& RIGHT(LEFT(Podloga!E36,8),6) &" / "& RIGHT(LEFT(Podloga!C36,7),5) -> Indeks 24. pr / 23. o | K73: ="Indeks "& RIGHT(LEFT(Podloga!D36,8),6) &" / "& RIGHT(LEFT(Podloga!B36,8),6) -> Indeks 24. pl / 23. pl | L73: ="Indeks "& RIGHT(LEFT(Podloga!F36,8),6) &" / "& RIGHT(LEFT(Podloga!D36,8),6) -> Indeks 25. pl / 24. pl | M73: ="Indeks "& RIGHT(LEFT(Podloga!F36,8),6) &" / "& RIGHT(LEFT(Podloga!E36,8),6) -> Indeks 25. pl / 24. pr
B74: P A S I V A | C74: =Podloga!B36 -> 2023. planirano | D74: =Podloga!C36 -> 2023. ostvareno | E74: =Podloga!D36 -> 2024. planirano | F74: =Podloga!E36 -> 2024. procijenjeno | G74: =Podloga!F36 -> 2025. planirano
A75: 1. | B75: KAPITAL I REZERVE | C75: =SUM(C76:C78,C84,C85,C89,C92,C95) -> 1495.613 | D75: =SUM(D76:D78,D84,D85,D89,D92,D95) -> 812.816 | E75: =SUM(E76:E78,E84,E85,E89,E92,E95) -> 909.625 | F75: 831.614 | G75: 871.261 | H75: =IFERROR(D75/C75*100,) -> 54.34667925 | I75: =IFERROR(F75/E75*100,) -> 91.4238285 | J75: =IFERROR(F75/D75*100,) -> 102.3127005 | K75: =IFERROR(E75/C75*100,) -> 60.81954356 | L75: =IFERROR(G75/E75*100,) -> 95.78243782 | M75: =IFERROR(G75/F75*100,) -> 104.7674763
A76: 1.1. | B76: Temeljni (upisani) kapital | C76: 3478.399 | D76: 3478 | E76: 3478.4 | F76: 3478 | G76: 3478 | H76: =IFERROR(D76/C76*100,) -> 99.98852921 | I76: =IFERROR(F76/E76*100,) -> 99.98850046 | J76: =IFERROR(F76/D76*100,) -> 100 | K76: =IFERROR(E76/C76*100,) -> 100.0000287 | L76: =IFERROR(G76/E76*100,) -> 99.98850046 | M76: =IFERROR(G76/F76*100,) -> 100
A77: 1.2. | B77: Kapitalne rezerve | H77: 0 | I77: 0 | J77: 0 | K77: 0 | L77: 0 | M77: 0
A78: 1.3. | B78: Rezerve iz dobiti | C78: =SUM(C79:C83) -> 0 | D78: =SUM(D79:D83) -> 0 | E78: =SUM(E79:E83) -> 0 | F78: 0 | G78: 0 | H78: 0 | I78: 0 | J78: 0 | K78: 0 | L78: 0 | M78: 0
A79: 1.3.1. | B79: Zakonske rezerve | H79: 0 | I79: 0 | J79: 0 | K79: 0 | L79: 0 | M79: 0
A80: 1.3.2. | B80: Rezerve za vlastite dionice | H80: 0 | I80: 0 | J80: 0 | K80: 0 | L80: 0 | M80: 0
A81: 1.3.3. | B81: Vlastite dionice i udjeli (odbitna stavka) | H81: 0 | I81: 0 | J81: 0 | K81: 0 | L81: 0 | M81: 0
A82: 1.3.4. | B82: Statutarne rezerve | H82: 0 | I82: 0 | J82: 0 | K82: 0 | L82: 0 | M82: 0
A83: 1.3.5. | B83: Ostale rezerve | H83: 0 | I83: 0 | J83: 0 | K83: 0 | L83: 0 | M83: 0
A84: 1.4. | B84: Revalorizacijske rezerve | H84: 0 | I84: 0 | J84: 0 | K84: 0 | L84: 0 | M84: 0
A85: 1.5. | B85: Rezerve fer vrijednosti | C85: =SUM(C86:C88) -> 0 | D85: =SUM(D86:D88) -> 0 | E85: =SUM(E86:E88) -> 0 | F85: 0 | G85: 0 | H85: 0 | I85: 0 | J85: 0 | K85: 0 | L85: 0 | M85: 0
A86: 1.5.1. | B86: Fer vrijednost financijske imovine raspoložive za prodaju | H86: 0 | I86: 0 | J86: 0 | K86: 0 | L86: 0 | M86: 0
A87: 1.5.2. | B87: Učinkoviti dio zaštite novčanih tokova | H87: 0 | I87: 0 | J87: 0 | K87: 0 | L87: 0 | M87: 0
A88: 1.5.3. | B88: Učinkoviti dio zaštite neto ulaganja u inozemstvu | H88: 0 | I88: 0 | J88: 0 | K88: 0 | L88: 0 | M88: 0
A89: 1.6. | B89: Zadržana dobit ili preneseni gubitak | C89: =C90-ABS(C91) -> -1988.033 | D89: =D90-ABS(D91) -> -1945.845 | E89: =E90-ABS(E91) -> -2573.795 | F89: =F90-ABS(F91) -> -2665.184 | G89: -2646.386 | H89: 97.87790243 | I89: 103.550749 | J89: 136.9679497 | K89: 129.4644002 | L89: 102.8203878 | M89: 99.29468284
A90: 1.6.1. | B90: Zadržana dobit | H90: 0 | I90: 0 | J90: 0 | K90: 0 | L90: 0 | M90: 0
A91: 1.6.2. | B91: Preneseni gubitak | C91: 1988.033 | D91: 1945.845 | E91: 2573.795 | F91: 2665.184 | G91: 2646.386 | H91: =IFERROR(D91/C91*100,) -> 97.87790243 | I91: =IFERROR(F91/E91*100,) -> 103.550749 | J91: =IFERROR(F91/D91*100,) -> 136.9679497 | K91: =IFERROR(E91/C91*100,) -> 129.4644002 | L91: =IFERROR(G91/E91*100,) -> 102.8203878 | M91: 99.29468284
A92: 1.7. | B92: Dobit ili gubitak poslovne godine | C92: =C93-ABS(C94) -> 5.247 | D92: =D93-ABS(D94) -> -719.339 | E92: 5.02 | F92: 18.798 | G92: 39.647 | H92: -13709.52925 | I92: 374.4621514 | J92: -2.613232426 | K92: 95.67371832 | L92: 789.7808765 | M92: 210.9107352
A93: 1.7.1. | B93: Dobit poslovne godine | C93: 5.247 | E93: 5.02 | F93: 18.798 | G93: 39.647 | H93: 0 | I93: 374.4621514 | J93: 0 | K93: 95.67371832 | L93: 789.7808765 | M93: 210.9107352
A94: 1.7.2. | B94: Gubitak poslovne godine | D94: 719.339 | H94: 0 | I94: 0 | J94: 0 | K94: 0 | L94: 0 | M94: 0
A95: 1.8. | B95: Manjinski (nekontrolirajući) interes | H95: 0 | I95: 0 | J95: 0 | K95: 0 | L95: 0 | M95: 0
A96: 2. | B96: REZERVIRANJA | C96: =SUM(C97:C102) -> 39.44 | D96: =SUM(D97:D102) -> 22.103 | E96: =SUM(E97:E102) -> 0 | F96: 22.103 | G96: 0 | H96: 56.04208925 | I96: 0 | J96: 100 | K96: 0 | L96: 0 | M96: 0
A97: 2.1. | B97: Rezerviranja za mirovine, otpremnine i slične obveze | H97: 0 | I97: 0 | J97: 0 | K97: 0 | L97: 0 | M97: 0
A98: 2.2. | B98: Rezerviranja za porezne obveze | H98: 0 | I98: 0 | J98: 0 | K98: 0 | L98: 0 | M98: 0
A99: 2.3. | B99: Rezerviranja za započete sudske sporove | H99: 0 | I99: 0 | J99: 0 | K99: 0 | L99: 0 | M99: 0
A100: 2.4. | B100: Rezerviranja za troškove obnavljanja prirodnih bogatstava | H100: 0 | I100: 0 | J100: 0 | K100: 0 | L100: 0 | M100: 0
A101: 2.5. | B101: Rezerviranja za troškove u jamstvenim rokovima | H101: 0 | I101: 0 | J101: 0 | K101: 0 | L101: 0 | M101: 0
A102: 2.6. | B102: Druga rezerviranja | C102: 39.44 | D102: 22.103 | E102: 0 | F102: 22.103 | G102: 0 | H102: 56.04208925 | I102: 0 | J102: 100 | K102: 0 | L102: 0 | M102: 0
A103: 3. | B103: DUGOROČNE OBVEZE | C103: =SUM(C104:C114) -> 2964.391 | D103: =SUM(D104:D114) -> 2959.654 | E103: =SUM(E104:E114) -> 2799.417 | F103: 2959.653 | G103: 2743.27 | H103: 99.84020327 | I103: 105.7239061 | J103: 99.99996621 | K103: 94.43480971 | L103: 97.99433239 | M103: 92.68890644
A104: 3.1. | B104: Obveze prema poduzetnicima unutar grupe | H104: 0 | I104: 0 | J104: 0 | K104: 0 | L104: 0 | M104: 0
A105: 3.2. | B105: Obveze za zajmove, depozite i slično poduzetnika unutar grupe | H105: 0 | I105: 0 | J105: 0 | K105: 0 | L105: 0 | M105: 0
A106: 3.3. | B106: Obveze prema društvima povezanim sudjelujućim interesom | H106: 0 | I106: 0 | J106: 0 | K106: 0 | L106: 0 | M106: 0
A107: 3.4. | B107: Obveze za zajmove, depozite i slično društava povezanih sudjelujućim interesom | H107: 0 | I107: 0 | J107: 0 | K107: 0 | L107: 0 | M107: 0
A108: 3.5. | B108: Obveze za zajmove, depozite i slično | H108: 0 | I108: 0 | J108: 0 | K108: 0 | L108: 0 | M108: 0
A109: 3.6. | B109: Obveze prema bankama i drugim financijskim institucijama | C109: 2964.391 | D109: 2936.318 | E109: 2799.417 | F109: 2959.653 | G109: 2743.27 | H109: 99.05299267 | I109: 105.7239061 | J109: 100.7947028 | K109: 94.43480971 | L109: 97.99433239 | M109: 92.68890644
A110: 3.7. | B110: Obveze za predujmove | H110: 0 | I110: 0 | J110: 0 | K110: 0 | L110: 0 | M110: 0
A111: 3.8. | B111: Obveze prema dobavljačima | H111: 0 | I111: 0 | J111: 0 | K111: 0 | L111: 0 | M111: 0
A112: 3.9. | B112: Obveze po vrijednosnim papirima | D112: 23.336 | H112: 0 | I112: 0 | J112: 0 | K112: 0 | L112: 0 | M112: 0
A113: 3.10. | B113: Ostale dugoročne obveze | H113: 0 | I113: 0 | J113: 0 | K113: 0 | L113: 0 | M113: 0
A114: 3.11. | B114: Odgođena porezna obveza | H114: 0 | I114: 0 | J114: 0 | K114: 0 | L114: 0 | M114: 0
A115: 4. | B115: KRATKOROČNE OBVEZE | C115: =SUM(C116:C129) -> 14929.929 | D115: =SUM(D116:D129) -> 417.851 | E115: =SUM(E116:E129) -> 16700.799 | F115: 426.342 | G115: 767.357 | H115: 2.798747402 | I115: 2.55282397 | J115: 102.0320641 | K115: 111.8612084 | L115: 4.594732264 | M115: 179.9862552
A116: 4.1. | B116: Obveze prema poduzetnicima unutar grupe | H116: 0 | I116: 0 | J116: 0 | K116: 0 | L116: 0 | M116: 0
A117: 4.2. | B117: Obveze za zajmove, depozite i slično poduzetnika unutar grupe | H117: 0 | I117: 0 | J117: 0 | K117: 0 | L117: 0 | M117: 0
A118: 4.3. | B118: Obveze prema društvima povezanim sudjelujućim interesom | H118: 0 | I118: 0 | J118: 0 | K118: 0 | L118: 0 | M118: 0
A119: 4.4. | B119: Obveze za zajmove, depozite i slično društava povezanih sudjelujućim interesom | H119: 0 | I119: 0 | J119: 0 | K119: 0 | L119: 0 | M119: 0
A120: 4.5. | B120: Obveze za zajmove, depozite i slično | H120: 0 | I120: 0 | J120: 0 | K120: 0 | L120: 0 | M120: 0
A121: 4.6. | B121: Obveze prema bankama i drugim financijskim institucijama | C121: 93.807 | D121: 38.792 | E121: 15.263 | F121: 42.635 | G121: 214.491 | H121: 41.35299071 | I121: 279.3356483 | J121: 109.9066818 | K121: 16.27064078 | L121: 1405.3004 | M121: 503.0866659
A122: 4.7. | B122: Obveze za predujmove | C122: 1.202 | D122: 8.624 | E122: 1.991 | F122: 19.022 | G122: 18.5 | H122: 717.4708819 | I122: 955.3992968 | J122: 220.5705009 | K122: 165.640599 | L122: 929.1813159 | M122: 97.25580906
A123: 4.8. | B123: Obveze prema dobavljačima | C123: 331.807 | D123: 129.119 | E123: 269.825 | F123: 65.71 | G123: 182.35 | H123: 38.91388669 | I123: 24.35282127 | J123: 50.8910385 | K123: 81.31986366 | L123: 67.58083943 | M123: 277.5072287
A124: 4.9. | B124: Obveze po vrijednosnim papirima | H124: 0 | I124: 0 | J124: 0 | K124: 0 | L124: 0 | M124: 0
A125: 4.10. | B125: Obveze prema zaposlenicima | C125: 79.551 | D125: 52.082 | E125: 81.654 | F125: 85.951 | G125: 115.174 | H125: 65.46995009 | I125: 105.2624489 | J125: 165.0301448 | K125: 102.6435871 | L125: 141.0512651 | M125: 133.9996044
A126: 4.11. | B126: Obveze za poreze, doprinose i slična davanja | C126: 24.076 | D126: 28.2 | E126: 26.213 | F126: 38.464 | G126: 51.542 | H126: 117.1290912 | I126: 146.7363522 | J126: 136.3971631 | K126: 108.8760591 | L126: 196.6276275 | M126: 134.000624
A127: 4.12. | B127: Obveze s osnove udjela u rezultatu | H127: 0 | I127: 0 | J127: 0 | K127: 0 | L127: 0 | M127: 0
A128: 4.13. | B128: Obveze po osnovi dugotrajne imovine namijenjene prodaji | H128: 0 | I128: 0 | J128: 0 | K128: 0 | L128: 0 | M128: 0
A129: 4.14. | B129: Ostale kratkoročne obveze | C129: 14399.486 | D129: 161.034 | E129: 16305.853 | F129: 174.56 | G129: 185.3 | H129: 1.118331585 | I129: 1.070535838 | J129: 108.3994684 | K129: 113.2391323 | L129: 1.136401757 | M129: 106.1526123
A130: 5. | B130: ODGOĐENO PLAĆANJE TROŠKOVA I PRIHOD BUDUĆEG RAZDOBLJA | D130: 9387.697 | F130: 10416.1 | G130: 22667.272 | H130: 0 | I130: 0 | J130: 110.9547954 | K130: 0 | L130: 0 | M130: 217.6176496
A131: 6. | B131: UKUPNA PASIVA | C131: =C75+C96+C103+C115+C130 -> 19429.373 | D131: =D75+D96+D103+D115+D130 -> 13600.121 | E131: =E75+E96+E103+E115+E130 -> 20409.841 | F131: 14655.812 | G131: 27049.16 | H131: 69.99773487 | I131: 71.80757557 | J131: 107.7623648 | K131: 105.0463183 | L131: 132.5299888 | M131: 184.5626841
A132: 7. | B132: IZVANBILANČNI ZAPISI | H132: 0 | I132: 0 | J132: 0 | K132: 0 | L132: 0 | M132: 0
A133: * DODATAK IZVJEŠTAJU O FINANCIJSKOM POLOŽAJU (popunjava trgovačko društvo koje sastavlja konsolidirani godišnji financijski izvještaj)
A134: 8. | B134: KAPITAL I REZERVE | C134: =IF(C135+C136=C75,C75,"Neodgovarajuća raspodjela") -> Neodgovarajuća raspodjela | D134: Neodgovarajuća raspodjela | E134: =IF(E135+E136=E75,E75,"Neodgovarajuća raspodjela") -> Neodgovarajuća raspodjela | F134: =IF(F135+F136=F75,F75,"Neodgovarajuća raspodjela") -> Neodgovarajuća raspodjela | G134: =IF(G135+G136=G75,G75,"Neodgovarajuća raspodjela") -> Neodgovarajuća raspodjela | H134: =IFERROR(D134/C134*100,) -> 0 | I134: =IFERROR(F134/E134*100,) -> 0 | J134: =IFERROR(F134/D134*100,) -> 0 | K134: =IFERROR(E134/C134*100,) -> 0 | L134: =IFERROR(G134/E134*100,) -> 0 | M134: =IFERROR(G134/F134*100,) -> 0
A135: 8.1. | B135: Pripisano imateljima kapitala matice | H135: =IFERROR(D135/C135*100,) -> 0 | I135: =IFERROR(F135/E135*100,) -> 0 | J135: =IFERROR(F135/D135*100,) -> 0 | K135: =IFERROR(E135/C135*100,) -> 0 | L135: =IFERROR(G135/E135*100,) -> 0 | M135: =IFERROR(G135/F135*100,) -> 0
A136: 8.2. | B136: Pripisano manjinskom interesu | H136: 0 | I136: 0 | J136: 0 | K136: 0 | L136: 0 | M136: 0
A138: * | B138: Napomena 1: Dodatak izvještaju o financijskom položaju popunjavaju trgovačka društva koja sastavljaju konsolidirane godišnje financijske izvještaje
B139: Napomena 2: Prilikom razvrstavanja trgovačkih društva, sukladno članku 3. Zakona o računovodstvu, ne uzima se u zbroju aktive iznos gubitka iznad kapitala

Sheet RDG
A1: RAČUN DOBITI I GUBITKA | C1: =IF(C83>0,"Sveobuhvatna dobit razdoblja",IF(C83=0,"Stagnacija u razdoblju","Sveobuhvatni gubitak razdoblja")) -> Sveobuhvatna dobit razdoblja | D1: Sveobuhvatni gubitak razdoblja | E1: Sveobuhvatna dobit razdoblja | F1: Sveobuhvatna dobit razdoblja | G1: Sveobuhvatna dobit razdoblja
A2: Obveznik: | B2: =IF(ISBLANK(Podloga!B2),"",Podloga!B2) -> Zračna luka Osijek d.o.o. | C2: za razdoblje od 1. siječnja do 31. prosinca
C3: I Z N O S (u 000 kn) | H3: ="Indeks "& RIGHT(LEFT(Podloga!C36,7),5) &" / "& RIGHT(LEFT(Podloga!B36,8),6) -> Indeks 23. o / 23. pl | I3: ="Indeks "& RIGHT(LEFT(Podloga!E36,8),6) &" / "& RIGHT(LEFT(Podloga!D36,8),6) -> Indeks 24. pr / 24. pl | J3: ="Indeks "& RIGHT(LEFT(Podloga!E36,8),6) &" / "& RIGHT(LEFT(Podloga!C36,7),5) -> Indeks 24. pr / 23. o | K3: ="Indeks "& RIGHT(LEFT(Podloga!D36,8),6) &" / "& RIGHT(LEFT(Podloga!B36,8),6) -> Indeks 24. pl / 23. pl | L3: ="Indeks "& RIGHT(LEFT(Podloga!F36,8),6) &" / "& RIGHT(LEFT(Podloga!D36,8),6) -> Indeks 25. pl / 24. pl | M3: ="Indeks "& RIGHT(LEFT(Podloga!F36,8),6) &" / "& RIGHT(LEFT(Podloga!E36,8),6) -> Indeks 25. pl / 24. pr
C4: =Podloga!B36 -> 2023. planirano | D4: =Podloga!C36 -> 2023. ostvareno | E4: =Podloga!D36 -> 2024. planirano | F4: =Podloga!E36 -> 2024. procijenjeno | G4: =Podloga!F36 -> 2025. planirano
A5: 1. | B5: POSLOVNI PRIHODI | C5: =SUM(C6:C10) -> 2131.827 | D5: =SUM(D6:D10) -> 2963.898 | E5: =SUM(E6:E10) -> 3445.894 | F5: 3855.891 | G5: 3991.601 | H5: =IFERROR(D5/C5*100,) -> 139.0308876 | I5: =IFERROR(F5/E5*100,) -> 111.8981315 | J5: =IFERROR(F5/D5*100,) -> 130.0952664 | K5: =IFERROR(E5/C5*100,) -> 161.6404145 | L5: =IFERROR(G5/E5*100,) -> 115.8364419 | M5: =IFERROR(G5/F5*100,) -> 103.5195497
A6: 1.1. | B6: Prihodi od prodaje s poduzetnicima unutar grupe | H6: =IFERROR(D6/C6*100,) -> 0 | I6: =IFERROR(F6/E6*100,) -> 0 | J6: =IFERROR(F6/D6*100,) -> 0 | K6: =IFERROR(E6/C6*100,) -> 0 | L6: =IFERROR(G6/E6*100,) -> 0 | M6: =IFERROR(G6/F6*100,) -> 0
A7: 1.2. | B7: Prihodi od prodaje | C7: 693.112 | D7: 1087.06 | E7: 1276.894 | F7: 1636.968 | G7: 1726.43 | H7: 156.8375674 | I7: 128.1992084 | J7: 150.5867201 | K7: 184.2262145 | L7: 135.2054282 | M7: 105.4651038
A8: 1.3. | B8: Prihodi na temelju upotrebe vlastitih proizvoda, robe i usluga | H8: 0 | I8: 0 | J8: 0 | K8: 0 | L8: 0 | M8: 0
A9: 1.4. | B9: Ostali poslovni prihodi s poduzetnicima unutar grupe | H9: 0 | I9: 0 | J9: 0 | K9: 0 | L9: 0 | M9: 0
A10: 1.5. | B10: Ostali poslovni prihodi | C10: 1438.715 | D10: 1876.838 | E10: 2169 | F10: 2218.923 | G10: 2265.171 | H10: 130.4523829 | I10: 102.3016598 | J10: 118.2266663 | K10: 150.7595319 | L10: 104.4338866 | M10: 102.0842544
A11: 2. | B11: POSLOVNI RASHODI | C11: =C12+C13+C17+C21+C22+C23+C26+C33 -> 2065.712 | D11: =D12+D13+D17+D21+D22+D23+D26+D33 -> 3590.895 | E11: =E12+E13+E17+E21+E22+E23+E26+E33 -> 3378.614 | F11: 3774.355 | G11: 3862.156 | H11: 173.8332836 | I11: 111.7131167 | J11: 105.1090327 | K11: 163.5568753 | L11: 114.311845 | M11: 102.3262518
A12: 2.1. | B12: Promjene vrijednosti zaliha proizvodnje u tijeku i gotovih proizvoda | H12: 0 | I12: 0 | J12: 0 | K12: 0 | L12: 0 | M12: 0
A13: 2.2. | B13: Materijalni troškovi | C13: =SUM(C14:C16) -> 736.45 | D13: =SUM(D14:D16) -> 2032.807 | E13: 1423.35 | F13: 1956.83 | G13: 1697.981 | H13: 276.0278362 | I13: 137.4805916 | J13: 96.26245876 | K13: 193.2717768 | L13: 119.2946921 | M13: 86.77202414
A14: 2.2.1. | B14: Troškovi sirovina i materijala | C14: 174.53 | D14: 422.994 | E14: 383.5 | F14: 425.856 | G14: 436.241 | H14: 242.3617716 | I14: 111.0445893 | J14: 100.6766053 | K14: 219.7329972 | L14: 113.7525424 | M14: 102.4386177
A15: 2.2.2. | B15: Troškovi prodane robe | C15: 31.601 | D15: 52.899 | E15: 33.65 | F15: 71.086 | G15: 92.25 | H15: 167.3966014 | I15: 211.2511144 | J15: 134.3806121 | K15: 106.483972 | L15: 274.1456166 | M15: 129.7723884
A16: 2.2.3. | B16: Ostali vanjski troškovi | C16: 530.319 | D16: 1556.914 | E16: 1006.2 | F16: 1459.888 | G16: 1169.49 | H16: 293.5806562 | I16: 145.0892467 | J16: 93.76805655 | K16: 189.7348577 | L16: 116.228384 | M16: 80.10820008
A17: 2.3. | B17: Troškovi osoblja | C17: =SUM(C18:C20) -> 877.529 | D17: =SUM(D18:D20) -> 838.818 | E17: 981.454 | F17: 1125.763 | G17: 1509.675 | H17: 95.58863582 | I17: 114.7035928 | J17: 134.2082549 | K17: 111.8429135 | L17: 153.8202504 | M17: 134.1023821
A18: 2.3.1. | B18: Neto plaće i nadnice | C18: 560.564 | D18: 533.627 | E18: 635.8 | F18: 720.734 | G18: 966.192 | H18: 95.19466109 | I18: 113.3586033 | J18: 135.0632558 | K18: 113.4214826 | L18: 151.9647688 | M18: 134.05667
A19: 2.3.2. | B19: Troškovi poreza i doprinosa iz plaća | C19: 187.568 | D19: 193.377 | E19: 202.154 | F19: 258.541 | G19: 347.225 | H19: 103.0970102 | I19: 127.8930914 | J19: 133.6979062 | K19: 107.7763798 | L19: 171.7626166 | M19: 134.3017162
A20: 2.3.3. | B20: Doprinosi na plaće | C20: 129.397 | D20: 111.814 | E20: 143.5 | F20: 146.488 | G20: 196.258 | H20: 86.41158605 | I20: 102.08223 | J20: 131.010428 | K20: 110.8990162 | L20: 136.7651568 | M20: 133.9754792
A21: 2.4. | B21: Amortizacija | C21: 289.336 | D21: 366.921 | E21: 425 | F21: 370.113 | G21: 372 | H21: 126.814845 | I21: 87.08541176 | J21: 100.869942 | K21: 146.8880471 | L21: 87.52941176 | M21: 100.5098443
A22: 2.5. | B22: Ostali troškovi | C22: 160.818 | D22: 249.909 | E22: 285.39 | F22: 244.12 | G22: 253.5 | H22: 155.3986494 | I22: 85.53908686 | J22: 97.68355681 | K22: 177.4614782 | L22: 88.8258173 | M22: 103.8423726
A23: 2.6. | B23: Vrijednosna usklađenja | C23: =SUM(C24:C25) -> 0 | D23: =SUM(D24:D25) -> 0 | E23: 0 | F23: 0 | G23: 0 | H23: 0 | I23: 0 | J23: 0 | K23: 0 | L23: 0 | M23: 0
A24: 2.6.1. | B24: Dugotrajne imovine (osim financijske imovine) | H24: 0 | I24: 0 | J24: 0 | K24: 0 | L24: 0 | M24: 0
A25: 2.6.2. | B25: Kratkotrajne imovine (osim financijske imovine) | H25: 0 | I25: 0 | J25: 0 | K25: 0 | L25: 0 | M25: 0
A26: 2.7. | B26: Rezerviranja | C26: =SUM(C27:C32) -> 0 | D26: =SUM(D27:D32) -> 65.43 | E26: 0 | F26: 63.854 | G26: 0 | H26: 0 | I26: 0 | J26: 97.59131897 | K26: 0 | L26: 0 | M26: 0
A27: 2.7.1. | B27: Rezerviranja za mirovine, otpremnine i slične obveze | H27: 0 | I27: 0 | J27: 0 | K27: 0 | L27: 0 | M27: 0
A28: 2.7.2. | B28: Rezerviranja za porezne obveze | H28: 0 | I28: 0 | J28: 0 | K28: 0 | L28: 0 | M28: 0
A29: 2.7.3. | B29: Rezerviranja za započete sudske sporove | C29: 0 | E29: 0 | H29: 0 | I29: 0 | J29: 0 | K29: 0 | L29: 0 | M29: 0
A30: 2.7.4. | B30: Rezerviranja za troškove obnavljanja prirodnih bogatstava | H30: 0 | I30: 0 | J30: 0 | K30: 0 | L30: 0 | M30: 0
A31: 2.7.5. | B31: Rezerviranja za troškove u jamstvenim rokovima | H31: 0 | I31: 0 | J31: 0 | K31: 0 | L31: 0 | M31: 0
A32: 2.7.6. | B32: Druga rezerviranja | D32: 65.43 | F32: 63.854 | H32: 0 | I32: 0 | J32: 97.59131897 | K32: 0 | L32: 0 | M32: 0
A33: 2.8. | B33: Ostali poslovni rashodi | C33: 1.579 | D33: 37.01 | E33: 263.42 | F33: 13.675 | G33: 29 | H33: 2343.888537 | I33: 5.191329436 | J33: 36.94947312 | K33: 16682.71058 | L33: 11.009035 | M33: 212.0658135
A34: 3. | B34: FINANCIJSKI PRIHODI | C34: =SUM(C35:C44) -> 0.449 | D34: =SUM(D35:D44) -> 0.03557 | E34: =SUM(E35:E44) -> 0.54 | F34: 0.062 | G34: 0.6 | H34: 7.922048998 | I34: 11.48148148 | J34: 174.3041889 | K34: 120.2672606 | L34: 111.1111111 | M34: 967.7419355
A35: 3.1. | B35: Prihodi od ulaganja u udjele (dionice) poduzetnika unutar grupe | H35: 0 | I35: 0 | J35: 0 | K35: 0 | L35: 0 | M35: 0
A36: 3.2. | B36: Prihodi od ulaganja u udjele (dionice) društava povezanih sudjelujućim interesom | H36: 0 | I36: 0 | J36: 0 | K36: 0 | L36: 0 | M36: 0
A37: 3.3. | B37: Prihodi od ostalih dugotrajnih financijskih ulaganja i zajmova poduzetnicima unutar grupe | H37: 0 | I37: 0 | J37: 0 | K37: 0 | L37: 0 | M37: 0
A38: 3.4. | B38: Ostali prihodi s osnove kamata iz odnosa s poduzetnicima unutar grupe | H38: 0 | I38: 0 | J38: 0 | K38: 0 | L38: 0 | M38: 0
A39: 3.5. | B39: Tečajne razlike i ostali financijski prihodi iz odnosa s poduzetnicima unutar grupe | H39: 0 | I39: 0 | J39: 0 | K39: 0 | L39: 0 | M39: 0
A40: 3.6. | B40: Prihodi od ostalih dugotrajnih financijskih ulaganja i zajmova | H40: 0 | I40: 0 | J40: 0 | K40: 0 | L40: 0 | M40: 0
A41: 3.7. | B41: Ostali prihodi s osnove kamata | C41: 0.444 | D41: 0.028 | E41: 0.52 | F41: 0.062 | G41: 0.6 | H41: 6.306306306 | I41: 11.92307692 | J41: 221.4285714 | K41: 117.1171171 | L41: 115.3846154 | M41: 967.7419355
A42: 3.8. | B42: Tečajne razlike i ostali financijski prihodi | C42: 0.005 | D42: 0.00757 | E42: 0.02 | F42: 0 | G42: 0 | H42: 151.4 | I42: 0 | J42: 0 | K42: 400 | L42: 0 | M42: 0
A43: 3.9. | B43: Nerealizirani dobici (prihodi) od financijske imovine | H43: 0 | I43: 0 | J43: 0 | K43: 0 | L43: 0 | M43: 0
A44: 3.10. | B44: Ostali financijski prihodi | H44: 0 | I44: 0 | J44: 0 | K44: 0 | L44: 0 | M44: 0
A45: 4. | B45: FINANCIJSKI RASHODI | C45: =SUM(C46:C52) -> 61.318 | D45: =SUM(D46:D52) -> 92.377 | E45: =SUM(E46:E52) -> 62.8 | F45: 62.8 | G45: 90.398 | H45: 150.652337 | I45: 100 | J45: 67.98228996 | K45: 102.4169086 | L45: 143.9458599 | M45: 143.9458599
A46: 4.1. | B46: Rashodi s osnove kamata i slični rashodi s poduzetnicima unutar grupe | H46: 0 | I46: 0 | J46: 0 | K46: 0 | L46: 0 | M46: 0
A47: 4.2. | B47: Tečajne razlike i drugi rashodi s poduzetnicima unutar grupe | H47: 0 | I47: 0 | J47: 0 | K47: 0 | L47: 0 | M47: 0
A48: 4.3. | B48: Rashodi s osnove kamata i slični rashodi | C48: 54.483 | D48: 92.11 | E48: 55.85 | F48: 62.447 | G48: 89.744 | H48: 169.0619092 | I48: 111.8119964 | J48: 67.79611334 | K48: 102.5090395 | L48: 160.687556 | M48: 143.712268
A49: 4.4. | B49: Tečajne razlike i drugi rashodi | C49: 6.835 | D49: 0.267 | E49: 6.95 | F49: 0.353 | G49: 0.654 | H49: 3.906364301 | I49: =IFERROR(F49/E49*100,) -> 5.079136691 | J49: 132.2097378 | K49: =IFERROR(E49/C49*100,) -> 101.6825165 | L49: =IFERROR(G49/E49*100,) -> 9.410071942 | M49: 185.2691218
A50: 4.5. | B50: Nerealizirani gubici (rashodi) od financijske imovine | H50: 0 | I50: =IFERROR(F50/E50*100,) -> 0 | J50: 0 | K50: =IFERROR(E50/C50*100,) -> 0 | L50: =IFERROR(G50/E50*100,) -> 0 | M50: 0
A51: 4.6. | B51: Vrijednosna usklađenja financijske imovine (neto) | H51: 0 | I51: 0 | J51: 0 | K51: 0 | L51: 0 | M51: 0
A52: 4.7. | B52: Ostali financijski rashodi | H52: 0 | I52: 0 | J52: 0 | K52: 0 | L52: 0 | M52: 0
A53: 5. | B53: UDIO U DOBITI OD DRUŠTAVA POVEZANIH SUDJELUJUĆIM INTERESOM | H53: 0 | I53: 0 | J53: 0 | K53: 0 | L53: 0 | M53: 0
A54: 6. | B54: UDIO U DOBITI OD ZAJEDNIČKIH POTHVATA | H54: 0 | I54: 0 | J54: 0 | K54: 0 | L54: 0 | M54: 0
A55: 7. | B55: UDIO U GUBITKU OD DRUŠTAVA POVEZANIH SUDJELUJUĆIM INTERESOM | H55: 0 | I55: 0 | J55: 0 | K55: 0 | L55: 0 | M55: 0
A56: 8. | B56: UDIO U GUBITKU OD ZAJEDNIČKIH POTHVATA | H56: 0 | I56: 0 | J56: 0 | K56: 0 | L56: 0 | M56: 0
A57: 9. | B57: UKUPNI PRIHODI | C57: =C5+C34+C53+C54 -> 2132.276 | D57: 2963.93357 | E57: =E5+E34+E53+E54 -> 3446.434 | F57: 3855.953 | G57: 3992.201 | H57: 139.0032796 | I57: 111.8823979 | J57: 130.095797 | K57: 161.6317025 | L57: 115.8357015 | M57: 103.5334456
A58: 10. | B58: UKUPNI RASHODI | C58: =C11+C45+C55+C56 -> 2127.03 | D58: 3683.272 | E58: =E11+E45+E55+E56 -> 3441.414 | F58: 3837.155 | G58: 3952.554 | H58: 173.1650235 | I58: 111.4993721 | J58: 104.1778886 | K58: 161.7943329 | L58: 114.8526158 | M58: 103.0074104
A59: 11. | B59: DOBIT ILI GUBITAK PRIJE OPOREZIVANJA | C59: =C57-C58 -> 5.246 | D59: =D57-D58 -> -719.33843 | E59: =E57-E58 -> 5.02 | F59: 18.798 | G59: 39.647 | H59: -13712.13172 | I59: 374.4621514 | J59: -2.613234497 | K59: 95.69195578 | L59: 789.7808765 | M59: =IFERROR(G59/F59*100,) -> 210.9107352
A60: 11.1. | B60: Dobit prije oporezivanja | C60: =IF(C59>0,C59,) -> 5.246 | D60: 0 | E60: 5.02 | F60: 18.798 | G60: 39.647 | H60: 0 | I60: 374.4621514 | J60: 0 | K60: 95.69195578 | L60: 789.7808765 | M60: 210.9107352
A61: 11.2. | B61: Gubitak prije oporezivanja | C61: =IF(C59<0,C59,) -> 0 | D61: -719.33843 | E61: 0 | F61: 0 | G61: 0 | H61: 0 | I61: 0 | J61: 0 | K61: 0 | L61: 0 | M61: 0
A62: 12. | B62: POREZ NA DOBIT | H62: 0 | I62: 0 | J62: 0 | K62: 0 | L62: 0 | M62: 0
A63: 13. | B63: DOBIT ILI GUBITAK RAZDOBLJA | C63: =C59-C62 -> 5.246 | D63: =D59-D62 -> -719.33843 | E63: =E59-E62 -> 5.02 | F63: 18.798 | G63: 39.647 | H63: -13712.13172 | I63: 374.4621514 | J63: -2.613234497 | K63: =IFERROR(E63/C63*100,) -> 95.69195578 | L63: 789.7808765 | M63: 210.9107352
A64: 13.1. | B64: Dobit razdoblja | C64: =IF(C63>0,C63,) -> 5.246 | D64: 0 | E64: 5.02 | F64: 18.798 | G64: 39.647 | H64: 0 | I64: 374.4621514 | J64: 0 | K64: 95.69195578 | L64: 789.7808765 | M64: 210.9107352
A65: 13.2. | B65: Gubitak razdoblja | C65: =IF(C63<0,C63,) -> 0 | D65: -719.33843 | E65: 0 | F65: 0 | G65: 0 | H65: 0 | I65: 0 | J65: 0 | K65: 0 | L65: 0 | M65: 0
A66: * DODATAK RDG -u (popunjava trgovačko društvo koje sastavlja konsolidirani godišnji financijski izvještaj)
A67: 14. | B67: DOBIT ILI GUBITAK RAZDOBLJA | C67: =IF((C68+C69)=C63,C63,"Neodgovarajuća raspodjela") -> Neodgovarajuća raspodjela | D67: =IF((D68+D69)=D63,D63,"Neodgovarajuća raspodjela") -> Neodgovarajuća raspodjela | E67: =IF((E68+E69)=E63,E63,"Neodgovarajuća raspodjela") -> Neodgovarajuća raspodjela | F67: =IF((F68+F69)=F63,F63,"Neodgovarajuća raspodjela") -> Neodgovarajuća raspodjela | G67: =IF((G68+G69)=G63,G63,"Neodgovarajuća raspodjela") -> Neodgovarajuća raspodjela | H67: =IFERROR(D67/C67*100,) -> 0 | I67: =IFERROR(F67/E67*100,) -> 0 | J67: =IFERROR(F67/D67*100,) -> 0 | K67: =IFERROR(E67/C67*100,) -> 0 | L67: =IFERROR(G67/E67*100,) -> 0 | M67: =IFERROR(G67/F67*100,) -> 0
A68: 14.1. | B68: Pripisana imateljima kapitala matice | H68: 0 | I68: 0 | J68: 0 | K68: 0 | L68: 0 | M68: 0
A69: 14.2. | B69: Pripisana manjinskom (nekontrolirajućem) interesu | H69: 0 | I69: 0 | J69: 0 | K69: 0 | L69: 0 | M69: 0
A70: IZVJEŠTAJ O OSTALOJ SVEOBUHVATNOJ DOBITI (popunjava trgovačko društvo obveznik primjene MSFI-a)
A71: 1. | B71: DOBIT ILI GUBITAK RAZDOBLJA | C71: =C63 -> 5.246 | D71: -719.33843 | E71: =E63 -> 5.02 | F71: =F63 -> 18.798 | G71: =G63 -> 39.647 | H71: =IFERROR(D71/C71*100,) -> -13712.13172 | I71: =IFERROR(F71/E71*100,) -> 374.4621514 | J71: =IFERROR(F71/D71*100,) -> -2.613234497 | K71: =IFERROR(E71/C71*100,) -> 95.69195578 | L71: =IFERROR(G71/E71*100,) -> 789.7808765 | M71: =IFERROR(G71/F71*100,) -> 210.9107352
A72: 2. | B72: OSTALA SVEOBUHVATNA DOBIT/GUBITAK PRIJE POREZA | C72: =SUM(C73:C80) -> 0 | D72: =SUM(D73:D80) -> 0 | E72: =SUM(E73:E80) -> 0 | F72: =SUM(F73:F80) -> 0 | G72: =SUM(G73:G80) -> 0 | H72: 0 | I72: 0 | J72: 0 | K72: 0 | L72: 0 | M72: 0
A73: 2.1. | B73: Tečajne razlike iz preračuna inozemnog poslovanja | H73: 0 | I73: 0 | J73: 0 | K73: 0 | L73: 0 | M73: 0
A74: 2.2. | B74: Promjene revalorizacijskih rezervi dugotrajne materijalne i nematerijalne imovine | H74: 0 | I74: 0 | J74: 0 | K74: 0 | L74: 0 | M74: 0
A75: 2.3. | B75: Dobit ili gubitak s osnove naknadnog vrednovanja financijske imovine raspoložive za prodaju | H75: 0 | I75: 0 | J75: 0 | K75: 0 | L75: 0 | M75: 0
A76: 2.4. | B76: Dobit ili gubitak s osnove učinkovite zaštite novčanih tokova | H76: 0 | I76: 0 | J76: 0 | K76: 0 | L76: 0 | M76: 0
A77: 2.5. | B77: Dobit ili gubitak s osnove učinkovite zaštite neto ulaganja u inozemstvu | H77: 0 | I77: 0 | J77: 0 | K77: 0 | L77: 0 | M77: 0
A78: 2.6. | B78: Udio u ostaloj sveobuhvatnoj dobiti/gubitku društava povezanih sudjelujućim interesom | H78: 0 | I78: 0 | J78: 0 | K78: 0 | L78: 0 | M78: 0
A79: 2.7. | B79: Aktuarski dobici/gubici po planovima definiranih primanja | H79: 0 | I79: 0 | J79: 0 | K79: 0 | L79: 0 | M79: 0
A80: 2.8. | B80: Ostale nevlasničke promjene kapitala | H80: 0 | I80: 0 | J80: 0 | K80: 0 | L80: 0 | M80: 0
A81: 3. | B81: POREZ NA OSTALU SVEOBUHVATNU DOBIT RAZDOBLJA | H81: 0 | I81: 0 | J81: 0 | K81: 0 | L81: 0 | M81: 0
A82: 4. | B82: NETO OSTALA SVEOBUHVATNA DOBIT ILI GUBITAK | C82: =C72-C81 -> 0 | D82: =D72-D81 -> 0 | E82: =E72-E81 -> 0 | F82: =F72-F81 -> 0 | G82: =G72-G81 -> 0 | H82: 0 | I82: 0 | J82: 0 | K82: 0 | L82: 0 | M82: 0
A83: 5. | B83: SVEOBUHVATNA DOBIT ILI GUBITAK RAZDOBLJA | C83: =C71+C82 -> 5.246 | D83: =D71+D82 -> -719.33843 | E83: =E71+E82 -> 5.02 | F83: =F71+F82 -> 18.798 | G83: =G71+G82 -> 39.647 | H83: -13712.13172 | I83: 374.4621514 | J83: -2.613234497 | K83: 95.69195578 | L83: 789.7808765 | M83: 210.9107352
A84: * DODATAK IZVJEŠTAJU O OSTALOJ SVEOBUHVATNOJ DOBITI (popunjava trgovačko društvo koje sastavlja konsolidirani godišnji financijski izvještaj)
A85: 6. | B85: SVEOBUHVATNA DOBIT ILI GUBITAK RAZDOBLJA | C85: =IF((C86+C87)=C83,C83,"Neodgovarajuća raspodjela") -> Neodgovarajuća raspodjela | D85: Neodgovarajuća raspodjela | E85: =IF((E86+E87)=E83,E83,"Neodgovarajuća raspodjela") -> Neodgovarajuća raspodjela | F85: =IF((F86+F87)=F83,F83,"Neodgovarajuća raspodjela") -> Neodgovarajuća raspodjela | G85: =IF((G86+G87)=G83,G83,"Neodgovarajuća raspodjela") -> Neodgovarajuća raspodjela | H85: =IFERROR(D85/C85*100,) -> 0 | I85: =IFERROR(F85/E85*100,) -> 0 | J85: =IFERROR(F85/D85*100,) -> 0 | K85: =IFERROR(E85/C85*100,) -> 0 | L85: =IFERROR(G85/E85*100,) -> 0 | M85: =IFERROR(G85/F85*100,) -> 0
A86: 6.1. | B86: Pripisana imateljima kapitala matice | H86: 0 | I86: 0 | J86: 0 | K86: 0 | L86: 0 | M86: 0
A87: 6.2. | B87: Pripisana manjinskom interesu | H87: 0 | I87: 0 | J87: 0 | K87: 0 | L87: 0 | M87: 0

Sheet _TM_Ključni poslovni pokazatelj (hidden)
A1: Left | B1: Top | C1: Right | D1: Bottom | E1: Ref
A2: 1 | B2: 1 | C2: 3 | D2: 14 | E2: $A$1:$C$14

Sheet NT dir.
A1: IZVJEŠTAJ O NOVČANOM TOKU - DIREKTNA METODA
A2: Obveznik: | B2: =IF(ISBLANK(Podloga!B2),"",Podloga!B2) -> Zračna luka Osijek d.o.o. | C2: =IF(C50>C49,"Povećanje novca i novčanih ekvivalenata u razdoblju",IF(C50=C49,"Stagnacija novca i novčanih ekvivalenata u razdoblju","Smanjenje novca i novčanih ekvivalenata u razdoblju")) -> Stagnacija novca i novčanih ekvivalenata u razdoblju | D2: Stagnacija novca i novčanih ekvivalenata u razdoblju | E2: Stagnacija novca i novčanih ekvivalenata u razdoblju | F2: Stagnacija novca i novčanih ekvivalenata u razdoblju | G2: Stagnacija novca i novčanih ekvivalenata u razdoblju
C3: Za razdoblje od 1. siječnja do 31. prosinca
C4: I Z N O S (u 000 kn) | H4: ="Indeks "& RIGHT(LEFT(Podloga!C36,7),5) &" / "& RIGHT(LEFT(Podloga!B36,8),6) -> Indeks 23. o / 23. pl | I4: ="Indeks "& RIGHT(LEFT(Podloga!E36,8),6) &" / "& RIGHT(LEFT(Podloga!D36,8),6) -> Indeks 24. pr / 24. pl | J4: ="Indeks "& RIGHT(LEFT(Podloga!E36,8),6) &" / "& RIGHT(LEFT(Podloga!C36,7),5) -> Indeks 24. pr / 23. o | K4: ="Indeks "& RIGHT(LEFT(Podloga!D36,8),6) &" / "& RIGHT(LEFT(Podloga!B36,8),6) -> Indeks 24. pl / 23. pl | L4: ="Indeks "& RIGHT(LEFT(Podloga!F36,8),6) &" / "& RIGHT(LEFT(Podloga!D36,8),6) -> Indeks 25. pl / 24. pl | M4: ="Indeks "& RIGHT(LEFT(Podloga!F36,8),6) &" / "& RIGHT(LEFT(Podloga!E36,8),6) -> Indeks 25. pl / 24. pr
C5: =Podloga!B36 -> 2023. planirano | D5: =Podloga!C36 -> 2023. ostvareno | E5: =Podloga!D36 -> 2024. planirano | F5: =Podloga!E36 -> 2024. procijenjeno | G5: =Podloga!F36 -> 2025. planirano
A6: NOVČANI TOKOVI OD POSLOVNIH AKTIVNOSTI
A7: 1. | B7: Novčani primici od kupaca | H7: =IFERROR(D7/C7*100,) -> 0 | I7: =IFERROR(F7/E7*100,) -> 0 | J7: =IFERROR(F7/D7*100,) -> 0 | K7: =IFERROR(E7/C7*100,) -> 0 | L7: =IFERROR(G7/E7*100,) -> 0 | M7: =IFERROR(G7/F7*100,) -> 0
A8: 2. | B8: Novčani primici od tantijema, naknada, provizija i slično | H8: =IFERROR(D8/C8*100,) -> 0 | I8: =IFERROR(F8/E8*100,) -> 0 | J8: =IFERROR(F8/D8*100,) -> 0 | K8: =IFERROR(E8/C8*100,) -> 0 | L8: =IFERROR(G8/E8*100,) -> 0 | M8: =IFERROR(G8/F8*100,) -> 0
A9: 3. | B9: Novčani primici od osiguranja za naknadu šteta | H9: 0 | I9: 0 | J9: 0 | K9: 0 | L9: 0 | M9: 0
A10: 4. | B10: Novčani primici s osnove povrata poreza | H10: 0 | I10: 0 | J10: 0 | K10: 0 | L10: 0 | M10: 0
A11: 5 | B11: Novčani izdaci dobavljačima | H11: 0 | I11: 0 | J11: 0 | K11: 0 | L11: 0 | M11: 0
A12: 6 | B12: Novčani izdaci za zaposlene | H12: 0 | I12: 0 | J12: 0 | K12: 0 | L12: 0 | M12: 0
A13: 7 | B13: Novčani izdaci za osiguranje za naknadu štete | H13: 0 | I13: 0 | J13: 0 | K13: 0 | L13: 0 | M13: 0
A14: 8 | B14: Ostali novčani primici i izdaci | H14: 0 | I14: 0 | J14: 0 | K14: 0 | L14: 0 | M14: 0
A15: I. | B15: Novac iz poslovanja | C15: =SUM(C7:C14) -> 0 | D15: =SUM(D7:D14) -> 0 | E15: 0 | F15: 0 | G15: 0 | H15: 0 | I15: 0 | J15: 0 | K15: 0 | L15: 0 | M15: 0
A16: 9 | B16: Novčani izdaci za kamate | H16: 0 | I16: 0 | J16: 0 | K16: 0 | L16: 0 | M16: 0
A17: 10 | B17: Plaćeni porez na dobit | H17: 0 | I17: 0 | J17: 0 | K17: 0 | L17: 0 | M17: 0
A18: A. NETO NOVČANI TOKOVI OD POSLOVNIH AKTIVNOSTI | C18: =SUM(C15:C17) -> 0 | D18: =SUM(D15:D17) -> 0 | E18: 0 | F18: 0 | G18: 0 | H18: 0 | I18: 0 | J18: 0 | K18: 0 | L18: 0 | M18: 0
A19: NOVČANI TOKOVI OD INVESTICIJSKIH AKTIVNOSTI
A20: 1. | B20: Novčani primici od prodaje dugotrajne materijalne i nematerijalne imovine | H20: 0 | I20: 0 | J20: 0 | K20: 0 | L20: 0 | M20: 0
A21: 2. | B21: Novčani primici od prodaje financijskih instrumenata | H21: 0 | I21: 0 | J21: 0 | K21: 0 | L21: 0 | M21: 0
A22: 3. | B22: Novčani primici od kamata | H22: 0 | I22: 0 | J22: 0 | K22: 0 | L22: 0 | M22: 0
A23: 4. | B23: Novčani primici od dividendi | H23: 0 | I23: 0 | J23: 0 | K23: 0 | L23: 0 | M23: 0
A24: 5. | B24: Novčani primici s osnove povrata danih zajmova i štednih uloga | H24: 0 | I24: 0 | J24: 0 | K24: 0 | L24: 0 | M24: 0
A25: 6. | B25: Ostali novčani primici od investicijskih aktivnosti | H25: 0 | I25: 0 | J25: 0 | K25: 0 | L25: 0 | M25: 0
A26: II. | B26: Ukupno novčani primici od investicijskih aktivnosti | C26: =SUM(C20:C25) -> 0 | D26: =SUM(D20:D25) -> 0 | E26: 0 | F26: 0 | G26: 0 | H26: 0 | I26: 0 | J26: 0 | K26: 0 | L26: 0 | M26: 0
A27: 1. | B27: Novčani izdaci za kupnju dugotrajne materijalne i nematerijalne imovine | H27: 0 | I27: 0 | J27: 0 | K27: 0 | L27: 0 | M27: 0
A28: 2. | B28: Novčani izdaci za stjecanje financijskih instrumenata | H28: 0 | I28: 0 | J28: 0 | K28: 0 | L28: 0 | M28: 0
A29: 3. | B29: Novčani izdaci s osnove danih zajmova i štednih uloga | H29: 0 | I29: 0 | J29: 0 | K29: 0 | L29: 0 | M29: 0
A30: 4. | B30: Stjecanje ovisnog društva, umanjeno za stečeni novac | H30: 0 | I30: 0 | J30: 0 | K30: 0 | L30: 0 | M30: 0
A31: 5. | B31: Ostali novčani izdaci od investicijskih aktivnosti | H31: 0 | I31: 0 | J31: 0 | K31: 0 | L31: 0 | M31: 0
A32: III. | B32: Ukupno novčani izdaci od investicijskih aktivnosti | C32: =SUM(C27:C31) -> 0 | D32: =SUM(D27:D31) -> 0 | E32: 0 | F32: 0 | G32: 0 | H32: 0 | I32: 0 | J32: 0 | K32: 0 | L32: 0 | M32: 0
A33: B. NETO NOVČANI TOKOVI OD INVESTICIJSKIH AKTIVNOSTI | C33: =C26+C32 -> 0 | D33: =D26+D32 -> 0 | E33: 0 | F33: 0 | G33: 0 | H33: 0 | I33: 0 | J33: 0 | K33: 0 | L33: 0 | M33: 0
A34: NOVČANI TOKOVI OD FINANCIJSKIH AKTIVNOSTI
A35: 1. | B35: Novčani primici od povećanja temeljnog (upisanog) kapitala | H35: 0 | I35: 0 | J35: 0 | K35: 0 | L35: 0 | M35: 0
A36: 2. | B36: Novčani primici od izdavanja vlasničkih i dužničkih financijskih instrumenata | H36: 0 | I36: 0 | J36: 0 | K36: 0 | L36: 0 | M36: 0
A37: 3. | B37: Novčani primici od glavnice kredita, pozajmica i drugih posudbi | H37: 0 | I37: 0 | J37: 0 | K37: 0 | L37: 0 | M37: 0
A38: 4. | B38: Ostali novčani primici od financijskih aktivnosti | H38: 0 | I38: 0 | J38: 0 | K38: 0 | L38: 0 | M38: 0
A39: IV. | B39: Ukupno novčani primici od financijskih aktivnosti | C39: =SUM(C35:C38) -> 0 | D39: =SUM(D35:D38) -> 0 | E39: 0 | F39: 0 | G39: 0 | H39: 0 | I39: 0 | J39: 0 | K39: 0 | L39: 0 | M39: 0
A40: 1. | B40: Novčani izdaci za otplatu glavnice kredita, pozajmica i drugih posudbi i dužničkih financijskih instrumenata | H40: 0 | I40: 0 | J40: 0 | K40: 0 | L40: 0 | M40: 0
A41: 2. | B41: Novčani izdaci za isplatu dividendi | H41: 0 | I41: 0 | J41: 0 | K41: 0 | L41: 0 | M41: 0
A42: 3. | B42: Novčani izdaci za financijski najam | H42: 0 | I42: 0 | J42: 0 | K42: 0 | L42: 0 | M42: 0
A43: 4. | B43: Novčani izdaci za otkup vlastitih dionica i smanjenje temeljnog (upisanog) kapitala | H43: 0 | I43: 0 | J43: 0 | K43: 0 | L43: 0 | M43: 0
A44: 5. | B44: Ostali novčani izdaci od financijskih aktivnosti | H44: 0 | I44: 0 | J44: 0 | K44: 0 | L44: 0 | M44: 0
A45: V. | B45: Ukupno novčani izdaci od financijskih aktivnosti | C45: =SUM(C40:C44) -> 0 | D45: =SUM(D40:D44) -> 0 | E45: 0 | F45: 0 | G45: 0 | H45: 0 | I45: 0 | J45: 0 | K45: 0 | L45: 0 | M45: 0
A46: C. NETO NOVČANI TOKOVI OD FINANCIJSKIH AKTIVNOSTI | C46: =C39+C45 -> 0 | D46: =D39+D45 -> 0 | E46: 0 | F46: 0 | G46: 0 | H46: 0 | I46: 0 | J46: 0 | K46: 0 | L46: 0 | M46: 0
A47: 1. | B47: Nerealizirane tečajne razlike po novcu i novčanim ekvivalentima | H47: =IFERROR(D47/C47*100,) -> 0 | I47: =IFERROR(F47/E47*100,) -> 0 | J47: =IFERROR(F47/D47*100,) -> 0 | K47: =IFERROR(E47/C47*100,) -> 0 | L47: =IFERROR(G47/E47*100,) -> 0 | M47: =IFERROR(G47/F47*100,) -> 0
A48: D. NETO POVEĆANJE ILI SMANJENE NOVČANIH TOKOVA | C48: =C18+C33+C46+C47 -> 0 | D48: =D18+D33+D46+D47 -> 0 | E48: 0 | F48: 0 | G48: 0 | H48: 0 | I48: 0 | J48: 0 | K48: 0 | L48: 0 | M48: 0
A49: E. NOVAC I NOVČANI EKVIVALENTI NA POČETKU RAZDOBLJA | H49: 0 | I49: 0 | J49: 0 | K49: 0 | L49: 0 | M49: 0
A50: F. NOVAC I NOVČANI EKVIVALENTI NA KRAJU RAZDOBLJA | C50: =C49+C48 -> 0 | D50: =D49+D48 -> 0 | E50: 0 | F50: 0 | G50: 0 | H50: 0 | I50: 0 | J50: 0 | K50: 0 | L50: 0 | M50: 0

Sheet NT indir.
A1: IZVJEŠTAJ O NOVČANOM TOKU - INDIREKTNA METODA
A2: Obveznik: | B2: =IF(ISBLANK(Podloga!B2),"",Podloga!B2) -> Zračna luka Osijek d.o.o. | C2: =IF(C58>C57,"Povećanje novca i novčanih ekvivalenata u razdoblju",IF(C58=C57,"Stagnacija novca i novčanih ekvivalenata u razdoblju","Smanjenje novca i novčanih ekvivalenata u razdoblju")) -> Povećanje novca i novčanih ekvivalenata u razdoblju | D2: Povećanje novca i novčanih ekvivalenata u razdoblju | E2: Povećanje novca i novčanih ekvivalenata u razdoblju | F2: Povećanje novca i novčanih ekvivalenata u razdoblju | G2: Povećanje novca i novčanih ekvivalenata u razdoblju
C3: Za razdoblje od 1. siječnja do 31. prosinca
C4: I Z N O S (u 000 kn) | H4: ="Indeks "& RIGHT(LEFT(Podloga!C36,7),5) &" / "& RIGHT(LEFT(Podloga!B36,8),6) -> Indeks 23. o / 23. pl | I4: ="Indeks "& RIGHT(LEFT(Podloga!E36,8),6) &" / "& RIGHT(LEFT(Podloga!D36,8),6) -> Indeks 24. pr / 24. pl | J4: ="Indeks "& RIGHT(LEFT(Podloga!E36,8),6) &" / "& RIGHT(LEFT(Podloga!C36,7),5) -> Indeks 24. pr / 23. o | K4: ="Indeks "& RIGHT(LEFT(Podloga!D36,8),6) &" / "& RIGHT(LEFT(Podloga!B36,8),6) -> Indeks 24. pl / 23. pl | L4: ="Indeks "& RIGHT(LEFT(Podloga!F36,8),6) &" / "& RIGHT(LEFT(Podloga!D36,8),6) -> Indeks 25. pl / 24. pl | M4: ="Indeks "& RIGHT(LEFT(Podloga!F36,8),6) &" / "& RIGHT(LEFT(Podloga!E36,8),6) -> Indeks 25. pl / 24. pr
C5: =Podloga!B36 -> 2023. planirano | D5: =Podloga!C36 -> 2023. ostvareno | E5: =Podloga!D36 -> 2024. planirano | F5: =Podloga!E36 -> 2024. procijenjeno | G5: =Podloga!F36 -> 2025. planirano
A6: NOVČANI TOKOVI OD POSLOVNIH AKTIVNOSTI
A7: 1. | B7: Dobit prije poreza | C7: 5.247 | D7: 39.647 | E7: 5.02 | F7: 18.798 | G7: 39.647 | H7: =IFERROR(D7/C7*100,) -> 755.6127311 | I7: =IFERROR(F7/E7*100,) -> 374.4621514 | J7: =IFERROR(F7/D7*100,) -> 47.41342346 | K7: =IFERROR(E7/C7*100,) -> 95.67371832 | L7: =IFERROR(G7/E7*100,) -> 789.7808765 | M7: =IFERROR(G7/F7*100,) -> 210.9107352
A8: 2. | B8: Usklađenja | C8: 363.135 | D8: =SUM(D9:D16) -> 461.144 | E8: 363.135 | F8: 467.883 | H8: =IFERROR(D8/C8*100,) -> 126.989687 | I8: =IFERROR(F8/E8*100,) -> 128.8454707 | J8: =IFERROR(F8/D8*100,) -> 101.4613656 | K8: =IFERROR(E8/C8*100,) -> 100 | L8: =IFERROR(G8/E8*100,) -> 0 | M8: =IFERROR(G8/F8*100,) -> 0
A9: a) | B9: Amortizacija | C9: 289.336 | D9: 372 | E9: 425 | F9: 370.113 | G9: 372 | H9: 128.5702436 | I9: 87.08541176 | J9: 99.49274194 | K9: 146.8880471 | L9: 87.52941176 | M9: 100.5098443
A10: b) | B10: Dobici i gubici od prodaje i vrijednosna usklađenja dugotrajne materijalne i nematerijalne imovine | H10: =IFERROR(D10/C10*100,) -> 0 | I10: =IFERROR(F10/E10*100,) -> 0 | J10: =IFERROR(F10/D10*100,) -> 0 | K10: =IFERROR(E10/C10*100,) -> 0 | L10: =IFERROR(G10/E10*100,) -> 0 | M10: =IFERROR(G10/F10*100,) -> 0
A11: c) | B11: Dobici i gubici od prodaje i nerealizirani dobici i gubici i vrijednosno usklađenje financijske imovine | H11: 0 | I11: 0 | J11: 0 | K11: 0 | L11: 0 | M11: 0
A12: d) | B12: Prihodi od kamata i dividendi | C12: -0.445 | D12: -0.6 | E12: -0.52 | F12: -0.062 | G12: -0.6 | H12: 134.8314607 | I12: 11.92307692 | J12: 10.33333333 | K12: 116.8539326 | L12: 115.3846154 | M12: 967.7419355
A13: e) | B13: Rashodi od kamata | C13: 54.483 | D13: 89.744 | E13: 55.85 | F13: 97.832 | G13: 89.744 | H13: 164.7192702 | I13: 175.1692032 | J13: 109.0123017 | K13: 102.5090395 | L13: 160.687556 | M13: 91.73276638
A14: f) | B14: Rezerviranja | C14: 20.074 | E14: 0 | H14: 0 | I14: 0 | J14: 0 | K14: 0 | L14: 0 | M14: 0
A15: g) | B15: Tečajne razlike (nerealizirane) | C15: 0 | D15: 0 | E15: 0 | F15: 0 | G15: 0 | H15: 0 | I15: 0 | J15: 0 | K15: 0 | L15: 0 | M15: 0
A16: h) | B16: Ostala usklađenja za nenovčane transakcije i nerealizirane dobitke i gubitke | C16: 0 | D16: =SUM(F16)/7.5345 -> 0 | E16: =SUM(G16)/7.5345 -> 0 | H16: 0 | I16: 0 | J16: 0 | K16: 0 | L16: 0 | M16: 0
A17: I. | B17: Povećanje ili smanjenje novčanih tokova prije promjena u radnom kapitalu | D17: =D7+D8 -> 500.791 | F17: 486.681 | H17: 0 | I17: 0 | J17: 97.18245735 | K17: 0 | L17: 0 | M17: 0
A18: 3. | B18: Promjene u radnom kapitalu | D18: =SUM(D19:D22) -> 12448.55 | F18: 955.872 | H18: 0 | I18: 0 | J18: 7.67858104 | K18: 0 | L18: 0 | M18: 0
A19: a) | B19: Povećanje ili smanjenje kratkoročnih obveza | C19: 6133.596 | D19: 12592.188 | E19: -369.157 | F19: 1036.895 | G19: 11592.188 | H19: =IFERROR(D19/C19*100,) -> 205.2986209 | I19: =IFERROR(F19/E19*100,) -> -280.881847 | J19: =IFERROR(F19/D19*100,) -> 8.234430744 | K19: =IFERROR(E19/C19*100,) -> -6.018606377 | L19: =IFERROR(G19/E19*100,) -> -3140.178298 | M19: =IFERROR(G19/F19*100,) -> 1117.971251
A20: b) | B20: Povećanje ili smanjenje kratkotrajnih potraživanja | C20: -96.208 | D20: -39.621 | E20: 109.513 | F20: 39.159 | G20: -39.621 | H20: =IFERROR(D20/C20*100,) -> 41.18264593 | I20: =IFERROR(F20/E20*100,) -> 35.75739866 | J20: =IFERROR(F20/D20*100,) -> -98.83395169 | K20: =IFERROR(E20/C20*100,) -> -113.8294113 | L20: =IFERROR(G20/E20*100,) -> -36.17926639 | M20: =IFERROR(G20/F20*100,) -> -101.1798054
A21: c) | B21: Povećanje ili smanjenje zaliha | C21: -14.725 | D21: 8.134 | E21: -0.739 | F21: 15.661 | G21: 8.134 | H21: -55.23938879 | I21: -2119.215156 | J21: 192.5374969 | K21: 5.018675722 | L21: -1100.67659 | M21: 51.937935
A22: d) | B22: Ostala povećanja ili smanjenja radnog kapitala | C22: -84.61 | D22: -112.151 | E22: 567.78 | F22: -135.843 | G22: -112.151 | H22: 132.5505259 | I22: -23.92528796 | J22: 121.1250903 | K22: -671.0554308 | L22: -19.752545 | M22: 82.55927799
A23: II. | B23: Novac iz poslovanja | D23: =SUM(D17+D18) -> 12949.341 | F23: 1442.553 | G23: 12949.341 | H23: =IFERROR(D23/C23*100,) -> 0 | I23: =IFERROR(F23/E23*100,) -> 0 | J23: =IFERROR(F23/D23*100,) -> 11.1399723 | K23: =IFERROR(E23/C23*100,) -> 0 | L23: =IFERROR(G23/E23*100,) -> 0 | M23: =IFERROR(G23/F23*100,) -> 897.6683006
A24: 4. | B24: Novčani izdaci za kamate | C24: -54.483 | D24: -85.701 | E24: -55.85 | F24: -87.597 | G24: -85.701 | H24: =IFERROR(D24/C24*100,) -> 157.2986069 | I24: =IFERROR(F24/E24*100,) -> 156.8433303 | J24: =IFERROR(F24/D24*100,) -> 102.2123429 | K24: =IFERROR(E24/C24*100,) -> 102.5090395 | L24: =IFERROR(G24/E24*100,) -> 153.4485228 | M24: =IFERROR(G24/F24*100,) -> 97.83554231
A25: 5. | B25: Plaćeni porez na dobit | H25: 0 | I25: 0 | J25: 0 | K25: 0 | L25: 0 | M25: 0
A26: A. NETO NOVČANI TOKOVI OD POSLOVNIH AKTIVNOSTI | C26: =SUM(C23:C25) -> -54.483 | D26: =SUM(D23:D25) -> 12863.64 | E26: -55.85 | F26: 1354.956 | G26: 12863.64 | H26: -23610.37388 | I26: -2426.062668 | J26: 10.53322388 | K26: 102.5090395 | L26: -23032.47986 | M26: 949.3769539
A27: NOVČANI TOKOVI OD INVESTICIJSKIH AKTIVNOSTI
A28: 1. | B28: Novčani primici od prodaje dugotrajne materijalne i nematerijalne imovine | C28: 6.636 | D28: 0 | E28: 0 | H28: 0 | I28: 0 | J28: 0 | K28: 0 | L28: 0 | M28: 0
A29: 2. | B29: Novčani primici od prodaje financijskih instrumenata | C29: 0 | H29: 0 | I29: 0 | J29: 0 | K29: 0 | L29: 0 | M29: 0
A30: 3. | B30: Novčani primici od kamata | C30: 0.445 | D30: 0.6 | E30: 0.52 | F30: 0.062 | G30: 0.6 | H30: 134.8314607 | I30: 11.92307692 | J30: 10.33333333 | K30: 116.8539326 | L30: 115.3846154 | M30: 967.7419355
A31: 4. | B31: Novčani primici od dividendi | H31: 0 | I31: 0 | J31: 0 | K31: 0 | L31: 0 | M31: 0
A32: 5. | B32: Novčani primici s osnove povrata danih zajmova i štednih uloga | H32: 0 | I32: 0 | J32: 0 | K32: 0 | L32: 0 | M32: 0
A33: 6. | B33: Ostali novčani primici od investicijskih aktivnosti | C33: 132.723 | D33: 0 | E33: 8000 | H33: 0 | I33: 0 | J33: 0 | K33: 6027.591299 | L33: 0 | M33: 0
A34: II. | B34: Ukupno novčani primici od investicijskih aktivnosti | C34: =SUM(C28:C33) -> 139.804 | D34: =SUM(D28:D33) -> 0.6 | E34: 8000.52 | F34: 0.062 | G34: 0.6 | H34: 0.4291722697 | I34: 0.0007749496283 | J34: 10.33333333 | K34: 5722.668879 | L34: 0.007499512532 | M34: 967.7419355
A35: 1. | B35: Novčani izdaci za kupnju dugotrajne materijalne i nematerijalne imovine | C35: -6366.713 | D35: -12467.653 | E35: -8000 | F35: -1102 | G35: -12467.653 | H35: 195.8255854 | I35: 13.775 | J35: 8.838872882 | K35: 125.6535358 | L35: 155.8456625 | M35: 1131.365971
A36: 2. | B36: Novčani izdaci za stjecanje financijskih instrumenata | H36: 0 | I36: 0 | J36: 0 | K36: 0 | L36: 0 | M36: 0
A37: 3. | B37: Novčani izdaci s osnove danih zajmova i štednih uloga | H37: 0 | I37: 0 | J37: 0 | K37: 0 | L37: 0 | M37: 0
A38: 4. | B38: Stjecanje ovisnog društva, umanjeno za stečeni novac | H38: 0 | I38: 0 | J38: 0 | K38: 0 | L38: 0 | M38: 0
A39: 5. | B39: Ostali novčani izdaci od investicijskih aktivnosti | H39: 0 | I39: 0 | J39: 0 | K39: 0 | L39: 0 | M39: 0
A40: III. | B40: Ukupno novčani izdaci od investicijskih aktivnosti | C40: =SUM(C35:C39) -> -6366.713 | D40: =SUM(D35:D39) -> -12467.653 | E40: -8000 | F40: -1102 | G40: -12467.653 | H40: 195.8255854 | I40: 13.775 | J40: 8.838872882 | K40: 125.6535358 | L40: 155.8456625 | M40: 1131.365971
A41: B. NETO NOVČANI TOKOVI OD INVESTICIJSKIH AKTIVNOSTI | C41: =C34+C40 -> -6226.909 | D41: =D34+D40 -> -12467.053 | E41: 0.52 | F41: -1101.938 | G41: -12467.053 | H41: 200.2125453 | I41: -211911.1538 | J41: 8.838800958 | K41: -0.008350852726 | L41: -2397510.192 | M41: 1131.375177
A42: NOVČANI TOKOVI OD FINANCIJSKIH AKTIVNOSTI
A43: 1. | B43: Novčani primici od povećanja temeljnog (upisanog) kapitala | H43: 0 | I43: 0 | J43: 0 | K43: 0 | L43: 0 | M43: 0
A44: 2. | B44: Novčani primici od izdavanja vlasničkih i dužničkih financijskih instrumenata | H44: 0 | I44: 0 | J44: 0 | K44: 0 | L44: 0 | M44: 0
A45: 3. | B45: Novčani primici od glavnice kredita, pozajmica i drugih posudbi | H45: 0 | I45: 0 | J45: 0 | K45: 0 | L45: 0 | M45: 0
A46: 4. | B46: Ostali novčani primici od financijskih aktivnosti | H46: 0 | I46: 0 | J46: 0 | K46: 0 | L46: 0 | M46: 0
A47: IV. | B47: Ukupno novčani primici od financijskih aktivnosti | C47: =SUM(C43:C46) -> 0 | D47: =SUM(D43:D46) -> 0 | E47: 0 | F47: 0 | G47: 0 | H47: 0 | I47: 0 | J47: 0 | K47: 0 | L47: 0 | M47: 0
A48: 1. | B48: Novčani izdaci za otplatu glavnice kredita, pozajmica i drugih posudbi i dužničkih financijskih instrumenata | D48: -217.491 | G48: -217.491 | H48: 0 | I48: 0 | J48: 0 | K48: 0 | L48: 0 | M48: 0
A49: 2. | B49: Novčani izdaci za isplatu dividendi | H49: 0 | I49: 0 | J49: 0 | K49: 0 | L49: 0 | M49: 0
A50: 3. | B50: Novčani izdaci za financijski najam | G50: 0 | H50: 0 | I50: 0 | J50: 0 | K50: 0 | L50: 0 | M50: 0
A51: 4. | B51: Novčani izdaci za otkup vlastitih dionica i smanjenje temeljnog (upisanog) kapitala | H51: 0 | I51: 0 | J51: 0 | K51: 0 | L51: 0 | M51: 0
A52: 5. | B52: Ostali novčani izdaci od financijskih aktivnosti | H52: 0 | I52: 0 | J52: 0 | K52: 0 | L52: 0 | M52: 0
A53: V. | B53: Ukupno novčani izdaci od financijskih aktivnosti | C53: =SUM(C48:C52) -> 0 | D53: =SUM(D48:D52) -> -217.491 | E53: 0 | F53: 0 | G53: -217.491 | H53: 0 | I53: 0 | J53: 0 | K53: 0 | L53: 0 | M53: 0
A54: C. NETO NOVČANI TOKOVI OD FINANCIJSKIH AKTIVNOSTI | C54: =C47+C53 -> 0 | D54: =D47+D53 -> -217.491 | E54: 0 | F54: 0 | G54: -217.491 | H54: 0 | I54: 0 | J54: 0 | K54: 0 | L54: 0 | M54: 0
A55: 1. | B55: Nerealizirane tečajne razlike po novcu i novčanim ekvivalentima | H55: =IFERROR(D55/C55*100,) -> 0 | I55: =IFERROR(F55/E55*100,) -> 0 | J55: =IFERROR(F55/D55*100,) -> 0 | K55: =IFERROR(E55/C55*100,) -> 0 | L55: =IFERROR(G55/E55*100,) -> 0 | M55: =IFERROR(G55/F55*100,) -> 0
A56: D. NETO POVEĆANJE ILI SMANJENE NOVČANIH TOKOVA | C56: 25.042 | D56: =D26+D41+D54+D55 -> 179.096 | E56: 51.208 | F56: 253.018 | G56: 179.096 | H56: 715.1824934 | I56: 494.0985783 | J56: 141.2750704 | K56: 204.4884594 | L56: 349.7422278 | M56: 70.7838968
A57: E. NOVAC I NOVČANI EKVIVALENTI NA POČETKU RAZDOBLJA | C57: 598.755 | D57: 50.904 | E57: 300.793 | F57: 50.904 | G57: 50.904 | H57: 8.501640905 | I57: 16.92326617 | J57: 100 | K57: 50.23640721 | L57: 16.92326617 | M57: 100
A58: F. NOVAC I NOVČANI EKVIVALENTI NA KRAJU RAZDOBLJA | C58: 623.797 | D58: =D57+D56 -> 230 | E58: 352.001 | F58: 303.922 | G58: 230 | H58: 36.87096924 | I58: 86.34123199 | J58: 132.14 | K58: 56.4287741 | L58: 65.34072346 | M58: 75.67731194

Sheet MFIN
B2: DODATNE STAVKE
B4: Obveznik: | C4: =IF(ISBLANK(Podloga!B2),"",Podloga!B2) -> Zračna luka Osijek d.o.o.
C7: =Podloga!B36 -> 2023. planirano | D7: =Podloga!C36 -> 2023. ostvareno | E7: =Podloga!D36 -> 2024. planirano | F7: =Podloga!E36 -> 2024. procijenjeno | G7: =Podloga!F36 -> 2025. planirano
A8: R.Br. | B8: RAČUN DOBITI I GUBITKA - dodatna razrada
A9: 1. | B9: Operativni prihodi (od 1.1. do 1.n.) - prihodi iz redovnog poslovanja | C9: =SUM(C10:C15) -> 0 | D9: =SUM(D10:D15) -> 0 | E9: 0 | F9: 0 | G9: 0
A10: 1.1.
A11: 1.2.
A12: 1.3.
A13: 1.4.
A14: 1.5.
A15: 1.n.
A16: 2. | B16: Neoperativni prihodi (od 2.1 do 2.n.) - jednokratni | C16: =SUM(C17:C22) -> 0 | D16: =SUM(D17:D22) -> 0 | E16: =SUM(E17:E22) -> 0 | F16: =SUM(F17:F22) -> 0 | G16: =SUM(G17:G22) -> 0
A17: 2.1.
A18: 2.2.
A19: 2.3.
A20: 2.4.
A21: 2.5.
A22: 2.n.
A23: 3. | B23: Državne potpore
A24: I. | B24: Ukupni poslovni prihodi (1.+2.+3.) | C24: =C9+C16+C23 -> 0 | D24: =D9+D16+D23 -> 0 | E24: 0 | F24: 0 | G24: 0
B25: PROVJERA | C25: =(C9+C16+C23)-RDG!C5 -> -2131.827 | D25: =(D9+D16+D23)-RDG!D5 -> -2963.898 | E25: =(E9+E16+E23)-RDG!E5 -> -3445.894 | F25: =(F9+F16+F23)-RDG!F5 -> -3855.891 | G25: =(G9+G16+G23)-RDG!G5 -> -3991.601
A26: 1. | B26: Operativni poslovni rashodi (od 1.1. do 1.n.) | C26: =SUM(C27:C32) -> 0 | D26: =SUM(D27:D32) -> 0 | E26: =SUM(E27:E32) -> 0 | F26: =SUM(F27:F32) -> 0 | G26: =SUM(G27:G32) -> 0
A27: 1.1. | B27: sirovine i materijal
A28: 1.2. | B28: energija i gorivo
A29: 1.3. | B29: sitan inventar
A30: 1.4. | B30: ostali vanjski troškovi
A31: 1.5. | B31: ostali troškovi poslovanja
A32: 1.n. | B32: bankarske usluge i troškovi platnog prometa
A33: 2. | B33: Neoperativni poslovni rashodi (od 2.1 do 2.n.) | C33: =SUM(C34:C39) -> 0 | D33: =SUM(D34:D39) -> 0 | E33: =SUM(E34:E39) -> 0 | F33: =SUM(F34:F39) -> 0 | G33: =SUM(G34:G39) -> 0
A34: 2.1. | B34: ostali rashodi - izvanredni
A35: 2.2.
A36: 2.3.
A37: 2.4.
A38: 2.5.
A39: 2.n.
A40: 3. | B40: Troškovi osoblja | C40: =RDG!C17 -> 877.529 | D40: =RDG!D17 -> 838.818 | E40: =RDG!E17 -> 981.454 | F40: =RDG!F17 -> 1125.763 | G40: =RDG!G17 -> 1509.675
A41: 4. | B41: Amortizacija | C41: =RDG!C21 -> 289.336 | D41: =RDG!D21 -> 366.921 | E41: =RDG!E21 -> 425 | F41: =RDG!F21 -> 370.113 | G41: =RDG!G21 -> 372
A42: 5. | B42: Promjena vrijednosti i rezerviranja | C42: =RDG!C12+RDG!C23+RDG!C26 -> 0 | D42: =RDG!D12+RDG!D23+RDG!D26 -> 65.43 | E42: =RDG!E12+RDG!E23+RDG!E26 -> 0 | F42: =RDG!F12+RDG!F23+RDG!F26 -> 63.854 | G42: =RDG!G12+RDG!G23+RDG!G26 -> 0
A43: II. | B43: Ukupni poslovni rashodi | C43: =C26+C33+C40+C41+C42 -> 1166.865 | D43: =D26+D33+D40+D41+D42 -> 1271.169 | E43: 1406.454 | F43: 1559.73 | G43: 1881.675
B44: PROVJERA | C44: =(C26+C33+C40+C41+C42)-RDG!C11 -> -898.847 | D44: =(D26+D33+D40+D41+D42)-RDG!D11 -> -2319.726 | E44: =(E26+E33+E40+E41+E42)-RDG!E11 -> -1972.16 | F44: =(F26+F33+F40+F41+F42)-RDG!F11 -> -2214.625 | G44: =(G26+G33+G40+G41+G42)-RDG!G11 -> -1980.481
A45: III. | B45: UKUPNI FINANCIJSKI PRIHODI (od 1. do 4.) | C45: =C46+C51+C52+C53 -> 0 | D45: =D46+D51+D52+D53 -> 0 | E45: =E46+E51+E52+E53 -> 0 | F45: =F46+F51+F52+F53 -> 0 | G45: =G46+G51+G52+G53 -> 0
A46: 1. | B46: Prihodi od kamata (po investiciji) (od 1.1. do 1. n.) | C46: =SUM(C47:C50) -> 0 | D46: =SUM(D47:D50) -> 0 | E46: =SUM(E47:E50) -> 0 | F46: =SUM(F47:F50) -> 0 | G46: =SUM(G47:G50) -> 0
A47: 1.1. | B47: Ostali prihodi s osnove kamata
A48: 1.2.
A49: 1.3.
A50: 1.n.
A51: 2. | B51: Pozitivne tečajne razlike
A52: 3. | B52: Ostali financijski prihodi (core) - iz redovnog poslovanja
A53: 4. | B53: Ostali financijski prihodi (non-core) - jednokratni
A54: IV. | B54: UKUPNI FINANCIJSKI RASHODI (od 1. do 4.) | C54: =C55+C60+C61+C62 -> 0 | D54: =D55+D60+D61+D62 -> 0 | E54: =E55+E60+E61+E62 -> 0 | F54: =F55+F60+F61+F62 -> 0 | G54: =G55+G60+G61+G62 -> 0
A55: 1. | B55: Rashodi od kamata (po obvezi) (od 1.1. do 1. n.) | C55: =SUM(C56:C59) -> 0 | D55: =SUM(D56:D59) -> 0 | E55: =SUM(E56:E59) -> 0 | F55: =SUM(F56:F59) -> 0 | G55: =SUM(G56:G59) -> 0
A56: 1.1.
A57: 1.2.
A58: 1.3.
A59: 1.n.
A60: 2. | B60: Negativne tečajne razlike
A61: 3. | B61: Ostali financijski rashodi (core) - iz redovnog poslovanja
A62: 4. | B62: Ostali financijski rashodi (non-core) - jednokratni
A63: V. | B63: NETO FINANCIJSKI PRIHODI/RASHODI (III.-IV.) | C63: =C45-C54 -> 0 | D63: =D45-D54 -> 0 | E63: =E45-E54 -> 0 | F63: =F45-F54 -> 0 | G63: =G45-G54 -> 0
B64: PROVJERA | C64: =(C45+C54)-(RDG!C34+RDG!C45) -> -61.767 | D64: =(D45+D54)-(RDG!D34+RDG!D45) -> -92.41257 | E64: =(E45+E54)-(RDG!E34+RDG!E45) -> -63.34 | F64: =(F45+F54)-(RDG!F34+RDG!F45) -> -62.862 | G64: =(G45+G54)-(RDG!G34+RDG!G45) -> -90.998
B66: INVESTICIJSKA ULAGANJA
B67: Isplata za ukupna investicijska ulaganja (od 1.1. do 1.n) | C67: =SUM(C68:C72) -> 0 | D67: =SUM(D68:D72) -> 0 | E67: 0 | F67: 0 | G67: 0
A68: 1.1. | B68: otklanjanje nalaza Agencije za civilno zrakoplovstvo radi sigurnosti
A69: 1.2. | B69: Segment / naziv investicije
A70: 1.3. | B70: Segment / naziv investicije
A71: 1.4. | B71: Segment / naziv investicije
A72: 1.n. | B72: Segment / naziv investicije
B73: Izvori financiranja investicija (od 1.1. do 1.6.) | C73: =SUM(C74:C79) -> 0 | D73: =SUM(D74:D79) -> 0 | E73: 0 | F73: 0 | G73: 0
A74: 1.1. | B74: Vlastita sredstva
A75: 1.2. | B75: Sredstva iz Državnog proračuna
A76: 1.3. | B76: Banke i ostale financijske institucije
A77: 1.4. | B77: Međunarodne financijske institucije
A78: 1.5. | B78: Nefinancijske institucije
A79: 1.6 | B79: EU fondovi
B81: OSTALE STAVKE
B82: Prosjek broja zaposlenih tijekom razdoblja | C82: =Podloga!B37 -> 0 | D82: =Podloga!C37 -> 0 | E82: =Podloga!D37 -> 0 | F82: =Podloga!E37 -> 0 | G82: =Podloga!F37 -> 0
B83: Broj zaposlenih prema satima rada
B84: Dugotrajna financijska imovina
B85: Od čega: Dani dugoročni depoziti
B86: Od čega: Likvidne dionice / ostalo
B87: Od čega: Ostalo
B88: Kratkotrajna financijska imovina
B89: Od čega: Dani kratkorični depoziti
B90: Od čega: Likvidne dionice / ostalo
B91: Od čega: Ostalo
B92: Dokapitalizacija
B93: Promjene temeljnog kapitala
B94: (+) Dokapitalizacija
B95: (-) Smanjenje / otpis
B96: Isplaćena dividenda
B99: * Ukoliko kod određenih kategorija postoji veći broj stavaka, moguće je ubacivati dodatne redove

Sheet _TM_NT- indirektna metoda (2) (hidden)
A1: Left | B1: Top | C1: Right | D1: Bottom | E1: Ref
A2: 11 | B2: 2 | C2: 11 | D2: 3 | E2: $K$2:$K$3

Sheet _TM_Dug (hidden)
A1: Left | B1: Top | C1: Right | D1: Bottom | E1: Ref
A2: 1 | B2: 41 | C2: 13 | D2: 41 | E2: $A$41:$M$41
A3: 15 | B3: 2 | C3: 17 | D3: 41 | E3: $O$2:$Q$41

Sheet _TM_Sponzorstva i donacije (hidden)
A1: Left | B1: Top | C1: Right | D1: Bottom | E1: Ref
A2: 2 | B2: 2 | C2: 5 | D2: 31 | E2: $B$2:$E$31

Sheet _TM_ULaganja (hidden)
A1: Left | B1: Top | C1: Right | D1: Bottom | E1: Ref
A2: 2 | B2: 2 | C2: 8 | D2: 44 | E2: $B$2:$H$44
A3: 2 | B3: 45 | C3: 8 | D3: 45 | E3: $B$45:$H$45

Sheet _TM_Građ. objekti i zemljišta (hidden)
A1: Left | B1: Top | C1: Right | D1: Bottom | E1: Ref
A2: 2 | B2: 2 | C2: 9 | D2: 70 | E2: $B$2:$I$70

Sheet Dashboard (hidden)
A1: Dashboard:
A2: Prikaz ključnih pokazatelja poslovanja | B2: =HYPERLINK("#'Ključni poslovni pokazatelji'!A1","Ključni poslovni pokazatelji") -> Ključni poslovni pokazatelji
A3: Analiza izvještaja o financijskom položaju | B3: =HYPERLINK("#'Financijski položaj'!A1","Financijski položaj") -> Financijski položaj
A4: Analiza računa dobiti i gubitka | B4: =HYPERLINK("#'RDG 1'!A1","RDG 1") -> RDG 1
B5: =HYPERLINK("#'RDG 2'!A1","RDG 2") -> RDG 2
A6: Analiza izvještaja o novčanom toku | B6: =HYPERLINK("#'Novčani tok'!A1","Izvještaj o novčanom toku ") -> Izvještaj o novčanom toku
A7: Analiza profitabilnosti | B7: =HYPERLINK("#Profitabilnost!A1","Profitabilnost") -> Profitabilnost
A8: Analiza likvidnosti | B8: =HYPERLINK("#Likvidnost!A1","Likvidnost") -> Likvidnost
A9: Analiza aktivnosti | B9: =HYPERLINK("#Aktivnost!A1","Aktivnost") -> Aktivnost
A10: Analiza zaduženosti | B10: =HYPERLINK("#Zaduženost!A1","Zaduženost") -> Zaduženost

Sheet _TM_Profit and loss (hidden)
A1: Left | B1: Top | C1: Right | D1: Bottom | E1: Ref
A2: 2 | B2: 17 | C2: 13 | D2: 17 | E2: $B$17:$M$17
A3: 2 | B3: 17 | C3: 13 | D3: 17 | E3: $B$17:$M$17

Sheet Ključni poslovni pokazatelji (hidden)
B1: =Naslovna!B3&" - "&Naslovna!I2 -> Ministarstvo državne imovine - Godišnji financijski plan poslovanja
B2: SAŽETI PRIKAZ KLJUČNIH FINANCIJSKIH POKAZATELJA
B3: Društvo: | C3: =Podloga!B2 -> Zračna luka Osijek d.o.o.
B4: Tip dokumenta: | C4: =Naslovna!B8 -> Godišnji financijski plan poslovanja
B5: Jedinstveni ključni pokazatelji poslovanja
D6: =LEFT(Podloga!C36,10)&"." -> 2023. ostv. | E6: =LEFT(Podloga!E36,10)&"." -> 2024. proc. | G6: =LEFT(Podloga!B36,10)&"." -> 2023. plan. | H6: =LEFT(Podloga!D36,10)&"." -> 2024. plan. | I6: =LEFT(Podloga!F36,10)&"." -> 2025. plan.
B7: Glavni financijski pokazatelji (u tisućama kuna) | C7: OSTVARENO | F7: PLANIRANO
B8: Prihodi | D8: =IFERROR(RDG!D57,) -> 2963.93357 | E8: =IFERROR(RDG!F57,) -> 3855.953 | G8: =IFERROR(RDG!C57,) -> 2132.276 | H8: =IFERROR(RDG!E57,) -> 3446.434 | I8: =IFERROR(RDG!G57,) -> 3992.201
B9: Imovina | D9: =IFERROR(Bilanca!D68,) -> 13600.116 | E9: =IFERROR(Bilanca!F68,) -> 14655.809 | G9: =IFERROR(Bilanca!C68,) -> 19429.3716 | H9: =IFERROR(Bilanca!E68,) -> 20409.838 | I9: =IFERROR(Bilanca!G68,) -> 27049.161
B10: EBITDA | D10: =IFERROR((RDG!D59+RDG!D46+RDG!D48+RDG!D21),) -> -260.30743 | E10: =IFERROR((RDG!F59+RDG!F46+RDG!F48+RDG!F21),) -> 451.358 | G10: =IFERROR((RDG!C59+RDG!C46+RDG!C48+RDG!C21),) -> 349.065 | H10: =IFERROR((RDG!E59+RDG!E46+RDG!E48+RDG!E21),) -> 485.87 | I10: =IFERROR((RDG!G59+RDG!G46+RDG!G48+RDG!G21),) -> 501.391
B11: Dobit | D11: =IFERROR(RDG!D59,) -> -719.33843 | E11: =IFERROR(RDG!F59,) -> 18.798 | G11: =IFERROR(RDG!C59,) -> 5.246 | H11: =IFERROR(RDG!E59,) -> 5.02 | I11: =IFERROR(RDG!G59,) -> 39.647
B12: Prihod od osnovne djelatnosti po zaposlenom | D12: =IFERROR(RDG!D5/Podloga!C37,) -> 0 | E12: =IFERROR(RDG!F5/Podloga!E37,) -> 0 | G12: =IFERROR(RDG!C5/Podloga!B37,) -> 0 | H12: =IFERROR(RDG!E5/Podloga!D37,) -> 0 | I12: =IFERROR(RDG!G5/Podloga!F37,) -> 0
B13: Pokazatelji profitabilnosti | C13: OSTVARENO | F13: PLANIRANO
B14: ROA | D14: =IFERROR(RDG!D63/Bilanca!D68,) -> -0.05289208048 | E14: =IFERROR(RDG!F63/Bilanca!F68,) -> 0.001282631344 | G14: =IFERROR(RDG!C63/Bilanca!C68,) -> 0.0002700035857 | H14: =IFERROR(RDG!E63/Bilanca!E68,) -> 0.000245959816 | I14: =IFERROR(RDG!G63/Bilanca!G68,) -> 0.001465738623
B15: ROE | D15: =IFERROR((RDG!D83/Bilanca!D$75),) -> -0.884995411 | E15: =IFERROR((RDG!F83/Bilanca!F$75),) -> 0.02260423706 | G15: =IFERROR((RDG!C83/Bilanca!C$75),) -> 0.00350759187 | H15: =IFERROR((RDG!E83/Bilanca!E$75),) -> 0.00551875773 | I15: =IFERROR((RDG!G83/Bilanca!G$75),) -> 0.04550530782
B16: EBITDA Marža | D16: =IFERROR((RDG!D59+RDG!D46+RDG!D48+RDG!D21)/RDG!D57,) -> -0.08782498793 | E16: =IFERROR((RDG!F59+RDG!F46+RDG!F48+RDG!F21)/RDG!F57,) -> 0.11705485 | G16: =IFERROR((RDG!C59+RDG!C46+RDG!C48+RDG!C21)/RDG!C57,) -> 0.1637053552 | H16: =IFERROR((RDG!E59+RDG!E46+RDG!E48+RDG!E21)/RDG!E57,) -> 0.1409776018 | I16: =IFERROR((RDG!G59+RDG!G46+RDG!G48+RDG!G21)/RDG!G57,) -> 0.1255926242
B17: EBIT Marža | D17: =IFERROR((RDG!D59+RDG!D46+RDG!D48)/RDG!D57,) -> -0.2116202726 | E17: =IFERROR((RDG!F59+RDG!F46+RDG!F48)/RDG!F57,) -> 0.02107001823 | G17: =IFERROR((RDG!C59+RDG!C46+RDG!C48)/RDG!C57,) -> 0.02801185212 | H17: =IFERROR((RDG!E59+RDG!E46+RDG!E48)/RDG!E57,) -> 0.01766173384 | I17: =IFERROR((RDG!G59+RDG!G46+RDG!G48)/RDG!G57,) -> 0.03241094324
B18: Neto profitna marža | D18: =IFERROR(RDG!D63/RDG!D57,) -> -0.2426972174 | E18: =IFERROR(RDG!F63/RDG!F57,) -> 0.004875059421 | G18: =IFERROR(RDG!C63/RDG!C57,) -> 0.002460281877 | H18: =IFERROR(RDG!E63/RDG!E57,) -> 0.001456578017 | I18: =IFERROR(RDG!G63/RDG!G57,) -> 0.009931113188
B19: Pokazatelji likvidnosti | C19: OSTVARENO | F19: PLANIRANO
B20: Tekuća likvidnost | D20: =IFERROR(Bilanca!D40/Bilanca!D115,) -> 0.7407927706 | E20: =IFERROR(Bilanca!F40/Bilanca!F115,) -> 1.40750618 | G20: =IFERROR(Bilanca!C40/Bilanca!C115,) -> 0.06244809336 | H20: =IFERROR(Bilanca!E40/Bilanca!E115,) -> 0.03935907498 | I20: =IFERROR(Bilanca!G40/Bilanca!G115,) -> 0.664706258
B21: Trenutna likvidnost | D21: =IFERROR(Bilanca!D66/Bilanca!D115,) -> 0.1218233294 | E21: =IFERROR(Bilanca!F66/Bilanca!F115,) -> 0.7128596291 | G21: =IFERROR(Bilanca!C66/Bilanca!C115,) -> 0.04178164545 | H21: =IFERROR(Bilanca!E66/Bilanca!E115,) -> 0.02107689578 | I21: =IFERROR(Bilanca!G66/Bilanca!G115,) -> 0.2997301126
B22: Financijska stabilnost | D22: =IFERROR(Bilanca!D5/(Bilanca!D75+Bilanca!D103),) -> 3.495251122 | E22: =IFERROR(Bilanca!F5/(Bilanca!F75+Bilanca!F103),) -> 3.675178773 | G22: =IFERROR(Bilanca!C5/(Bilanca!C75+Bilanca!C103),) -> 4.147311527 | H22: =IFERROR(Bilanca!E5/(Bilanca!E75+Bilanca!E103),) -> 5.325501841 | I22: =IFERROR(Bilanca!G5/(Bilanca!G75+Bilanca!G103),) -> 7.312800471
B23: Pokazatelji aktivnosti | C23: OSTVARENO | F23: PLANIRANO
B24: Obrtaj imovine | D24: =IFERROR(RDG!D57/Bilanca!D68,) -> 0.2179344331 | E24: =IFERROR(RDG!F57/Bilanca!F68,) -> 0.2631006586 | G24: =IFERROR(RDG!C57/Bilanca!C68,) -> 0.1097449801 | H24: =IFERROR(RDG!E57/Bilanca!E68,) -> 0.1688614089 | I24: =IFERROR(RDG!G57/Bilanca!G68,) -> 0.1475905667
B25: Obrtaj potraživanja | D25: =IFERROR(((RDG!D6+RDG!D7)/(Bilanca!D51)),) -> 0 | E25: =IFERROR(((RDG!F6+RDG!F7)/(Bilanca!F51)),) -> 0 | G25: =IFERROR(((RDG!C6+RDG!C7)/(Bilanca!C51)),) -> 0 | H25: =IFERROR(((RDG!E6+RDG!E7)/(Bilanca!E51)),) -> 0 | I25: =IFERROR(((RDG!G6+RDG!G7)/(Bilanca!G51)),) -> 0
B26: Dani potraživanja | D26: =IFERROR(365/D25,) -> 0 | E26: =IFERROR(365/E25,) -> 0 | G26: =IFERROR(365/G25,) -> 0 | H26: =IFERROR(365/H25,) -> 0 | I26: =IFERROR(365/I25,) -> 0
B27: Pokazatelji zaduženosti | C27: OSTVARENO | F27: PLANIRANO
B28: Koeficijent zaduženosti | D28: =IFERROR(((Bilanca!D96+Bilanca!D103+Bilanca!D115+Bilanca!D130)/Bilanca!D68),) -> 0.9402349951 | E28: =IFERROR(((Bilanca!F96+Bilanca!F103+Bilanca!F115+Bilanca!F130)/Bilanca!F68),) -> 0.9432572436 | G28: =IFERROR(((Bilanca!C96+Bilanca!C103+Bilanca!C115+Bilanca!C130)/Bilanca!C68),) -> 0.9230231615 | H28: =IFERROR(((Bilanca!E96+Bilanca!E103+Bilanca!E115+Bilanca!E130)/Bilanca!E68),) -> 0.9554321793 | I28: =IFERROR(((Bilanca!G96+Bilanca!G103+Bilanca!G115+Bilanca!G130)/Bilanca!G68),) -> 0.9677896849
B29: Koeficijent vlastitog financiranja | D29: =IFERROR((Bilanca!D75/Bilanca!D68),) -> 0.05976537259 | E29: =IFERROR((Bilanca!F75/Bilanca!F68),) -> 0.0567429611 | G29: =IFERROR((Bilanca!C75/Bilanca!C68),) -> 0.07697691057 | H29: =IFERROR((Bilanca!E75/Bilanca!E68),) -> 0.04456796766 | I29: =IFERROR((Bilanca!G75/Bilanca!G68),) -> 0.03221027817
B30: Koeficijent financiranja | D30: =IFERROR(((Bilanca!D96+Bilanca!D103+Bilanca!D115+Bilanca!D130)/Bilanca!D75),) -> 15.73210296 | E30: =IFERROR(((Bilanca!F96+Bilanca!F103+Bilanca!F115+Bilanca!F130)/Bilanca!F75),) -> 16.62333486 | G30: =IFERROR(((Bilanca!C96+Bilanca!C103+Bilanca!C115+Bilanca!C130)/Bilanca!C75),) -> 11.99090941 | H30: =IFERROR(((Bilanca!E96+Bilanca!E103+Bilanca!E115+Bilanca!E130)/Bilanca!E75),) -> 21.43764298 | I30: =IFERROR(((Bilanca!G96+Bilanca!G103+Bilanca!G115+Bilanca!G130)/Bilanca!G75),) -> 30.04598966
B31: Odnos ukupne imovine i kapitala | D31: =IFERROR(Bilanca!D68/Bilanca!D75,) -> 16.73209681 | E31: =IFERROR(Bilanca!F68/Bilanca!F75,) -> 17.62333126 | G31: =IFERROR(Bilanca!C68/Bilanca!C75,) -> 12.99090848 | H31: =IFERROR(Bilanca!E68/Bilanca!E75,) -> 22.43763969 | I31: =IFERROR(Bilanca!G68/Bilanca!G75,) -> 31.04599081
B32: * Plavo osjenčana pozadina označava planirane vrijednosti
B66: =HYPERLINK("#Sadržaj!A1","Povratak na sadržaj") -> Povratak na sadržaj

Sheet Financijski položaj (hidden)
B1: =Naslovna!B3&" - "&Naslovna!I2 -> Ministarstvo državne imovine - Godišnji financijski plan poslovanja
B2: SAŽETI PRIKAZ IZVJEŠTAJA O FINANCIJSKOM POLOŽAJU
B4: Društvo: | D4: =Podloga!B2 -> Zračna luka Osijek d.o.o.
B5: Tip dokumenta: | D5: =Naslovna!B8 -> Godišnji financijski plan poslovanja
B6: Sastavlja se za godinu: | D6: =Podloga!B8 -> 2025
B8: Bilanca (u 000 kn)
C9: =Podloga!B36 -> 2023. planirano | D9: =Podloga!C36 -> 2023. ostvareno | F9: =Podloga!D36 -> 2024. planirano | G9: =Podloga!E36 -> 2024. procijenjeno | I9: =Podloga!F36 -> 2025. planirano
B10: Dugotrajna imovina | C10: =Bilanca!C5 -> 18497.026 | D10: =Bilanca!D5 -> 13185.73 | E10: =D10-C10 -> -5311.296 | F10: =Bilanca!E5 -> 19752.51 | G10: =Bilanca!F5 -> 13933.584 | H10: =G10-F10 -> -5818.926 | I10: =Bilanca!G5 -> 26432.344 | J10: =I10-G10 -> 12498.76
B11: Kratkotrajna imovina | C11: =Bilanca!C40 -> 932.3456 | D11: =Bilanca!D40 -> 309.541 | E11: =D11-C11 -> -622.8046 | F11: =Bilanca!E40 -> 657.328 | G11: =Bilanca!F40 -> 600.079 | H11: =G11-F11 -> -57.249 | I11: =Bilanca!G40 -> 510.067 | J11: =I11-G11 -> -90.012
B12: Ostalo | C12: =Bilanca!C67+Bilanca!C4 -> 0 | D12: =Bilanca!D67+Bilanca!D4 -> 104.845 | E12: 104.845 | F12: =Bilanca!E67+Bilanca!E4 -> 0 | G12: =Bilanca!F67+Bilanca!F4 -> 122.146 | H12: 122.146 | I12: =Bilanca!G67+Bilanca!G4 -> 106.75 | J12: -15.396
B13: Ukupno aktiva | C13: =SUM(C10:C12) -> 19429.3716 | D13: =SUM(D10:D12) -> 13600.116 | E13: -5829.2556 | F13: =SUM(F10:F12) -> 20409.838 | G13: =SUM(G10:G12) -> 14655.809 | H13: -5754.029 | I13: =SUM(I10:I12) -> 27049.161 | J13: 12393.352
B15: Kapital i rezerve | C15: =Bilanca!C75 -> 1495.613 | D15: =Bilanca!D75 -> 812.816 | E15: -682.797 | F15: =Bilanca!E75 -> 909.625 | G15: =Bilanca!F75 -> 831.614 | H15: -78.011 | I15: =Bilanca!G75 -> 871.261 | J15: 39.647
B16: Rezerviranja | C16: =Bilanca!C96 -> 39.44 | D16: =Bilanca!D96 -> 22.103 | E16: -17.337 | F16: =Bilanca!E96 -> 0 | G16: =Bilanca!F96 -> 22.103 | H16: 22.103 | I16: =Bilanca!G96 -> 0 | J16: -22.103
B17: Dugoročne obveze | C17: =Bilanca!C103 -> 2964.391 | D17: =Bilanca!D103 -> 2959.654 | E17: -4.737 | F17: =Bilanca!E103 -> 2799.417 | G17: =Bilanca!F103 -> 2959.653 | H17: 160.236 | I17: =Bilanca!G103 -> 2743.27 | J17: -216.383
B18: Kratkoročne obveze | C18: =Bilanca!C115 -> 14929.929 | D18: =Bilanca!D115 -> 417.851 | E18: -14512.078 | F18: =Bilanca!E115 -> 16700.799 | G18: =Bilanca!F115 -> 426.342 | H18: -16274.457 | I18: =Bilanca!G115 -> 767.357 | J18: 341.015
B19: Ostalo | C19: =Bilanca!C130 -> 0 | D19: =Bilanca!D130 -> 9387.697 | E19: 9387.697 | F19: =Bilanca!E130 -> 0 | G19: =Bilanca!F130 -> 10416.1 | H19: 10416.1 | I19: =Bilanca!G130 -> 22667.272 | J19: 12251.172
B20: Ukupna pasiva | C20: =SUM(C15:C19) -> 19429.373 | D20: =SUM(D15:D19) -> 13600.121 | E20: -5829.252 | F20: =SUM(F15:F19) -> 20409.841 | G20: =SUM(G15:G19) -> 14655.812 | H20: -5754.029 | I20: =SUM(I15:I19) -> 27049.16 | J20: 12393.348
B22: * Ostvareni rezultati se uspoređuju s planom, osim plana za slijedeću godinu koji se uspoređuje s procijenjenim rezultatom tekuće godine
B23: ** Plavo osjenčana pozadina označava planirane vrijednosti
B57: Dodatni komentari i pojašnjenja na rezultate
B68: =HYPERLINK("#Sadržaj!A1","Povratak na sadržaj") -> Povratak na sadržaj

Sheet RDG 1 (hidden)
B1: =Naslovna!B3&" - "&Naslovna!I2 -> Ministarstvo državne imovine - Godišnji financijski plan poslovanja
B2: SAŽETI PRIKAZ RAČUNA DOBITI I GUBITKA (1/2)
B4: Društvo: | C4: =Podloga!B2 -> Zračna luka Osijek d.o.o.
B5: Tip dokumenta: | C5: =Naslovna!B8 -> Godišnji financijski plan poslovanja
B6: Sastavlja se za godinu: | C6: =Podloga!B8 -> 2025
B8: Račun dobiti i gubitka (u 000 kn)
C9: =Podloga!B36 -> 2023. planirano | D9: =Podloga!C36 -> 2023. ostvareno | F9: =Podloga!D36 -> 2024. planirano | G9: =Podloga!E36 -> 2024. procijenjeno | I9: =Podloga!F36 -> 2025. planirano
B10: Poslovni prihodi | C10: =RDG!C5 -> 2131.827 | D10: =RDG!D5 -> 2963.898 | E10: =D10-C10 -> 832.071 | F10: =RDG!E5 -> 3445.894 | G10: =RDG!F5 -> 3855.891 | H10: =G10-F10 -> 409.997 | I10: =RDG!G5 -> 3991.601 | J10: =I10-G10 -> 135.71
B11: Poslovni rashodi | C11: =RDG!C11 -> 2065.712 | D11: =RDG!D11 -> 3590.895 | E11: =D11-C11 -> 1525.183 | F11: =RDG!E11 -> 3378.614 | G11: =RDG!F11 -> 3774.355 | H11: =G11-F11 -> 395.741 | I11: =RDG!G11 -> 3862.156 | J11: =I11-G11 -> 87.801
B12: Financijski i investicijski prihodi | C12: =RDG!C34+RDG!C53+RDG!C54 -> 0.449 | D12: =RDG!D34+RDG!D53+RDG!D54 -> 0.03557 | E12: -0.41343 | F12: =RDG!E34+RDG!E53+RDG!E54 -> 0.54 | G12: =RDG!F34+RDG!F53+RDG!F54 -> 0.062 | H12: -0.478 | I12: =RDG!G34+RDG!G53+RDG!G54 -> 0.6 | J12: 0.538
B13: Financijski i investicijski rashodi | C13: =RDG!C45+RDG!C55+RDG!C56 -> 61.318 | D13: =RDG!D45+RDG!D55+RDG!D56 -> 92.377 | E13: 31.059 | F13: =RDG!E45+RDG!E55+RDG!E56 -> 62.8 | G13: =RDG!F45+RDG!F55+RDG!F56 -> 62.8 | H13: 0 | I13: =RDG!G45+RDG!G55+RDG!G56 -> 90.398 | J13: 27.598
B14: Dobit/Gubitak prije oporezivanja | C14: =RDG!C59 -> 5.246 | D14: =RDG!D59 -> -719.33843 | E14: -724.58443 | F14: =RDG!E59 -> 5.02 | G14: =RDG!F59 -> 18.798 | H14: 13.778 | I14: =RDG!G59 -> 39.647 | J14: 20.849
B15: Porez na dobit | C15: =RDG!C62 -> 0 | D15: =RDG!D62 -> 0 | E15: 0 | F15: =RDG!E62 -> 0 | G15: =RDG!F62 -> 0 | H15: 0 | I15: =RDG!G62 -> 0 | J15: 0
B16: Neto dobit | C16: =C10-C11+C12-C13-C15 -> 5.246 | D16: =D10-D11+D12-D13-D15 -> -719.33843 | E16: -724.58443 | F16: =F10-F11+F12-F13-F15 -> 5.02 | G16: =G10-G11+G12-G13-G15 -> 18.798 | H16: 13.778 | I16: =I10-I11+I12-I13-I15 -> 39.647 | J16: 20.849
B18: * Ostvareni rezultati se uspoređuju s planom, osim plana za slijedeću godinu koji se uspoređuje s procijenjenim rezultatom tekuće godine
B19: ** Plavo osjenčana pozadina označava planirane vrijednosti
B63: Dodatni komentari i pojašnjenja na rezultate
B74: =HYPERLINK("#Sadržaj!A1","Povratak na sadržaj") -> Povratak na sadržaj

Sheet RDG 2 (hidden)
B1: =Naslovna!B3&" - "&Naslovna!I2 -> Ministarstvo državne imovine - Godišnji financijski plan poslovanja
B2: SAŽETI PRIKAZ RAČUNA DOBITI I GUBITKA (2/2)
B4: Društvo: | C4: =Podloga!B2 -> Zračna luka Osijek d.o.o.
B5: Tip dokumenta: | C5: =Naslovna!B8 -> Godišnji financijski plan poslovanja
B6: Sastavlja se za godinu: | C6: =Podloga!B8 -> 2025
B63: Dodatni komentari i pojašnjenja na rezultate
B75: =HYPERLINK("#Sadržaj!A1","Povratak na sadržaj") -> Povratak na sadržaj

Sheet Novčani tok (hidden)
A1: =Naslovna!B3&" - "&Naslovna!I2 -> Ministarstvo državne imovine - Godišnji financijski plan poslovanja
B2: ="SAŽETI PRIKAZ NOVČANOG TOKA PO "&(IF(Podloga!B19="Direktna","DIREKTNOJ","INDIREKTNOJ"))&" METODI" -> SAŽETI PRIKAZ NOVČANOG TOKA PO INDIREKTNOJ METODI
B4: Društvo: | C4: =Podloga!B2 -> Zračna luka Osijek d.o.o.
B5: Tip dokumenta: | C5: =Naslovna!B8 -> Godišnji financijski plan poslovanja
B6: Sastavlja se za godinu: | C6: =Podloga!B8 -> 2025
B8: Izvještaj o novčanom toku (u 000 kn)
C9: =Podloga!B36 -> 2023. planirano | D9: =Podloga!C36 -> 2023. ostvareno | F9: =Podloga!D36 -> 2024. planirano | G9: =Podloga!E36 -> 2024. procijenjeno | I9: =Podloga!F36 -> 2025. planirano
B10: Novac i novčani ekvivalenti na početku razdoblja | C10: =IF(Podloga!$B$19="Direktna",'NT dir.'!C49,'NT indir.'!C57) -> 598.755 | D10: =IF(Podloga!$B$19="Direktna",'NT dir.'!D49,'NT indir.'!D57) -> 50.904 | E10: =D10-C10 -> -547.851 | F10: =IF(Podloga!$B$19="Direktna",'NT dir.'!E49,'NT indir.'!E57) -> 300.793 | G10: =IF(Podloga!$B$19="Direktna",'NT dir.'!F49,'NT indir.'!F57) -> 50.904 | H10: =G10-F10 -> -249.889 | I10: =IF(Podloga!$B$19="Direktna",'NT dir.'!G49,'NT indir.'!G57) -> 50.904 | J10: =I10-G10 -> 0
B11: Neto novčani tok od poslovnih aktivnosti | C11: =IF(Podloga!$B$19="Direktna",'NT dir.'!C18,'NT indir.'!C26) -> -54.483 | D11: =IF(Podloga!$B$19="Direktna",'NT dir.'!D18,'NT indir.'!D26) -> 12863.64 | E11: 12918.123 | F11: =IF(Podloga!$B$19="Direktna",'NT dir.'!E18,'NT indir.'!E26) -> -55.85 | G11: =IF(Podloga!$B$19="Direktna",'NT dir.'!F18,'NT indir.'!F26) -> 1354.956 | H11: =G11-F11 -> 1410.806 | I11: =IF(Podloga!$B$19="Direktna",'NT dir.'!G18,'NT indir.'!G26) -> 12863.64 | J11: =I11-G11 -> 11508.684
B12: Neto novčani tok od investicijskih aktivnosti | C12: =IF(Podloga!$B$19="Direktna",'NT dir.'!C33,'NT indir.'!C41) -> -6226.909 | D12: =IF(Podloga!$B$19="Direktna",'NT dir.'!D33,'NT indir.'!D41) -> -12467.053 | E12: -6240.144 | F12: =IF(Podloga!$B$19="Direktna",'NT dir.'!E33,'NT indir.'!E41) -> 0.52 | G12: =IF(Podloga!$B$19="Direktna",'NT dir.'!F33,'NT indir.'!F41) -> -1101.938 | H12: -1102.458 | I12: =IF(Podloga!$B$19="Direktna",'NT dir.'!G33,'NT indir.'!G41) -> -12467.053 | J12: -11365.115
B13: Neto novčani tok od financijskih aktivnosti | C13: =IF(Podloga!$B$19="Direktna",'NT dir.'!C46+'NT dir.'!C47,'NT indir.'!C54+'NT indir.'!C55) -> 0 | D13: =IF(Podloga!$B$19="Direktna",'NT dir.'!D46+'NT dir.'!D47,'NT indir.'!D54+'NT indir.'!D55) -> -217.491 | E13: -217.491 | F13: =IF(Podloga!$B$19="Direktna",'NT dir.'!E46+'NT dir.'!E47,'NT indir.'!E54+'NT indir.'!E55) -> 0 | G13: =IF(Podloga!$B$19="Direktna",'NT dir.'!F46+'NT dir.'!F47,'NT indir.'!F54+'NT indir.'!F55) -> 0 | H13: 0 | I13: =IF(Podloga!$B$19="Direktna",'NT dir.'!G46+'NT dir.'!G47,'NT indir.'!G54+'NT indir.'!G55) -> -217.491 | J13: -217.491
B14: Novac i novčani ekvivalenti na kraju razdoblja | C14: =IF(Podloga!$B$19="Direktna",'NT dir.'!C50,'NT indir.'!C58) -> 623.797 | D14: =IF(Podloga!$B$19="Direktna",'NT dir.'!D50,'NT indir.'!D58) -> 230 | E14: -393.797 | F14: =IF(Podloga!$B$19="Direktna",'NT dir.'!E50,'NT indir.'!E58) -> 352.001 | G14: =IF(Podloga!$B$19="Direktna",'NT dir.'!F50,'NT indir.'!F58) -> 303.922 | H14: -48.079 | I14: =IF(Podloga!$B$19="Direktna",'NT dir.'!G50,'NT indir.'!G58) -> 230 | J14: -73.922
B15: * Ostvareni rezultati se uspoređuju s planom, osim plana za slijedeću godinu koji se uspoređuje s procijenjenim rezultatom tekuće godine
B16: ** Plavo osjenčana pozadina označava planirane vrijednosti
C38: =IF(Podloga!B19="Direktna"," "," Nije primjenjivo kod indirektne metode") -> Nije primjenjivo kod indirektne metode
C47: =IF(Podloga!B19="Direktna"," "," Nije primjenjivo kod indirektne metode") -> Nije primjenjivo kod indirektne metode
B57: Dodatni komentari i pojašnjenja na rezultate
B67: =HYPERLINK("#Sadržaj!A1","Povratak na sadržaj") -> Povratak na sadržaj

Sheet Profitabilnost (hidden)
B1: =Naslovna!B3&" - "&Naslovna!I2 -> Ministarstvo državne imovine - Godišnji financijski plan poslovanja
B2: SAŽETI PRIKAZ POKAZATELJA PROFITABILNOSTI
B4: Društvo: | C4: =Podloga!B2 -> Zračna luka Osijek d.o.o.
B5: Tip dokumenta: | C5: =Naslovna!B8 -> Godišnji financijski plan poslovanja
B6: Sastavlja se za godinu: | C6: =Podloga!B8 -> 2025
B8: Pokazatelji profitabilnosti
C9: =Podloga!B36 -> 2023. planirano | D9: =Podloga!C36 -> 2023. ostvareno | F9: =Podloga!D36 -> 2024. planirano | G9: =Podloga!E36 -> 2024. procijenjeno | I9: =Podloga!F36 -> 2025. planirano
B10: ROA | C10: =IFERROR(RDG!C63/Bilanca!C68,) -> 0.0002700035857 | D10: =IFERROR(RDG!D63/Bilanca!D68,) -> -0.05289208048 | E10: =D10-C10 -> -0.05316208407 | F10: =IFERROR(RDG!E63/Bilanca!E68,) -> 0.000245959816 | G10: =IFERROR(RDG!F63/Bilanca!F68,) -> 0.001282631344 | H10: =G10-F10 -> 0.001036671528 | I10: =IFERROR(RDG!G63/Bilanca!G68,) -> 0.001465738623 | J10: =I10-G10 -> 0.0001831072788
B11: ROE | C11: =IFERROR((RDG!C83/Bilanca!C$75),) -> 0.00350759187 | D11: =IFERROR((RDG!D83/Bilanca!D$75),) -> -0.884995411 | E11: =D11-C11 -> -0.8885030029 | F11: =IFERROR((RDG!E83/Bilanca!E$75),) -> 0.00551875773 | G11: =IFERROR((RDG!F83/Bilanca!F$75),) -> 0.02260423706 | H11: =G11-F11 -> 0.01708547933 | I11: =IFERROR((RDG!G83/Bilanca!G$75),) -> 0.04550530782 | J11: =I11-G11 -> 0.02290107076
B12: EBITDA Marža | C12: =IFERROR((RDG!C59+RDG!C46+RDG!C48+RDG!C21)/RDG!C57,) -> 0.1637053552 | D12: =IFERROR((RDG!D59+RDG!D46+RDG!D48+RDG!D21)/RDG!D57,) -> -0.08782498793 | E12: =D12-C12 -> -0.2515303431 | F12: =IFERROR((RDG!E59+RDG!E46+RDG!E48+RDG!E21)/RDG!E57,) -> 0.1409776018 | G12: =IFERROR((RDG!F59+RDG!F46+RDG!F48+RDG!F21)/RDG!F57,) -> 0.11705485 | H12: =G12-F12 -> -0.02392275178 | I12: =IFERROR((RDG!G59+RDG!G46+RDG!G48+RDG!G21)/RDG!G57,) -> 0.1255926242 | J12: =I12-G12 -> 0.008537774225
B13: EBIT Marža | C13: =IFERROR((RDG!C59+RDG!C46+RDG!C48)/RDG!C57,) -> 0.02801185212 | D13: =IFERROR((RDG!D59+RDG!D46+RDG!D48)/RDG!D57,) -> -0.2116202726 | E13: -0.2396321247 | F13: =IFERROR((RDG!E59+RDG!E46+RDG!E48)/RDG!E57,) -> 0.01766173384 | G13: =IFERROR((RDG!F59+RDG!F46+RDG!F48)/RDG!F57,) -> 0.02107001823 | H13: =G13-F13 -> 0.00340828439 | I13: =IFERROR((RDG!G59+RDG!G46+RDG!G48)/RDG!G57,) -> 0.03241094324 | J13: 0.01134092501
B14: Neto profitna marža (neto dobit / ukupni prihod) | C14: =IFERROR(RDG!C63/RDG!C57,) -> 0.002460281877 | D14: =IFERROR(RDG!D63/RDG!D57,) -> -0.2426972174 | E14: =D14-C14 -> -0.2451574993 | F14: =IFERROR(RDG!E63/RDG!E57,) -> 0.001456578017 | G14: =IFERROR(RDG!F63/RDG!F57,) -> 0.004875059421 | H14: =G14-F14 -> 0.003418481405 | I14: =IFERROR(RDG!G63/RDG!G57,) -> 0.009931113188 | J14: =I14-G14 -> 0.005056053767
B16: * Ostvareni rezultati se uspoređuju s planom, osim plana za slijedeću godinu koji se uspoređuje s procijenjenim rezultatom tekuće godine
B17: ** Plavo osjenčana pozadina označava planirane vrijednosti
B58: Dodatni komentari i pojašnjenja na rezultate
B69: =HYPERLINK("#Sadržaj!A1","Povratak na sadržaj") -> Povratak na sadržaj

Sheet Likvidnost (hidden)
B1: =Naslovna!B3&" - "&Naslovna!I2 -> Ministarstvo državne imovine - Godišnji financijski plan poslovanja
B2: SAŽETI PRIKAZ POKAZATELJA LIKVIDNOSTI
B4: Društvo: | C4: =Podloga!B2 -> Zračna luka Osijek d.o.o.
B5: Tip dokumenta: | C5: =Naslovna!B8 -> Godišnji financijski plan poslovanja
B6: Sastavlja se za godinu: | C6: =Podloga!B8 -> 2025
B8: Pokazatelji likvidnosti
C9: =Podloga!B36 -> 2023. planirano | D9: =Podloga!C36 -> 2023. ostvareno | F9: =Podloga!D36 -> 2024. planirano | G9: =Podloga!E36 -> 2024. procijenjeno | I9: =Podloga!F36 -> 2025. planirano
B10: Neto radni kapital (u 000 kn) | C10: =Bilanca!C40-Bilanca!C115 -> -13997.5834 | D10: =Bilanca!D40-Bilanca!D115 -> -108.31 | E10: =D10-C10 -> 13889.2734 | F10: =Bilanca!E40-Bilanca!E115 -> -16043.471 | G10: =Bilanca!F40-Bilanca!F115 -> 173.737 | H10: =G10-F10 -> 16217.208 | I10: =Bilanca!G40-Bilanca!G115 -> -257.29 | J10: =I10-G10 -> -431.027
B11: Koeficijent tekuće likvidnosti | C11: =IFERROR(Bilanca!C40/Bilanca!C115,) -> 0.06244809336 | D11: =IFERROR(Bilanca!D40/Bilanca!D115,) -> 0.7407927706 | E11: =D11-C11 -> 0.6783446773 | F11: =IFERROR(Bilanca!E40/Bilanca!E115,) -> 0.03935907498 | G11: =IFERROR(Bilanca!F40/Bilanca!F115,) -> 1.40750618 | H11: =G11-F11 -> 1.368147106 | I11: =IFERROR(Bilanca!G40/Bilanca!G115,) -> 0.664706258 | J11: =I11-G11 -> -0.7427999225
B12: Koeficijent trenutne likvidnosti | C12: =IFERROR(Bilanca!C66/Bilanca!C115,) -> 0.04178164545 | D12: =IFERROR(Bilanca!D66/Bilanca!D115,) -> 0.1218233294 | E12: 0.08004168392 | F12: =IFERROR(Bilanca!E66/Bilanca!E115,) -> 0.02107689578 | G12: =IFERROR(Bilanca!F66/Bilanca!F115,) -> 0.7128596291 | H12: 0.6917827333 | I12: =IFERROR(Bilanca!G66/Bilanca!G115,) -> 0.2997301126 | J12: -0.4131295165
B13: Koeficijent financijske stabilnosti | C13: =IFERROR(Bilanca!C5/(Bilanca!C75+Bilanca!C103),) -> 4.147311527 | D13: =IFERROR(Bilanca!D5/(Bilanca!D75+Bilanca!D103),) -> 3.495251122 | E13: -0.6520604051 | F13: =IFERROR(Bilanca!E5/(Bilanca!E75+Bilanca!E103),) -> 5.325501841 | G13: =IFERROR(Bilanca!F5/(Bilanca!F75+Bilanca!F103),) -> 3.675178773 | H13: -1.650323068 | I13: =IFERROR(Bilanca!G5/(Bilanca!G75+Bilanca!G103),) -> 7.312800471 | J13: 3.637621699
B15: * Ostvareni rezultati se uspoređuju s planom, osim plana za slijedeću godinu koji se uspoređuje s procijenjenim rezultatom tekuće godine
B16: ** Plavo osjenčana pozadina označava planirane vrijednosti
B57: Dodatni komentari i pojašnjenja na rezultate
B68: =HYPERLINK("#Sadržaj!A1","Povratak na sadržaj") -> Povratak na sadržaj

Sheet _TM_Aktivnost (hidden)
A1: Left | B1: Top | C1: Right | D1: Bottom | E1: Ref
A2: 7 | B2: 13 | C2: 7 | D2: 16 | E2: $G$13:$G$16
A3: 4 | B3: 13 | C3: 4 | D3: 16 | E3: $D$13:$D$16

Sheet Aktivnost (hidden)
B1: =Naslovna!B3&" - "&Naslovna!I2 -> Ministarstvo državne imovine - Godišnji financijski plan poslovanja
B2: SAŽETI PRIKAZ POKAZATELJA AKTIVNOSTI
B4: Društvo: | C4: =Podloga!B2 -> Zračna luka Osijek d.o.o.
B5: Tip dokumenta: | C5: =Naslovna!B8 -> Godišnji financijski plan poslovanja
B6: Sastavlja se za godinu: | C6: =Podloga!B8 -> 2025
B8: Pokazatelji aktivnosti
C9: =Podloga!B36 -> 2023. planirano | D9: =Podloga!C36 -> 2023. ostvareno | F9: =Podloga!D36 -> 2024. planirano | G9: =Podloga!E36 -> 2024. procijenjeno | I9: =Podloga!F36 -> 2025. planirano
B10: Koeficijent obrtaja imovine | C10: =IFERROR(RDG!C57/Bilanca!C68,) -> 0.1097449801 | D10: =IFERROR(RDG!D57/Bilanca!D68,) -> 0.2179344331 | E10: =D10-C10 -> 0.1081894529 | F10: =IFERROR(RDG!E57/Bilanca!E68,) -> 0.1688614089 | G10: =IFERROR(RDG!F57/Bilanca!F68,) -> 0.2631006586 | H10: =G10-F10 -> 0.09423924969 | I10: =IFERROR(RDG!G57/Bilanca!G68,) -> 0.1475905667 | J10: =I10-G10 -> -0.1155100919
B11: Koeficijent obrtaja potraživanja | C11: =IFERROR(((RDG!C6+RDG!C7)/(Bilanca!C51)),) -> 0 | D11: =IFERROR(((RDG!D6+RDG!D7)/(Bilanca!D51)),) -> 0 | E11: 0 | F11: =IFERROR(((RDG!E6+RDG!E7)/(Bilanca!E51)),) -> 0 | G11: =IFERROR(((RDG!F6+RDG!F7)/(Bilanca!F51)),) -> 0 | H11: =G11-F11 -> 0 | I11: =IFERROR(((RDG!G6+RDG!G7)/(Bilanca!G51)),) -> 0 | J11: 0
B12: Koeficijent obrtaja neto radnog kapitala | C12: =IFERROR(RDG!C57/(Bilanca!C40-Bilanca!C115),) -> -0.1523317232 | D12: =IFERROR(RDG!D57/(Bilanca!D40-Bilanca!D115),) -> -27.36528086 | E12: -27.21294914 | F12: =IFERROR(RDG!E57/(Bilanca!E40-Bilanca!E115),) -> -0.2148184766 | G12: =IFERROR(RDG!F57/(Bilanca!F40-Bilanca!F115),) -> 22.19419582 | H12: 22.4090143 | I12: =IFERROR(RDG!G57/(Bilanca!G40-Bilanca!G115),) -> -15.51634731 | J12: -37.71054314
B13: Dani naplate potraživanja | C13: =IFERROR(365/C11,) -> 0 | D13: 0 | E13: 0 | F13: =IFERROR(365/F11,) -> 0 | G13: =IFERROR(365/G11,) -> 0 | H13: 0 | I13: =IFERROR(365/I11,) -> 0 | J13: 0
B14: Dani vezivanja zaliha | C14: =IFERROR(365/((RDG!C6+RDG!C7)/Bilanca!C41),) -> 18.77029109 | D14: =IFERROR(365/((RDG!D6+RDG!D7)/Bilanca!D41),) -> 8.648041506 | E14: -10.12224959 | F14: =IFERROR(365/((RDG!E6+RDG!E7)/Bilanca!E41),) -> 10.43323487 | G14: =IFERROR(365/((RDG!F6+RDG!F7)/Bilanca!F41),) -> 9.234881195 | H14: -1.19835367 | I14: =IFERROR(365/((RDG!G6+RDG!G7)/Bilanca!G41),) -> 10.4762313 | J14: 1.241350103
B15: Dani plaćanja dobavljačima | C15: =IFERROR(365/(RDG!C13/(Bilanca!C123)),) -> 164.4504786 | D15: =IFERROR(365/(RDG!D13/(Bilanca!D123)),) -> 23.18392007 | E15: -141.2665586 | F15: =IFERROR(365/(RDG!E13/(Bilanca!E123)),) -> 69.1931886 | G15: =IFERROR(365/(RDG!F13/(Bilanca!F123)),) -> 12.25663445 | H15: -56.93655415 | I15: =IFERROR(365/(RDG!G13/(Bilanca!G123)),) -> 39.19817124 | J15: 26.94153679
B16: Ekonomičnost ukupnog poslovanja | C16: =IFERROR(RDG!C57/RDG!C58,) -> 1.00246635 | D16: =IFERROR(RDG!D57/RDG!D58,) -> 0.8047012466 | E16: -0.1977651032 | F16: =IFERROR(RDG!E57/RDG!E58,) -> 1.001458703 | G16: =IFERROR(RDG!F57/RDG!F58,) -> 1.004898942 | H16: 0.003440239324 | I16: =IFERROR(RDG!G57/RDG!G58,) -> 1.010030729 | J16: 0.005131787443
B18: * Ostvareni rezultati se uspoređuju s planom, osim plana za slijedeću godinu koji se uspoređuje s procijenjenim rezultatom tekuće godine
B19: ** Plavo osjenčana pozadina označava planirane vrijednosti
B58: Dodatni komentari i pojašnjenja na rezultate
B69: =HYPERLINK("#Sadržaj!A1","Povratak na sadržaj") -> Povratak na sadržaj

Sheet Zaduženost (hidden)
B1: =Naslovna!B3&" - "&Naslovna!I2 -> Ministarstvo državne imovine - Godišnji financijski plan poslovanja
B2: SAŽETI PRIKAZ POKAZATELJA ZADUŽENOSTI
B4: Društvo: | C4: =Podloga!B2 -> Zračna luka Osijek d.o.o.
B5: Tip dokumenta: | C5: =Naslovna!B8 -> Godišnji financijski plan poslovanja
B6: Sastavlja se za godinu: | C6: =Podloga!B8 -> 2025
B8: Pokazatelji zaduženosti
C9: =Podloga!B36 -> 2023. planirano | D9: =Podloga!C36 -> 2023. ostvareno | F9: =Podloga!D36 -> 2024. planirano | G9: =Podloga!E36 -> 2024. procijenjeno | I9: =Podloga!F36 -> 2025. planirano
B10: Koeficijent zaduženosti | C10: =IFERROR(((Bilanca!C96+Bilanca!C103+Bilanca!C115+Bilanca!C130)/Bilanca!C68),) -> 0.9230231615 | D10: =IFERROR(((Bilanca!D96+Bilanca!D103+Bilanca!D115+Bilanca!D130)/Bilanca!D68),) -> 0.9402349951 | E10: =D10-C10 -> 0.01721183356 | F10: =IFERROR(((Bilanca!E96+Bilanca!E103+Bilanca!E115+Bilanca!E130)/Bilanca!E68),) -> 0.9554321793 | G10: =IFERROR(((Bilanca!F96+Bilanca!F103+Bilanca!F115+Bilanca!F130)/Bilanca!F68),) -> 0.9432572436 | H10: =G10-F10 -> -0.01217493573 | I10: =IFERROR(((Bilanca!G96+Bilanca!G103+Bilanca!G115+Bilanca!G130)/Bilanca!G68),) -> 0.9677896849 | J10: =I10-G10 -> 0.02453244127
B11: Koeficijent vlastitog financiranja (kapital/ukupna imovina) | C11: =IFERROR((Bilanca!C75/Bilanca!C68),) -> 0.07697691057 | D11: =IFERROR((Bilanca!D75/Bilanca!D68),) -> 0.05976537259 | E11: =D11-C11 -> -0.01721153798 | F11: =IFERROR((Bilanca!E75/Bilanca!E68),) -> 0.04456796766 | G11: =IFERROR((Bilanca!F75/Bilanca!F68),) -> 0.0567429611 | H11: =G11-F11 -> 0.01217499344 | I11: =IFERROR((Bilanca!G75/Bilanca!G68),) -> 0.03221027817 | J11: =I11-G11 -> -0.02453268293
B12: Koeficijent financiranja (ukupne obveze/kapital) | C12: =IFERROR(((Bilanca!C96+Bilanca!C103+Bilanca!C115+Bilanca!C130)/Bilanca!C75),) -> 11.99090941 | D12: =IFERROR(((Bilanca!D96+Bilanca!D103+Bilanca!D115+Bilanca!D130)/Bilanca!D75),) -> 15.73210296 | E12: =D12-C12 -> 3.741193548 | F12: =IFERROR(((Bilanca!E96+Bilanca!E103+Bilanca!E115+Bilanca!E130)/Bilanca!E75),) -> 21.43764298 | G12: =IFERROR(((Bilanca!F96+Bilanca!F103+Bilanca!F115+Bilanca!F130)/Bilanca!F75),) -> 16.62333486 | H12: -4.81430812 | I12: =IFERROR(((Bilanca!G96+Bilanca!G103+Bilanca!G115+Bilanca!G130)/Bilanca!G75),) -> 30.04598966 | J12: =I12-G12 -> 13.4226548
B13: Odnos ukupne imovine i kapitala | C13: =IFERROR(Bilanca!C68/Bilanca!C75,) -> 12.99090848 | D13: =IFERROR(Bilanca!D68/Bilanca!D75,) -> 16.73209681 | E13: =D13-C13 -> 3.741188332 | F13: =IFERROR(Bilanca!E68/Bilanca!E75,) -> 22.43763969 | G13: =IFERROR(Bilanca!F68/Bilanca!F75,) -> 17.62333126 | H13: -4.81430843 | I13: =IFERROR(Bilanca!G68/Bilanca!G75,) -> 31.04599081 | J13: =I13-G13 -> 13.42265955
B15: * Ostvareni rezultati se uspoređuju s planom, osim plana za slijedeću godinu koji se uspoređuje s procijenjenim rezultatom tekuće godine
B16: ** Plavo osjenčana pozadina označava planirane vrijednosti
B57: Dodatni komentari i pojašnjenja na rezultate
B68: =HYPERLINK("#Sadržaj!A1","Povratak na sadržaj") -> Povratak na sadržaj

Sheet DuPont (hidden)
B1: =Naslovna!B3&" - "&Naslovna!I2 -> Ministarstvo državne imovine - Godišnji financijski plan poslovanja
B2: DuPont analiza | R2: ROE
T3: Index
B4: Društvo: | G4: =Podloga!B2 -> Zračna luka Osijek d.o.o. | R4: =LEFT(Podloga!B36,8) -> 2023. pl | S4: =O14*W14 -> 0.00350759187
B5: Tip dokumenta: | G5: =Naslovna!B8 -> Godišnji financijski plan poslovanja | R5: =LEFT(Podloga!C36,7) -> 2023. o | S5: -0.884995411 | T5: =IFERROR((S5/S4)*100,) -> -25230.85478
B6: Sastavlja se za godinu: | G6: =Podloga!B8 -> 2025 | R6: =LEFT(Podloga!D36,8) -> 2024. pl | S6: 0.00551875773 | T6: -0.6235916776
R7: =LEFT(Podloga!E36,8) -> 2024. pr | S7: 0.02260423706 | T7: =IFERROR((S7/S5)*100,) -> -2.554164325
R8: =LEFT(Podloga!F36,8) -> 2025. pl | S8: 0.04550530782 | T8: 201.3131773
N12: ROA | V12: Odnos imovine i kapitala
P13: Index | X13: Index
N14: =LEFT(Podloga!B36,8) -> 2023. pl | O14: =S17*K17 -> 0.0002700035857 | V14: =LEFT(Podloga!B36,8) -> 2023. pl | W14: =IFERROR(Bilanca!C68/Bilanca!C75,) -> 12.99090848
J15: Neto profitna marža | N15: =LEFT(Podloga!C36,7) -> 2023. o | O15: =S18*K18 -> -0.05289208048 | P15: =IFERROR((O15/O14)*100,) -> -19589.39928 | R15: Koeficijent obrtaja imovine | V15: =LEFT(Podloga!C36,7) -> 2023. o | W15: =IFERROR(Bilanca!D68/Bilanca!D75,) -> 16.73209681 | X15: =IFERROR((W15/W14)*100,) -> 128.798512
L16: Index | N16: =LEFT(Podloga!D36,8) -> 2024. pl | O16: =S19*K19 -> 0.000245959816 | P16: -0.4650220105 | T16: Index | V16: =LEFT(Podloga!D36,8) -> 2024. pl | W16: =IFERROR(Bilanca!E68/Bilanca!E75,) -> 22.43763969 | X16: 134.0993896
J17: =LEFT(Podloga!B36,8) -> 2023. pl | K17: =IFERROR(G26/C36,) -> 0.002460281877 | N17: =LEFT(Podloga!E36,8) -> 2024. pr | O17: =S20*K20 -> 0.001282631344 | P17: =IFERROR((O17/O15)*100,) -> -2.424996961 | R17: =LEFT(Podloga!B36,8) -> 2023. pl | S17: =IFERROR(O26/W26,) -> 0.1097449801 | V17: =LEFT(Podloga!E36,8) -> 2024. pr | W17: =IFERROR(Bilanca!F68/Bilanca!F75,) -> 17.62333126 | X17: =IFERROR((W17/W15)*100,) -> 105.3264959
J18: =LEFT(Podloga!C36,8) -> 2023. os | K18: =IFERROR(G27/C37,) -> -0.2426972174 | L18: =IFERROR(K18/K17*100,) -> -9864.610216 | N18: =LEFT(Podloga!F36,8) -> 2025. pl | O18: =S21*K21 -> 0.001465738623 | P18: 114.2759086 | R18: =LEFT(Podloga!C36,7) -> 2023. o | S18: =IFERROR(O27/W27,) -> 0.2179344331 | T18: =IFERROR((S18/S17)*100,) -> 198.5825983 | V18: =LEFT(Podloga!F36,8) -> 2025. pl | W18: =IFERROR(Bilanca!G68/Bilanca!G75,) -> 31.04599081 | X18: 176.1641449
J19: =LEFT(Podloga!D36,8) -> 2024. pl | K19: =IFERROR(G28/C38,) -> 0.001456578017 | L19: =IFERROR(K19/K18*100,) -> -0.6001626356 | R19: =LEFT(Podloga!D36,8) -> 2024. pl | S19: =IFERROR(O28/W28,) -> 0.1688614089 | T19: =IFERROR((S19/S18)*100,) -> 77.48266601
J20: =LEFT(Podloga!E36,8) -> 2024. pr | K20: =IFERROR(G29/C39,) -> 0.004875059421 | L20: =IFERROR(K20/K18*100,) -> -2.008700171 | R20: =LEFT(Podloga!E36,8) -> 2024. pr | S20: =IFERROR(O29/W29,) -> 0.2631006586 | T20: =IFERROR((S20/S18)*100,) -> 120.7246854
J21: =LEFT(Podloga!F36,8) -> 2025. pl | K21: =IFERROR(G30/C40,) -> 0.009931113188 | L21: =IFERROR(K21/K20*100,) -> 203.7126593 | R21: =LEFT(Podloga!F36,8) -> 2025. pl | S21: =IFERROR(O30/W30,) -> 0.1475905667 | T21: =IFERROR((S21/S20)*100,) -> 56.0966162
F24: Neto dobit ili gubitak razdoblja (u mil. HRK) | N24: Ukupni prihodi (u mil. HRK) | V24: Ukupna imovina (u mil. HRK)
H25: Index | P25: Index | X25: Index
F26: =LEFT(Podloga!B36,8) -> 2023. pl | G26: =RDG!C63 -> 5.246 | N26: =LEFT(Podloga!B36,8) -> 2023. pl | O26: =RDG!C57 -> 2132.276 | V26: =LEFT(Podloga!B36,8) -> 2023. pl | W26: =Bilanca!C68 -> 19429.3716
F27: =LEFT(Podloga!C36,7) -> 2023. o | G27: =RDG!D63 -> -719.33843 | H27: =IFERROR(G27/G26*100,) -> -13712.13172 | N27: =LEFT(Podloga!C36,7) -> 2023. o | O27: =RDG!D57 -> 2963.93357 | P27: =IFERROR(O27/O26*100,) -> 139.0032796 | V27: =LEFT(Podloga!C36,7) -> 2023. o | W27: =Bilanca!D68 -> 13600.116 | X27: =IFERROR(W27/W26*100,) -> 69.99771418
F28: =LEFT(Podloga!D36,8) -> 2024. pl | G28: =RDG!E63 -> 5.02 | H28: =IFERROR(G28/G27*100,) -> -0.6978634521 | N28: =LEFT(Podloga!D36,8) -> 2024. pl | O28: =RDG!E57 -> 3446.434 | P28: =IFERROR(O28/O27*100,) -> 116.2790568 | V28: =LEFT(Podloga!D36,8) -> 2024. pl | W28: =Bilanca!E68 -> 20409.838 | X28: =IFERROR(W28/W27*100,) -> 150.0710582
F29: =LEFT(Podloga!E36,8) -> 2024. pr | G29: =RDG!F63 -> 18.798 | H29: =IFERROR(G29/G27*100,) -> -2.613234497 | N29: =LEFT(Podloga!E36,8) -> 2024. pr | O29: =RDG!F57 -> 3855.953 | P29: =IFERROR(O29/O27*100,) -> 130.095797 | V29: =LEFT(Podloga!E36,8) -> 2024. pr | W29: =Bilanca!F68 -> 14655.809 | X29: =IFERROR(W29/W27*100,) -> 107.7623823
F30: =LEFT(Podloga!F36,8) -> 2025. pl | G30: =RDG!G63 -> 39.647 | H30: =IFERROR(G30/G29*100,) -> 210.9107352 | N30: =LEFT(Podloga!F36,8) -> 2025. pl | O30: =RDG!G57 -> 3992.201 | P30: =IFERROR(O30/O29*100,) -> 103.5334456 | V30: =LEFT(Podloga!F36,8) -> 2025. pl | W30: =Bilanca!G68 -> 27049.161 | X30: =IFERROR(W30/W29*100,) -> 184.5627287
B34: Ukupni prihodi (u mil. HRK) | J34: Ukupni rashodi + porez na dobit (u mil. HRK) | R34: Kratkotrajna imovina (u mil. HRK) | Z34: Dugotrajna imovina (u mil. HRK)
D35: Index | L35: Index | T35: Index | AB35: Index
B36: =LEFT(Podloga!B36,8) -> 2023. pl | C36: =RDG!C57 -> 2132.276 | J36: =LEFT(Podloga!B36,8) -> 2023. pl | K36: =RDG!C58+RDG!C62 -> 2127.03 | R36: =LEFT(Podloga!B36,8) -> 2023. pl | S36: =Bilanca!C40+Bilanca!C67 -> 932.3456 | Z36: =LEFT(Podloga!B36,8) -> 2023. pl | AA36: =Bilanca!C5 -> 18497.026
B37: =LEFT(Podloga!C36,7) -> 2023. o | C37: =RDG!D57 -> 2963.93357 | D37: =IFERROR(C37/C36*100,) -> 139.0032796 | J37: =LEFT(Podloga!C36,7) -> 2023. o | K37: =RDG!D58+RDG!D62 -> 3683.272 | L37: =IFERROR(K37/K36*100,) -> 173.1650235 | R37: =LEFT(Podloga!C36,7) -> 2023. o | S37: =Bilanca!D40+Bilanca!D67 -> 414.386 | T37: =IFERROR(S37/S36*100,) -> 44.44553608 | Z37: =LEFT(Podloga!C36,7) -> 2023. o | AA37: =Bilanca!D5 -> 13185.73 | AB37: =IFERROR(AA37/AA36*100,) -> 71.28567587
B38: =LEFT(Podloga!D36,8) -> 2024. pl | C38: =RDG!E57 -> 3446.434 | D38: =IFERROR(C38/C37*100,) -> 116.2790568 | J38: =LEFT(Podloga!D36,8) -> 2024. pl | K38: =RDG!E58+RDG!E62 -> 3441.414 | L38: =IFERROR(K38/K37*100,) -> 93.43361012 | R38: =LEFT(Podloga!D36,8) -> 2024. pl | S38: =Bilanca!E40+Bilanca!E67 -> 657.328 | T38: =IFERROR(S38/S37*100,) -> 158.6269806 | Z38: =LEFT(Podloga!D36,8) -> 2024. pl | AA38: =Bilanca!E5 -> 19752.51 | AB38: =IFERROR(AA38/AA37*100,) -> 149.8021725
B39: =LEFT(Podloga!E36,8) -> 2024. pr | C39: =RDG!F57 -> 3855.953 | D39: =IFERROR(C39/C37*100,) -> 130.095797 | J39: =LEFT(Podloga!E36,8) -> 2024. pr | K39: =RDG!F58+RDG!F62 -> 3837.155 | L39: =IFERROR(K39/K37*100,) -> 104.1778886 | R39: =LEFT(Podloga!E36,8) -> 2024. pr | S39: =Bilanca!F40+Bilanca!F67 -> 722.225 | T39: =IFERROR(S39/S37*100,) -> 174.2879827 | Z39: =LEFT(Podloga!E36,8) -> 2024. pr | AA39: =Bilanca!F5 -> 13933.584 | AB39: =IFERROR(AA39/AA37*100,) -> 105.671692
B40: =LEFT(Podloga!F36,8) -> 2025. pl | C40: =RDG!G57 -> 3992.201 | D40: =IFERROR(C40/C39*100,) -> 103.5334456 | J40: =LEFT(Podloga!F36,8) -> 2025. pl | K40: =RDG!G58+RDG!G62 -> 3952.554 | L40: =IFERROR(K40/K39*100,) -> 103.0074104 | R40: =LEFT(Podloga!F36,8) -> 2025. pl | S40: =Bilanca!G40+Bilanca!G67 -> 616.817 | T40: =IFERROR(S40/S39*100,) -> 85.40510229 | Z40: =LEFT(Podloga!F36,8) -> 2025. pl | AA40: =Bilanca!G5 -> 26432.344 | AB40: =IFERROR(AA40/AA39*100,) -> 189.7024054
A44: * Procijenjeni i planirani rezultat za tekuću godinu se uspoređuju s ostvarenim rezultatom poslovanja u prethodnoj godini
B50: =HYPERLINK("#Sadržaj!A1","Povratak na sadržaj") -> Povratak na sadržaj

Sheet _TM_Altman Integral (Basic) (hidden)
A1: Left | B1: Top | C1: Right | D1: Bottom | E1: Ref
A2: 2 | B2: 1 | C2: 10 | D2: 1 | E2: $B$1:$J$1

Sheet Altman Integral (Basic) (hidden)
B1: =Naslovna!B3&" - "&Naslovna!I2 -> Ministarstvo državne imovine - Godišnji financijski plan poslovanja
A2: Altman Integral (Basic)
B4: Društvo: | C4: =Podloga!B2 -> Zračna luka Osijek d.o.o.
B5: Tip dokumenta: | C5: =Naslovna!B8 -> Godišnji financijski plan poslovanja
B6: Sastavlja se za godinu: | C6: =Podloga!B8 -> 2025
B8: Basic model se koristi za proizvodna trgovačka društva koja kotiraju na burzi
C30: =LEFT(Podloga!B36,8) -> 2023. pl | D30: =LEFT(Podloga!C36,7) -> 2023. o | E30: =LEFT(Podloga!D36,8) -> 2024. pl | F30: =LEFT(Podloga!E36,8) -> 2024. pr | G30: =LEFT(Podloga!F36,8) -> 2025. pl
B31: Z-score | C31: =IFERROR('Dashboard (data)'!$BT$2*'Dashboard (data)'!BM2+'Dashboard (data)'!$BT$3*'Dashboard (data)'!BM3+'Dashboard (data)'!$BT$4*'Dashboard (data)'!BM4+'Dashboard (data)'!$BT$5*'Dashboard (data)'!BM5+'Dashboard (data)'!$BT$6*'Dashboard (data)'!BM6,) -> 0.03422396945 | D31: =IFERROR('Dashboard (data)'!$BT$2*'Dashboard (data)'!BN2+'Dashboard (data)'!$BT$3*'Dashboard (data)'!BN3+'Dashboard (data)'!$BT$4*'Dashboard (data)'!BN4+'Dashboard (data)'!$BT$5*'Dashboard (data)'!BN5+'Dashboard (data)'!$BT$6*'Dashboard (data)'!BN6,) -> -0.1072530594 | E31: =IFERROR('Dashboard (data)'!$BT$2*'Dashboard (data)'!BO2+'Dashboard (data)'!$BT$3*'Dashboard (data)'!BO3+'Dashboard (data)'!$BT$4*'Dashboard (data)'!BO4+'Dashboard (data)'!$BT$5*'Dashboard (data)'!BO5+'Dashboard (data)'!$BT$6*'Dashboard (data)'!BO6,) -> 0.04080314601 | F31: =IFERROR('Dashboard (data)'!$BT$2*'Dashboard (data)'!BP2+'Dashboard (data)'!$BT$3*'Dashboard (data)'!BP3+'Dashboard (data)'!$BT$4*'Dashboard (data)'!BP4+'Dashboard (data)'!$BT$5*'Dashboard (data)'!BP5+'Dashboard (data)'!$BT$6*'Dashboard (data)'!BP6,) -> 0.07593567165 | G31: =IFERROR('Dashboard (data)'!$BT$2*'Dashboard (data)'!BQ2+'Dashboard (data)'!$BT$3*'Dashboard (data)'!BQ3+'Dashboard (data)'!$BT$4*'Dashboard (data)'!BQ4+'Dashboard (data)'!$BT$5*'Dashboard (data)'!BQ5+'Dashboard (data)'!$BT$6*'Dashboard (data)'!BQ6,) -> 0.04903410128
B34: Objašnjenje | C34: Raspon vrijednosti vezan uz rizik bankrota (od -4,00 do +8,00)
C35: Vrlo niski rizik | D35: Zona nesigurnosti | F35: Visoki rizik
B36: Z-score model (Basic) | C36: ≥ 3,00 | D36: 2,99 – 1,81 | F36: ≤ 1,80
C39: =LEFT(Podloga!B36,8) -> 2023. pl | D39: =LEFT(Podloga!C36,7) -> 2023. o | E39: =LEFT(Podloga!D36,8) -> 2024. pl | F39: =LEFT(Podloga!E36,8) -> 2024. pr | G39: =LEFT(Podloga!F36,8) -> 2025. pl
B40: Kratkotrajna imovina | C40: =Bilanca!C40 -> 932.3456 | D40: =Bilanca!D40 -> 309.541 | E40: =Bilanca!E40 -> 657.328 | F40: =Bilanca!F40 -> 600.079 | G40: =Bilanca!G40 -> 510.067
B41: Ukupna imovina | C41: =Bilanca!C68 -> 19429.3716 | D41: =Bilanca!D68 -> 13600.116 | E41: =Bilanca!E68 -> 20409.838 | F41: =Bilanca!F68 -> 14655.809 | G41: =Bilanca!G68 -> 27049.161
B42: Zadržana dobit | C42: =Bilanca!C89 -> -1988.033 | D42: =Bilanca!D89 -> -1945.845 | E42: =Bilanca!E89 -> -2573.795 | F42: =Bilanca!F89 -> -2665.184 | G42: =Bilanca!G89 -> -2646.386
B43: Operativna dobit (EBIT) | C43: =RDG!C59+RDG!C46+RDG!C48 -> 59.729 | D43: =RDG!D59+RDG!D46+RDG!D48 -> -627.22843 | E43: =RDG!E59+RDG!E46+RDG!E48 -> 60.87 | F43: =RDG!F59+RDG!F46+RDG!F48 -> 81.245 | G43: =RDG!G59+RDG!G46+RDG!G48 -> 129.391
B44: Knjigovodstvena vrijednost ukupnih obveza | C44: =Bilanca!C103+Bilanca!C115 -> 17894.32 | D44: =Bilanca!D103+Bilanca!D115 -> 3377.505 | E44: =Bilanca!E103+Bilanca!E115 -> 19500.216 | F44: =Bilanca!F103+Bilanca!F115 -> 3385.995 | G44: =Bilanca!G103+Bilanca!G115 -> 3510.627
B45: Ukupni prihodi | C45: =RDG!C57 -> 2132.276 | D45: =RDG!D57 -> 2963.93357 | E45: =RDG!E57 -> 3446.434 | F45: =RDG!F57 -> 3855.953 | G45: =RDG!G57 -> 3992.201
B46: Tržišna vrijednost vlasničkog kapitala** | C46: =Podloga!B32*Podloga!B33 ->  | D46: =Podloga!B32*Podloga!B33 ->  | E46: =Podloga!C32*Podloga!C33 ->  | F46: =Podloga!C32*Podloga!C33 ->  | G46: =Podloga!C32*Podloga!C33 -> 
B47: * Plavo osjenčana pozadina označava planirane vrijednosti
B48: ** Umjesto tržišne vrijednosti vlasničkog kapitala za buduće razdoblje uzima se zadnje važeća vrijednost
B50: Dodatni komentari i pojašnjenja na rezultate
B61: =HYPERLINK("#Sadržaj!A1","Povratak na sadržaj") -> Povratak na sadržaj

Sheet _TM_Altman Integral (A) (hidden)
A1: Left | B1: Top | C1: Right | D1: Bottom | E1: Ref
A2: 2 | B2: 1 | C2: 2 | D2: 1 | E2: $B$1

Sheet Altman Integral (A) (hidden)
B1: =Naslovna!B3&" - "&Naslovna!I2 -> Ministarstvo državne imovine - Godišnji financijski plan poslovanja
A2: Altman Integral (A)
B4: Društvo: | C4: =Podloga!B2 -> Zračna luka Osijek d.o.o.
B5: Tip dokumenta: | C5: =Naslovna!B8 -> Godišnji financijski plan poslovanja
B6: Sastavlja se za godinu: | C6: =Podloga!B8 -> 2025
B9: A model se koristi za trgovačka društva koja ne kotiraju na burzi
C26: =LEFT(Podloga!B36,8) -> 2023. pl | D26: =LEFT(Podloga!C36,7) -> 2023. o | E26: =LEFT(Podloga!D36,8) -> 2024. pl | F26: =LEFT(Podloga!E36,8) -> 2024. pr | G26: =LEFT(Podloga!F36,8) -> 2025. pl
B27: Z-score | C27: =IFERROR('Dashboard (data)'!$BT$13*'Dashboard (data)'!BM13+'Dashboard (data)'!$BT$14*'Dashboard (data)'!BM14+'Dashboard (data)'!$BT$15*'Dashboard (data)'!BM15+'Dashboard (data)'!$BT$16*'Dashboard (data)'!BM16+'Dashboard (data)'!$BT$17*'Dashboard (data)'!BM17,) -> 0.1484592284 | D27: =IFERROR('Dashboard (data)'!$BT$13*'Dashboard (data)'!BN13+'Dashboard (data)'!$BT$14*'Dashboard (data)'!BN14+'Dashboard (data)'!$BT$15*'Dashboard (data)'!BN15+'Dashboard (data)'!$BT$16*'Dashboard (data)'!BN16+'Dashboard (data)'!$BT$17*'Dashboard (data)'!BN17,) -> 0.4018365271 | E27: =IFERROR('Dashboard (data)'!$BT$13*'Dashboard (data)'!BO13+'Dashboard (data)'!$BT$14*'Dashboard (data)'!BO14+'Dashboard (data)'!$BT$15*'Dashboard (data)'!BO15+'Dashboard (data)'!$BT$16*'Dashboard (data)'!BO16+'Dashboard (data)'!$BT$17*'Dashboard (data)'!BO17,) -> 0.1689890728 | F27: =IFERROR('Dashboard (data)'!$BT$13*'Dashboard (data)'!BP13+'Dashboard (data)'!$BT$14*'Dashboard (data)'!BP14+'Dashboard (data)'!$BT$15*'Dashboard (data)'!BP15+'Dashboard (data)'!$BT$16*'Dashboard (data)'!BP16+'Dashboard (data)'!$BT$17*'Dashboard (data)'!BP17,) -> 0.5865395657 | G27: =IFERROR('Dashboard (data)'!$BT$13*'Dashboard (data)'!BQ13+'Dashboard (data)'!$BT$14*'Dashboard (data)'!BQ14+'Dashboard (data)'!$BT$15*'Dashboard (data)'!BQ15+'Dashboard (data)'!$BT$16*'Dashboard (data)'!BQ16+'Dashboard (data)'!$BT$17*'Dashboard (data)'!BQ17,) -> 0.5089077542
B30: Objašnjenje | C30: Raspon vrijednosti vezan uz rizik bankrota (od -4,00 do +8,00)
C31: Vrlo niski rizik | D31: Zona nesigurnosti | F31: Visoki rizik
B32: Z-score model (A model) | C32: ≥ 2,90 | D32: 2,89 – 1,24 | F32: ≤ 1,23
C34: =LEFT(Podloga!B36,8) -> 2023. pl | D34: =LEFT(Podloga!C36,7) -> 2023. o | E34: =LEFT(Podloga!D36,8) -> 2024. pl | F34: =LEFT(Podloga!E36,8) -> 2024. pr | G34: =LEFT(Podloga!F36,8) -> 2025. pl
B35: Kratkotrajna imovina | C35: =Bilanca!C40 -> 932.3456 | D35: =Bilanca!D40 -> 309.541 | E35: =Bilanca!E40 -> 657.328 | F35: =Bilanca!F40 -> 600.079 | G35: =Bilanca!G40 -> 510.067
B36: Ukupna imovina | C36: =Bilanca!C68 -> 19429.3716 | D36: =Bilanca!D68 -> 13600.116 | E36: =Bilanca!E68 -> 20409.838 | F36: =Bilanca!F68 -> 14655.809 | G36: =Bilanca!G68 -> 27049.161
B37: Zadržana dobit | C37: =Bilanca!C89 -> -1988.033 | D37: =Bilanca!D89 -> -1945.845 | E37: =Bilanca!E89 -> -2573.795 | F37: =Bilanca!F89 -> -2665.184 | G37: =Bilanca!G89 -> -2646.386
B38: Operativna dobit (EBIT) | C38: =RDG!C59+RDG!C46+RDG!C48 -> 59.729 | D38: =RDG!D59+RDG!D46+RDG!D48 -> -627.22843 | E38: =RDG!E59+RDG!E46+RDG!E48 -> 60.87 | F38: =RDG!F59+RDG!F46+RDG!F48 -> 81.245 | G38: =RDG!G59+RDG!G46+RDG!G48 -> 129.391
B39: Knjigovodstvena vrijednost ukupnih obveza | C39: =Bilanca!C103+Bilanca!C115 -> 17894.32 | D39: =Bilanca!D103+Bilanca!D115 -> 3377.505 | E39: =Bilanca!E103+Bilanca!E115 -> 19500.216 | F39: =Bilanca!F103+Bilanca!F115 -> 3385.995 | G39: =Bilanca!G103+Bilanca!G115 -> 3510.627
B40: Ukupni prihodi | C40: =RDG!C57 -> 2132.276 | D40: =RDG!D57 -> 2963.93357 | E40: =RDG!E57 -> 3446.434 | F40: =RDG!F57 -> 3855.953 | G40: =RDG!G57 -> 3992.201
B41: Knjigovodstvena vrijednost vlasn. kapitala | C41: =Bilanca!C76+Bilanca!C77 -> 3478.399 | D41: =Bilanca!D76+Bilanca!D77 -> 3478 | E41: =Bilanca!E76+Bilanca!E77 -> 3478.4 | F41: =Bilanca!F76+Bilanca!F77 -> 3478 | G41: =Bilanca!G76+Bilanca!G77 -> 3478
B43: * Plavo osjenčana pozadina označava planirane vrijednosti
B46: Dodatni komentari i pojašnjenja na rezultate
B57: =HYPERLINK("#Sadržaj!A1","Povratak na sadržaj") -> Povratak na sadržaj

Sheet _TM_Altman Integral (B) (hidden)
A1: Left | B1: Top | C1: Right | D1: Bottom | E1: Ref
A2: 2 | B2: 1 | C2: 7 | D2: 1 | E2: $B$1:$G$1

Sheet Altman Integral (B) (hidden)
B1: =Naslovna!B3&" - "&Naslovna!I2 -> Ministarstvo državne imovine - Godišnji financijski plan poslovanja
A2: Altman Integral (B)
B4: Društvo: | C4: =Podloga!B2 -> Zračna luka Osijek d.o.o.
B5: Tip dokumenta: | C5: =Naslovna!B8 -> Godišnji financijski plan poslovanja
B6: Sastavlja se za godinu: | C6: =Podloga!B8 -> 2025
B9: B model se koristi za neproizvodna trgovačka društva koja kotiraju na burzi
C26: =LEFT(Podloga!B36,8) -> 2023. pl | D26: =LEFT(Podloga!C36,7) -> 2023. o | E26: =LEFT(Podloga!D36,8) -> 2024. pl | F26: =LEFT(Podloga!E36,8) -> 2024. pr | G26: =LEFT(Podloga!F36,8) -> 2025. pl
B27: Z-score | C27: =IFERROR('Dashboard (data)'!$BT$23*'Dashboard (data)'!BM23+'Dashboard (data)'!$BT$24*'Dashboard (data)'!BM24+'Dashboard (data)'!$BT$25*'Dashboard (data)'!BM25+'Dashboard (data)'!$BT$26*'Dashboard (data)'!BM26,) -> 0 | D27: =IFERROR('Dashboard (data)'!$BT$23*'Dashboard (data)'!BN23+'Dashboard (data)'!$BT$24*'Dashboard (data)'!BN24+'Dashboard (data)'!$BT$25*'Dashboard (data)'!BN25+'Dashboard (data)'!$BT$26*'Dashboard (data)'!BN26,) -> 0 | E27: =IFERROR('Dashboard (data)'!$BT$23*'Dashboard (data)'!BO23+'Dashboard (data)'!$BT$24*'Dashboard (data)'!BO24+'Dashboard (data)'!$BT$25*'Dashboard (data)'!BO25+'Dashboard (data)'!$BT$26*'Dashboard (data)'!BO26,) -> 0 | F27: =IFERROR('Dashboard (data)'!$BT$23*'Dashboard (data)'!BP23+'Dashboard (data)'!$BT$24*'Dashboard (data)'!BP24+'Dashboard (data)'!$BT$25*'Dashboard (data)'!BP25+'Dashboard (data)'!$BT$26*'Dashboard (data)'!BP26,) -> 0 | G27: =IFERROR('Dashboard (data)'!$BT$23*'Dashboard (data)'!BQ23+'Dashboard (data)'!$BT$24*'Dashboard (data)'!BQ24+'Dashboard (data)'!$BT$25*'Dashboard (data)'!BQ25+'Dashboard (data)'!$BT$26*'Dashboard (data)'!BQ26,) -> 0
B30: Objašnjenje | C30: Raspon vrijednosti vezan uz rizik bankrota (od -4,00 do +8,00)
C31: Vrlo niski rizik | D31: Zona nesigurnosti | F31: Visoki rizik
B32: Z-score model (B model) | C32: ≥ 2,60 | D32: 2,59 – 1,11 | F32: ≤ 1,1
C34: =LEFT(Podloga!B36,8) -> 2023. pl | D34: =LEFT(Podloga!C36,7) -> 2023. o | E34: =LEFT(Podloga!D36,8) -> 2024. pl | F34: =LEFT(Podloga!E36,8) -> 2024. pr | G34: =LEFT(Podloga!F36,8) -> 2025. pl
B35: Kratkotrajna imovina | C35: =Bilanca!C40 -> 932.3456 | D35: =Bilanca!D40 -> 309.541 | E35: =Bilanca!E40 -> 657.328 | F35: =Bilanca!F40 -> 600.079 | G35: =Bilanca!G40 -> 510.067
B36: Ukupna imovina | C36: =Bilanca!C68 -> 19429.3716 | D36: =Bilanca!D68 -> 13600.116 | E36: =Bilanca!E68 -> 20409.838 | F36: =Bilanca!F68 -> 14655.809 | G36: =Bilanca!G68 -> 27049.161
B37: Zadržana dobit | C37: =Bilanca!C89 -> -1988.033 | D37: =Bilanca!D89 -> -1945.845 | E37: =Bilanca!E89 -> -2573.795 | F37: =Bilanca!F89 -> -2665.184 | G37: =Bilanca!G89 -> -2646.386
B38: Operativna dobit (EBIT) | C38: =RDG!C59+RDG!C46+RDG!C48 -> 59.729 | D38: =RDG!D59+RDG!D46+RDG!D48 -> -627.22843 | E38: =RDG!E59+RDG!E46+RDG!E48 -> 60.87 | F38: =RDG!F59+RDG!F46+RDG!F48 -> 81.245 | G38: =RDG!G59+RDG!G46+RDG!G48 -> 129.391
B39: Knjigovodstvena vrijednost ukupnih obveza | C39: =Bilanca!C103+Bilanca!C115 -> 17894.32 | D39: =Bilanca!D103+Bilanca!D115 -> 3377.505 | E39: =Bilanca!E103+Bilanca!E115 -> 19500.216 | F39: =Bilanca!F103+Bilanca!F115 -> 3385.995 | G39: =Bilanca!G103+Bilanca!G115 -> 3510.627
B40: Ukupni prihodi | C40: =RDG!C57 -> 2132.276 | D40: =RDG!D57 -> 2963.93357 | E40: =RDG!E57 -> 3446.434 | F40: =RDG!F57 -> 3855.953 | G40: =RDG!G57 -> 3992.201
B41: Tržišna vrijednost vlasničkog kapitala** | C41: =Podloga!B32*Podloga!B33 ->  | D41: =Podloga!B32*Podloga!B33 ->  | E41: =Podloga!C32*Podloga!C33 ->  | F41: =Podloga!C32*Podloga!C33 ->  | G41: =Podloga!C32*Podloga!C33 -> 
B43: * Plavo osjenčana pozadina označava planirane vrijednosti
B44: ** Umjesto tržišne vrijednosti vlasničkog kapitala za buduće razdoblje uzima se zadnje važeća vrijednost
B46: Dodatni komentari i pojašnjenja na rezultate
B57: =HYPERLINK("#Sadržaj!A1","Povratak na sadržaj") -> Povratak na sadržaj

Sheet _TM_Dashboard (hidden)
A1: Left | B1: Top | C1: Right | D1: Bottom | E1: Ref
A2: 1 | B2: 33 | C2: 7 | D2: 33 | E2: $A$33:$G$33
A3: 1 | B3: 6 | C3: 16 | D3: 6 | E3: $A$6:$P$6
A4: 2 | B4: 23 | C4: 8 | D4: 27 | E4: $B$23:$H$27
A5: 1 | B5: 28 | C5: 16 | D5: 28 | E5: $A$28:$P$28
A6: 1 | B6: 30 | C6: 16 | D6: 30 | E6: $A$30:$P$30
A7: 1 | B7: 34 | C7: 7 | D7: 34 | E7: $A$34:$G$34

Sheet _TM_Dashboard (data) (hidden)
A1: Left | B1: Top | C1: Right | D1: Bottom | E1: Ref
A2: 53 | B2: 59 | C2: 60 | D2: 65 | E2: $BA$59:$BH$65
A3: 53 | B3: 1 | C3: 60 | D3: 5 | E3: $BA$1:$BH$5
A4: 53 | B4: 6 | C4: 60 | D4: 9 | E4: $BA$6:$BH$9
A5: 53 | B5: 11 | C5: 60 | D5: 13 | E5: $BA$11:$BH$13
A6: 53 | B6: 14 | C6: 60 | D6: 16 | E6: $BA$14:$BH$16
A7: 53 | B7: 17 | C7: 60 | D7: 26 | E7: $BA$17:$BH$26
A8: 53 | B8: 27 | C8: 60 | D8: 30 | E8: $BA$27:$BH$30
A9: 53 | B9: 31 | C9: 60 | D9: 34 | E9: $BA$31:$BH$34
A10: 53 | B10: 35 | C10: 60 | D10: 37 | E10: $BA$35:$BH$37
A11: 53 | B11: 39 | C11: 60 | D11: 41 | E11: $BA$39:$BH$41
A12: 53 | B12: 52 | C12: 59 | D12: 56 | E12: $BA$52:$BG$56
A13: 53 | B13: 68 | C13: 60 | D13: 75 | E13: $BA$68:$BH$75
A14: 53 | B14: 79 | C14: 60 | D14: 94 | E14: $BA$79:$BH$94
A15: 53 | B15: 95 | C15: 55 | D15: 107 | E15: $BA$95:$BC$107
A16: 64 | B16: 1 | C16: 72 | D16: 8 | E16: $BL$1:$BT$8
A17: 64 | B17: 12 | C17: 72 | D17: 19 | E17: $BL$12:$BT$19
A18: 64 | B18: 22 | C18: 72 | D18: 28 | E18: $BL$22:$BT$28
A19: 66 | B19: 120 | C19: 72 | D19: 127 | E19: $BN$120:$BT$127
A20: 86 | B20: 1 | C20: 90 | D20: 35 | E20: $CH$1:$CL$35
A21: 84 | B21: 1 | C21: 84 | D21: 35 | E21: $CF$1:$CF$35
A22: 85 | B22: 1 | C22: 85 | D22: 18 | E22: $CG$1:$CG$18
A23: 85 | B23: 19 | C23: 85 | D23: 35 | E23: $CG$19:$CG$35
A24: 94 | B24: 1 | C24: 98 | D24: 29 | E24: $CP$1:$CT$29
A25: 92 | B25: 1 | C25: 92 | D25: 29 | E25: $CN$1:$CN$29
A26: 93 | B26: 1 | C26: 93 | D26: 15 | E26: $CO$1:$CO$15
A27: 93 | B27: 16 | C27: 93 | D27: 29 | E27: $CO$16:$CO$29
A28: 100 | B28: 17 | C28: 110 | D28: 29 | E28: $CV$17:$DF$29
A29: 101 | B29: 1 | C29: 108 | D29: 8 | E29: $CW$1:$DD$8
A30: 110 | B30: 1 | C30: 116 | D30: 4 | E30: $DF$1:$DL$4
A31: 110 | B31: 7 | C31: 116 | D31: 12 | E31: $DF$7:$DL$12
A32: 118 | B32: 1 | C32: 125 | D32: 4 | E32: $DN$1:$DU$4
A33: 118 | B33: 6 | C33: 125 | D33: 12 | E33: $DN$6:$DU$12
A34: 118 | B34: 14 | C34: 125 | D34: 19 | E34: $DN$14:$DU$19
A35: 112 | B35: 15 | C35: 115 | D35: 18 | E35: $DH$15:$DK$18
A36: 112 | B36: 20 | C36: 115 | D36: 23 | E36: $DH$20:$DK$23
A37: 53 | B37: 43 | C37: 58 | D37: 46 | E37: $BA$43:$BF$46
A38: 76 | B38: 2 | C38: 76 | D38: 3 | E38: $BX$2:$BX$3

Sheet Dashboard (data) (hidden)
AO1: Računovodstveni standard | AP1: Pravni oblik | AR1: Funkcija revizorski | AS1: FUNKCIJA NO | AT1: PREDSTAVNIK | AU1: SPOL | AV1: Funkcija Uprava | AZ1: Veličina društva | BB1: =Podloga!B36 -> 2023. planirano | BC1: =Podloga!C36 -> 2023. ostvareno | BD1: =Podloga!D36 -> 2024. planirano | BE1: =Podloga!E36 -> 2024. procijenjeno | BF1: =Podloga!F36 -> 2025. planirano | BL1: Altman basic | CF1: Analiza bruto dobiti | CG1: U tisućama kuna | CH1: Bruto dobit prethodne godine | CI1: =RDG!D59 -> -719.33843 | CJ1: =CI1 -> -719.33843 | CN1: =CH1 -> Bruto dobit prethodne godine | CO1: =CJ1 -> -719.33843 | CP1: =CK1 -> 0 | CQ1: =IF(CI1>=0,CL1,0) -> 0 | CR1: =IF(CI1<0,CL1,0) -> 0 | CS1: =IF(CI1>=0,CM1,0) -> 0 | CT1: =IF(CI1<0,CM1,0) -> 0 | CU1: 0 | CV1: Analiza EBITDA (plan 2015 / ostvareno 2015) | CW1: U tisućama kuna | CX1: Planirana EBITDA tekuće godine | CY1: =BD3 -> 485.87 | CZ1: =CY1 -> 485.87 | DD1: =CX1 -> Planirana EBITDA tekuće godine | DE1: =CZ1 -> 485.87 | DF1: =DA1 -> 0 | DG1: =IF(CY1>=0,DB1,0) -> 0 | DH1: =IF(CY1<0,DB1,0) -> 0 | DI1: =IF(CY1>=0,DC1,0) -> 0 | DJ1: =IF(CY1<0,DC1,0) -> 0 | DK1: 0 | DN1: =Podloga!B36 -> 2023. planirano | DO1: =Podloga!C36 -> 2023. ostvareno | DP1: =Podloga!D36 -> 2024. planirano | DQ1: =Podloga!E36 -> 2024. procijenjeno | DR1: =Podloga!F36 -> 2025. planirano | DW1: =Podloga!B36 -> 2023. planirano | DX1: =Podloga!C36 -> 2023. ostvareno | DY1: =Podloga!D36 -> 2024. planirano | DZ1: =Podloga!E36 -> 2024. procijenjeno | EA1: =Podloga!F36 -> 2025. planirano | EF1: =Podloga!B36 -> 2023. planirano | EG1: =Podloga!C36 -> 2023. ostvareno | EH1: =Podloga!D36 -> 2024. planirano | EI1: =Podloga!E36 -> 2024. procijenjeno | EJ1: =Podloga!F36 -> 2025. planirano | EM1: =Podloga!C36 -> 2023. ostvareno | EN1: =Podloga!E36 -> 2024. procijenjeno | EO1: =Podloga!B36 -> 2023. planirano | EP1: =Podloga!D36 -> 2024. planirano | EQ1: =Podloga!F36 -> 2025. planirano
AO2: HSFI | AP2: d.o.o. | AR2: Predsjednik | AS2: Predsjednik | AT2: RH | AU2: M | AV2: Predsjednik | AX2: DA | AY2: Donacija | AZ2: Mikro | BA2: Ukupni prihod | BB2: =RDG!C57 -> 2132.276 | BC2: =RDG!D57 -> 2963.93357 | BD2: =RDG!E57 -> 3446.434 | BE2: =RDG!F57 -> 3855.953 | BF2: =RDG!G57 -> 3992.201 | BL2: X1 | BM2: =IFERROR('Altman Integral (Basic)'!C40/'Altman Integral (Basic)'!C41,) -> 0.04798640014 | BN2: =IFERROR('Altman Integral (Basic)'!D40/'Altman Integral (Basic)'!D41,) -> 0.02276017352 | BO2: =IFERROR('Altman Integral (Basic)'!E40/'Altman Integral (Basic)'!E41,) -> 0.03220642908 | BP2: =IFERROR('Altman Integral (Basic)'!F40/'Altman Integral (Basic)'!F41,) -> 0.04094478851 | BQ2: =IFERROR('Altman Integral (Basic)'!G40/'Altman Integral (Basic)'!G41,) -> 0.0188570359 | BR2: Koeficijent: | BS2: X1 | BT2: 1.2 | BX2: Direktna | CH2: Poslovni prihodi Δ | CI2: =RDG!F5-RDG!D5 -> 891.993 | CK2: =IF(SUM(CI1)>=0,(IF(CI2>=0,SUM(CI1),(IF(ABS(SUM(CI1))>ABS(CI2),SUM(CI1:CI2),0)))),(IF(CI2<0,SUM(CI1),(IF(ABS(SUM(CI1))>ABS(CI2),SUM(CI1:CI2),0))))) -> 0 | CL2: =IF(SUM(CI1)>=0,(IF(CI2<0,(IF(ABS(CI2)>ABS(SUM(CI1)),SUM(CI1),ABS(CI2))),CI2)),(IF(CI2>0,(IF(ABS(CI2)>ABS(SUM(CI1)),SUM(CI1:CI2),0)),0))) -> 172.65457 | CM2: =IF(SUM(CI1)<0,(IF(CI2<0,CI2,(IF(ABS(CI2)>ABS(SUM(CI1)),SUM(CI1),0-CI2)))),(IF(CI2<0,(IF(ABS(CI2)>ABS(SUM(CI1)),SUM(CI1:CI2),0)),0))) -> -719.33843 | CN2: Poslovni prihodi Δ | CP2: =CK2 -> 0 | CQ2: =IF(CI2>=0,CL2,0) -> 172.65457 | CR2: =IF(CI2<0,CL2,0) -> 0 | CS2: =IF(CI2>=0,CM2,0) -> -719.33843 | CT2: =IF(CI2<0,CM2,0) -> 0 | CU2: 0 | CX2: Prihodi od prodaje Δ | CY2: =(RDG!F6+RDG!F7)-(RDG!E6+RDG!E7) -> 360.074 | DA2: =IF(SUM(CY1)>=0,(IF(CY2>=0,SUM(CY1),(IF(ABS(SUM(CY1))>ABS(CY2),SUM(CY1:CY2),0)))),(IF(CY2<0,SUM(CY1),(IF(ABS(SUM(CY1))>ABS(CY2),SUM(CY1:CY2),0))))) -> 485.87 | DB2: =IF(SUM(CY1)>=0,(IF(CY2<0,(IF(ABS(CY2)>ABS(SUM(CY1)),SUM(CY1),ABS(CY2))),CY2)),(IF(CY2>0,(IF(ABS(CY2)>ABS(SUM(CY1)),SUM(CY1:CY2),0)),0))) -> 360.074 | DC2: =IF(SUM(CY1)<0,(IF(CY2<0,CY2,(IF(ABS(CY2)>ABS(SUM(CY1)),SUM(CY1),0-CY2)))),(IF(CY2<0,(IF(ABS(CY2)>ABS(SUM(CY1)),SUM(CY1:CY2),0)),0))) -> 0 | DD2: =CX2 -> Prihodi od prodaje Δ | DE2: =CZ2 -> 0 | DF2: =DA2 -> 485.87 | DG2: =IF(CY2>=0,DB2,0) -> 360.074 | DH2: =IF(CY2<0,DB2,0) -> 0 | DI2: =IF(CY2>=0,DC2,0) -> 0 | DJ2: =IF(CY2<0,DC2,0) -> 0 | DK2: 0 | DM2: Kapital i rezerve | DN2: =Bilanca!C75 -> 1495.613 | DO2: =Bilanca!D75 -> 812.816 | DP2: =Bilanca!E75 -> 909.625 | DQ2: =Bilanca!F75 -> 831.614 | DR2: =Bilanca!G75 -> 871.261 | DV2: Priljev od poslovnih aktivnosti | DW2: =IFERROR(IF(Podloga!$B$19="Direktna",'NT dir.'!C7+'NT dir.'!C8+'NT dir.'!C9+'NT dir.'!C10+'NT dir.'!#REF!,'NT indir.'!C17),) -> 0 | DX2: =IFERROR(IF(Podloga!$B$19="Direktna",'NT dir.'!D7+'NT dir.'!D8+'NT dir.'!D9+'NT dir.'!D10+'NT dir.'!#REF!,'NT indir.'!D17),) -> 500.791 | DY2: =IFERROR(IF(Podloga!$B$19="Direktna",'NT dir.'!E7+'NT dir.'!E8+'NT dir.'!E9+'NT dir.'!E10+'NT dir.'!#REF!,'NT indir.'!E17),) -> 0 | DZ2: =IFERROR(IF(Podloga!$B$19="Direktna",'NT dir.'!F7+'NT dir.'!F8+'NT dir.'!F9+'NT dir.'!F10+'NT dir.'!#REF!,'NT indir.'!F17),) -> 486.681 | EA2: =IFERROR(IF(Podloga!$B$19="Direktna",'NT dir.'!G7+'NT dir.'!G8+'NT dir.'!G9+'NT dir.'!G10+'NT dir.'!#REF!,'NT indir.'!G17),) -> 0 | EE2: Ukupni prihodi | EF2: =RDG!C57 -> 2132.276 | EG2: =RDG!D57 -> 2963.93357 | EH2: =RDG!E57 -> 3446.434 | EI2: =RDG!F57 -> 3855.953 | EJ2: =RDG!G57 -> 3992.201 | EL2: Prihodi | EM2: =RDG!D57 -> 2963.93357 | EN2: =RDG!F57 -> 3855.953 | EO2: =RDG!C57 -> 2132.276 | EP2: =RDG!E57 -> 3446.434 | EQ2: =RDG!G57 -> 3992.201
AO3: MSFI | AP3: d.d. | AR3: Član | AS3: Član | AT3: CERP | AU3: Ž | AV3: Član | AX3: NE | AY3: Sponzorstvo | AZ3: Mali | BA3: EBITDA | BB3: =RDG!C59+RDG!C46+RDG!C48+RDG!C21 -> 349.065 | BC3: =RDG!D59+RDG!D46+RDG!D48+RDG!D21 -> -260.30743 | BD3: =RDG!E59+RDG!E46+RDG!E48+RDG!E21 -> 485.87 | BE3: =RDG!F59+RDG!F46+RDG!F48+RDG!F21 -> 451.358 | BF3: =RDG!G59+RDG!G46+RDG!G48+RDG!G21 -> 501.391 | BL3: X2 | BM3: =IFERROR('Altman Integral (Basic)'!C42/'Altman Integral (Basic)'!C41,) -> -0.1023210138 | BN3: =IFERROR('Altman Integral (Basic)'!D42/'Altman Integral (Basic)'!D41,) -> -0.1430756179 | BO3: =IFERROR('Altman Integral (Basic)'!E42/'Altman Integral (Basic)'!E41,) -> -0.1261056065 | BP3: =IFERROR('Altman Integral (Basic)'!F42/'Altman Integral (Basic)'!F41,) -> -0.1818517149 | BQ3: =IFERROR('Altman Integral (Basic)'!G42/'Altman Integral (Basic)'!G41,) -> -0.09783615839 | BS3: X2 | BT3: 1.4 | BX3: Indirektna | CH3: Materijalni troškovi Δ | CI3: =RDG!D13-RDG!F13 -> 75.977 | CK3: =IF(SUM(CI1:CI2)>=0,(IF(CI3>=0,SUM(CI1:CI2),(IF(ABS(SUM(CI1:CI2))>ABS(CI3),SUM(CI1:CI3),0)))),(IF(CI3<0,SUM(CI1:CI2),(IF(ABS(SUM(CI1:CI2))>ABS(CI3),SUM(CI1:CI3),0))))) -> 172.65457 | CL3: =IF(SUM(CI1:CI2)>=0,(IF(CI3<0,(IF(ABS(CI3)>ABS(SUM(CI1:CI2)),SUM(CI1:CI2),ABS(CI3))),CI3)),(IF(CI3>0,(IF(ABS(CI3)>ABS(SUM(CI1:CI2)),SUM(CI1:CI3),0)),0))) -> 75.977 | CM3: =IF(SUM(CI1:CI2)<0,(IF(CI3<0,CI3,(IF(ABS(CI3)>ABS(SUM(CI1:CI2)),SUM(CI1:CI2),0-CI3)))),(IF(CI3<0,(IF(ABS(CI3)>ABS(SUM(CI1:CI2)),SUM(CI1:CI3),0)),0))) -> 0 | CN3: Materijalni troškovi Δ | CP3: 172.65457 | CQ3: 75.977 | CR3: 0 | CS3: 0 | CT3: 0 | CU3: 0 | CX3: Ostali prihodi Δ | CY3: =(RDG!F57-RDG!F6-RDG!F7)-(RDG!E57-RDG!E6-RDG!E7) -> 49.445 | DA3: =IF(SUM(CY1:CY2)>=0,(IF(CY3>=0,SUM(CY1:CY2),(IF(ABS(SUM(CY1:CY2))>ABS(CY3),SUM(CY1:CY3),0)))),(IF(CY3<0,SUM(CY1:CY2),(IF(ABS(SUM(CY1:CY2))>ABS(CY3),SUM(CY1:CY3),0))))) -> 845.944 | DB3: =IF(SUM(CY1:CY2)>=0,(IF(CY3<0,(IF(ABS(CY3)>ABS(SUM(CY1:CY2)),SUM(CY1:CY2),ABS(CY3))),CY3)),(IF(CY3>0,(IF(ABS(CY3)>ABS(SUM(CY1:CY2)),SUM(CY1:CY3),0)),0))) -> 49.445 | DC3: =IF(SUM(CY1:CY2)<0,(IF(CY3<0,CY3,(IF(ABS(CY3)>ABS(SUM(CY1:CY2)),SUM(CY1:CY2),0-CY3)))),(IF(CY3<0,(IF(ABS(CY3)>ABS(SUM(CY1:CY2)),SUM(CY1:CY3),0)),0))) -> 0 | DD3: Ostali prihodi Δ | DE3: 0 | DF3: 845.944 | DG3: 49.445 | DH3: 0 | DI3: 0 | DJ3: 0 | DK3: 0 | DM3: Rezerviranja | DN3: =Bilanca!C96 -> 39.44 | DO3: =Bilanca!D96 -> 22.103 | DP3: =Bilanca!E96 -> 0 | DQ3: =Bilanca!F96 -> 22.103 | DR3: =Bilanca!G96 -> 0 | DV3: Poslovni prihodi | DW3: =IFERROR(RDG!C5,) -> 2131.827 | DX3: =IFERROR(RDG!D5,) -> 2963.898 | DY3: =IFERROR(RDG!E5,) -> 3445.894 | DZ3: =IFERROR(RDG!F5,) -> 3855.891 | EA3: =IFERROR(RDG!G5,) -> 3991.601 | EE3: Ukupna imovina | EF3: =Bilanca!C68 -> 19429.3716 | EG3: =Bilanca!D68 -> 13600.116 | EH3: =Bilanca!E68 -> 20409.838 | EI3: =Bilanca!F68 -> 14655.809 | EJ3: =Bilanca!G68 -> 27049.161 | EL3: EBITDA | EM3: =BC3 -> -260.30743 | EN3: =BE3 -> 451.358 | EO3: =BB3 -> 349.065 | EP3: =BD3 -> 485.87 | EQ3: =BF3 -> 501.391
AP4: Ustanova | AR4: Zamjenik predsj. | AS4: Zamjenik predsj. | AT4: MIDIM (RH) funkcija | AV4: Zamjenik predsj. | AZ4: Srednji | BA4: EBITDA marža | BB4: =IFERROR((RDG!C59+RDG!C46+RDG!C48+RDG!C21)/RDG!C57,) -> 0.1637053552 | BC4: =IFERROR((RDG!D59+RDG!D46+RDG!D48+RDG!D21)/RDG!D57,) -> -0.08782498793 | BD4: =IFERROR((RDG!E59+RDG!E46+RDG!E48+RDG!E21)/RDG!E57,) -> 0.1409776018 | BE4: =IFERROR((RDG!F59+RDG!F46+RDG!F48+RDG!F21)/RDG!F57,) -> 0.11705485 | BF4: =IFERROR((RDG!G59+RDG!G46+RDG!G48+RDG!G21)/RDG!G57,) -> 0.1255926242 | BL4: X3 | BM4: =IFERROR('Altman Integral (Basic)'!C43/'Altman Integral (Basic)'!C41,) -> 0.003074160155 | BN4: =IFERROR('Altman Integral (Basic)'!D43/'Altman Integral (Basic)'!D41,) -> -0.04611934413 | BO4: =IFERROR('Altman Integral (Basic)'!E43/'Altman Integral (Basic)'!E41,) -> 0.00298238526 | BP4: =IFERROR('Altman Integral (Basic)'!F43/'Altman Integral (Basic)'!F41,) -> 0.005543535672 | BQ4: =IFERROR('Altman Integral (Basic)'!G43/'Altman Integral (Basic)'!G41,) -> 0.004783549479 | BS4: X3 | BT4: 3.3 | CH4: Troškovi osoblja Δ | CI4: =RDG!D17-RDG!F17 -> -286.945 | CK4: =IF(SUM(CI1:CI3)>=0,(IF(CI4>=0,SUM(CI1:CI3),(IF(ABS(SUM(CI1:CI3))>ABS(CI4),SUM(CI1:CI4),0)))),(IF(CI4<0,SUM(CI1:CI3),(IF(ABS(SUM(CI1:CI3))>ABS(CI4),SUM(CI1:CI4),0))))) -> 0 | CL4: =IF(SUM(CI1:CI3)>=0,(IF(CI4<0,(IF(ABS(CI4)>ABS(SUM(CI1:CI3)),SUM(CI1:CI3),ABS(CI4))),CI4)),(IF(CI4>0,(IF(ABS(CI4)>ABS(SUM(CI1:CI3)),SUM(CI1:CI4),0)),0))) -> 248.63157 | CM4: =IF(SUM(CI1:CI3)<0,(IF(CI4<0,CI4,(IF(ABS(CI4)>ABS(SUM(CI1:CI3)),SUM(CI1:CI3),0-CI4)))),(IF(CI4<0,(IF(ABS(CI4)>ABS(SUM(CI1:CI3)),SUM(CI1:CI4),0)),0))) -> -38.31343 | CN4: Troškovi osoblja Δ | CP4: 0 | CQ4: 0 | CR4: 248.63157 | CS4: 0 | CT4: -38.31343 | CU4: 0 | CX4: Promjena vrijednosti zaliha Δ | CY4: =RDG!E12-RDG!F12 -> 0 | DA4: =IF(SUM(CY1:CY3)>=0,(IF(CY4>=0,SUM(CY1:CY3),(IF(ABS(SUM(CY1:CY3))>ABS(CY4),SUM(CY1:CY4),0)))),(IF(CY4<0,SUM(CY1:CY3),(IF(ABS(SUM(CY1:CY3))>ABS(CY4),SUM(CY1:CY4),0))))) -> 895.389 | DB4: =IF(SUM(CY1:CY3)>=0,(IF(CY4<0,(IF(ABS(CY4)>ABS(SUM(CY1:CY3)),SUM(CY1:CY3),ABS(CY4))),CY4)),(IF(CY4>0,(IF(ABS(CY4)>ABS(SUM(CY2:CY3)),SUM(CY1:CY4),0)),0))) -> 0 | DC4: =IF(SUM(CY1:CY3)<0,(IF(CY4<0,CY4,(IF(ABS(CY4)>ABS(SUM(CY1:CY3)),SUM(CY1:CY3),0-CY4)))),(IF(CY4<0,(IF(ABS(CY4)>ABS(SUM(CY1:CY3)),SUM(CY1:CY4),0)),0))) -> 0 | DD4: Promjena vrijednosti zaliha Δ | DE4: 0 | DF4: 895.389 | DG4: 0 | DH4: 0 | DI4: 0 | DJ4: 0 | DK4: 0 | DM4: Dugoročne obveze | DN4: =Bilanca!C103 -> 2964.391 | DO4: =Bilanca!D103 -> 2959.654 | DP4: =Bilanca!E103 -> 2799.417 | DQ4: =Bilanca!F103 -> 2959.653 | DR4: =Bilanca!G103 -> 2743.27 | DV4: Omjer primitaka od poslovnih aktivnosti i poslovnih prihoda | DW4: =DW2/DW3 -> 0 | DX4: =DX2/DX3 -> 0.1689636418 | DY4: =DY2/DY3 -> 0 | DZ4: 0.1262175202 | EA4: 0 | EE4: Koeficijent obrtaja imovine | EF4: =EF2/EF3 -> 0.1097449801 | EG4: =EG2/EG3 -> 0.2179344331 | EH4: 0.1688614089 | EI4: 0.2631006586 | EJ4: 0.1475905667 | EL4: EBITDA marža | EM4: =BC4 -> -0.08782498793 | EN4: =BE4 -> 0.11705485 | EO4: =BB4 -> 0.1637053552 | EP4: =BD4 -> 0.1409776018 | EQ4: =BF4 -> 0.1255926242
AP5: Druga osoba za koje je upis propisan zakonom | AS5: Predstavnik radnika | AT5: RH - funkcija | AV5: Direktor | AZ5: Veliki | BL5: X4 | BM5: =IFERROR('Altman Integral (Basic)'!C46/'Altman Integral (Basic)'!C44,) -> 0 | BN5: =IFERROR('Altman Integral (Basic)'!D46/'Altman Integral (Basic)'!D44,) -> 0 | BO5: =IFERROR('Altman Integral (Basic)'!E46/'Altman Integral (Basic)'!E44,) -> 0 | BP5: =IFERROR('Altman Integral (Basic)'!F46/'Altman Integral (Basic)'!F44,) -> 0 | BQ5: =IFERROR('Altman Integral (Basic)'!G46/'Altman Integral (Basic)'!G44,) -> 0 | BS5: X4 | BT5: 0.6 | CH5: Ostali poslovni rashodi Δ | CI5: =(RDG!D11-RDG!D13-RDG!D17)-(RDG!F11-RDG!F13-RDG!F17) -> 27.508 | CK5: =IF(SUM(CI1:CI4)>=0,(IF(CI5>=0,SUM(CI1:CI4),(IF(ABS(SUM(CI1:CI4))>ABS(CI5),SUM(CI1:CI5),0)))),(IF(CI5<0,SUM(CI1:CI4),(IF(ABS(SUM(CI1:CI4))>ABS(CI5),SUM(CI1:CI5),0))))) -> -10.80543 | CL5: =IF(SUM(CI1:CI4)>=0,(IF(CI5<0,(IF(ABS(CI5)>ABS(SUM(CI1:CI4)),SUM(CI1:CI4),ABS(CI5))),CI5)),(IF(CI5>0,(IF(ABS(CI5)>ABS(SUM(CI1:CI4)),SUM(CI1:CI5),0)),0))) -> 0 | CM5: =IF(SUM(CI1:CI4)<0,(IF(CI5<0,CI5,(IF(ABS(CI5)>ABS(SUM(CI1:CI4)),SUM(CI1:CI4),0-CI5)))),(IF(CI5<0,(IF(ABS(CI5)>ABS(SUM(CI1:CI4)),SUM(CI1:CI5),0)),0))) -> -27.508 | CN5: Ostali poslovni rashodi Δ | CP5: -10.80543 | CQ5: 0 | CR5: 0 | CS5: -27.508 | CT5: 0 | CU5: 0 | CX5: Materijalni troškovi Δ | CY5: =RDG!E13-RDG!F13 -> -533.48 | DA5: =IF(SUM(CY1:CY4)>=0,(IF(CY5>=0,SUM(CY1:CY4),(IF(ABS(SUM(CY1:CY4))>ABS(CY5),SUM(CY1:CY5),0)))),(IF(CY5<0,SUM(CY1:CY4),(IF(ABS(SUM(CY1:CY4))>ABS(CY5),SUM(CY1:CY5),0))))) -> 361.909 | DB5: =IF(SUM(CY1:CY4)>=0,(IF(CY5<0,(IF(ABS(CY5)>ABS(SUM(CY1:CY4)),SUM(CY1:CY4),ABS(CY5))),CY5)),(IF(CY5>0,(IF(ABS(CY5)>ABS(SUM(CY1:CY4)),SUM(CY1:CY5),0)),0))) -> 533.48 | DC5: =IF(SUM(CY1:CY4)<0,(IF(CY5<0,CY5,(IF(ABS(CY5)>ABS(SUM(CY1:CY4)),SUM(CY1:CY4),0-CY5)))),(IF(CY5<0,(IF(ABS(CY5)>ABS(SUM(CY1:CY4)),SUM(CY1:CY5),0)),0))) -> 0 | DD5: Materijalni troškovi Δ | DE5: 0 | DF5: 361.909 | DG5: 0 | DH5: 533.48 | DI5: 0 | DJ5: 0 | DK5: 0 | DM5: Kratkoročne obveze | DN5: =Bilanca!C115 -> 14929.929 | DO5: =Bilanca!D115 -> 417.851 | DP5: =Bilanca!E115 -> 16700.799 | DQ5: =Bilanca!F115 -> 426.342 | DR5: =Bilanca!G115 -> 767.357 | EL5: Neto profitna marža | EM5: =BC8 -> -0.2426972174 | EN5: =BE8 -> 0.004875059421 | EO5: =BB8 -> 0.002460281877 | EP5: =BD8 -> 0.001456578017 | EQ5: =BF8 -> 0.009931113188
AT6: predst. radnika | BB6: =Podloga!B36 -> 2023. planirano | BC6: =Podloga!C36 -> 2023. ostvareno | BD6: =Podloga!D36 -> 2024. planirano | BE6: =Podloga!E36 -> 2024. procijenjeno | BF6: =Podloga!F36 -> 2025. planirano | BL6: X5 | BM6: =IFERROR('Altman Integral (Basic)'!C45/'Altman Integral (Basic)'!C41,) -> 0.1097449801 | BN6: =IFERROR('Altman Integral (Basic)'!D45/'Altman Integral (Basic)'!D41,) -> 0.2179344331 | BO6: =IFERROR('Altman Integral (Basic)'!E45/'Altman Integral (Basic)'!E41,) -> 0.1688614089 | BP6: =IFERROR('Altman Integral (Basic)'!F45/'Altman Integral (Basic)'!F41,) -> 0.2631006586 | BQ6: =IFERROR('Altman Integral (Basic)'!G45/'Altman Integral (Basic)'!G41,) -> 0.1475905667 | BS6: X5 | BT6: 1 | CH6: Financijski i investicijski prihodi Δ | CI6: =(RDG!F34+RDG!F53+RDG!F54)-(RDG!D34+RDG!D53+RDG!D54) -> 0.02643 | CK6: =IF(SUM(CI1:CI5)>=0,(IF(CI6>=0,SUM(CI1:CI5),(IF(ABS(SUM(CI1:CI5))>ABS(CI6),SUM(CI1:CI6),0)))),(IF(CI6<0,SUM(CI1:CI5),(IF(ABS(SUM(CI1:CI5))>ABS(CI6),SUM(CI1:CI6),0))))) -> -10.779 | CL6: =IF(SUM(CI1:CI5)>=0,(IF(CI6<0,(IF(ABS(CI6)>ABS(SUM(CI1:CI5)),SUM(CI1:CI5),ABS(CI6))),CI6)),(IF(CI6>0,(IF(ABS(CI6)>ABS(SUM(CI1:CI5)),SUM(CI1:CI6),0)),0))) -> 0 | CM6: =IF(SUM(CI1:CI5)<0,(IF(CI6<0,CI6,(IF(ABS(CI6)>ABS(SUM(CI1:CI5)),SUM(CI1:CI5),0-CI6)))),(IF(CI6<0,(IF(ABS(CI6)>ABS(SUM(CI1:CI5)),SUM(CI1:CI6),0)),0))) -> -0.02643 | CN6: Financijski i investicijski prihodi Δ | CP6: -10.779 | CQ6: 0 | CR6: 0 | CS6: -0.02643 | CT6: 0 | CU6: 0 | CX6: Troškovi osoblja Δ | CY6: =RDG!E17-RDG!F17 -> -144.309 | DA6: =IF(SUM(CY1:CY5)>=0,(IF(CY6>=0,SUM(CY1:CY5),(IF(ABS(SUM(CY1:CY5))>ABS(CY6),SUM(CY1:CY6),0)))),(IF(CY6<0,SUM(CY1:CY5),(IF(ABS(SUM(CY1:CY5))>ABS(CY6),SUM(CY1:CY6),0))))) -> 217.6 | DB6: =IF(SUM(CY1:CY5)>=0,(IF(CY6<0,(IF(ABS(CY6)>ABS(SUM(CY1:CY5)),SUM(CY1:CY5),ABS(CY6))),CY6)),(IF(CY6>0,(IF(ABS(CY6)>ABS(SUM(CY1:CY5)),SUM(CY1:CY6),0)),0))) -> 144.309 | DC6: =IF(SUM(CY1:CY5)<0,(IF(CY6<0,CY6,(IF(ABS(CY6)>ABS(SUM(CY1:CY5)),SUM(CY1:CY5),0-CY6)))),(IF(CY6<0,(IF(ABS(CY6)>ABS(SUM(CY1:CY5)),SUM(CY1:CY6),0)),0))) -> 0 | DD6: Troškovi osoblja Δ | DE6: 0 | DF6: 217.6 | DG6: 0 | DH6: 144.309 | DI6: 0 | DJ6: 0 | DK6: 0 | DM6: Ostalo | DN6: =Bilanca!C130 -> 0 | DO6: =Bilanca!D130 -> 9387.697 | DP6: =Bilanca!E130 -> 0 | DQ6: =Bilanca!F130 -> 10416.1 | DR6: =Bilanca!G130 -> 22667.272 | EF6: =Podloga!B36 -> 2023. planirano | EG6: =Podloga!C36 -> 2023. ostvareno | EH6: =Podloga!D36 -> 2024. planirano | EI6: =Podloga!E36 -> 2024. procijenjeno | EJ6: =Podloga!F36 -> 2025. planirano | EL6: Poslovne akt. | EM6: =IF(Podloga!$B$19="Direktna",'NT dir.'!D18,'NT indir.'!D26) -> 12863.64 | EN6: =IF(Podloga!$B$19="Direktna",'NT dir.'!F18,'NT indir.'!F26) -> 1354.956 | EO6: =IF(Podloga!$B$19="Direktna",'NT dir.'!C18,'NT indir.'!C26) -> -54.483 | EP6: =IF(Podloga!$B$19="Direktna",'NT dir.'!E18,'NT indir.'!E26) -> -55.85 | EQ6: =IF(Podloga!$B$19="Direktna",'NT dir.'!G18,'NT indir.'!G26) -> 12863.64
AT7: predst. poslodavaca (bez prava glasa) | BA7: Dobit razdoblja | BB7: =RDG!C63 -> 5.246 | BC7: =RDG!D63 -> -719.33843 | BD7: =RDG!E63 -> 5.02 | BE7: =RDG!F63 -> 18.798 | BF7: =RDG!G63 -> 39.647 | BL7: Gornja granica | BM7: 3 | BN7: 3 | BO7: 3 | BP7: 3 | BQ7: 3 | CH7: Financijski i investicijski rashodi Δ | CI7: =(RDG!D45+RDG!D55+RDG!D56)-(RDG!F45+RDG!F55+RDG!F56) -> 29.577 | CK7: =IF(SUM(CI1:CI6)>=0,(IF(CI7>=0,SUM(CI1:CI6),(IF(ABS(SUM(CI1:CI6))>ABS(CI7),SUM(CI1:CI7),0)))),(IF(CI7<0,SUM(CI1:CI6),(IF(ABS(SUM(CI1:CI6))>ABS(CI7),SUM(CI1:CI7),0))))) -> 0 | CL7: =IF(SUM(CI1:CI6)>=0,(IF(CI7<0,(IF(ABS(CI7)>ABS(SUM(CI1:CI6)),SUM(CI1:CI6),ABS(CI7))),CI7)),(IF(CI7>0,(IF(ABS(CI7)>ABS(SUM(CI1:CI6)),SUM(CI1:CI7),0)),0))) -> 18.798 | CM7: =IF(SUM(CI1:CI6)<0,(IF(CI7<0,CI7,(IF(ABS(CI7)>ABS(SUM(CI1:CI6)),SUM(CI1:CI6),0-CI7)))),(IF(CI7<0,(IF(ABS(CI7)>ABS(SUM(CI1:CI6)),SUM(CI1:CI7),0)),0))) -> -10.779 | CN7: Financijski i investicijski rashodi Δ | CP7: 0 | CQ7: 18.798 | CR7: 0 | CS7: -10.779 | CT7: 0 | CU7: 0 | CX7: Vrijednosna usklađenja Δ | CY7: =RDG!E23-RDG!F23 -> 0 | DA7: =IF(SUM(CY1:CY6)>=0,(IF(CY7>=0,SUM(CY1:CY6),(IF(ABS(SUM(CY1:CY6))>ABS(CY7),SUM(CY1:CY7),0)))),(IF(CY7<0,SUM(CY1:CY6),(IF(ABS(SUM(CY1:CY6))>ABS(CY7),SUM(CY1:CY7),0))))) -> 217.6 | DB7: =IF(SUM(CY1:CY6)>=0,(IF(CY7<0,(IF(ABS(CY7)>ABS(SUM(CY1:CY6)),SUM(CY1:CY6),ABS(CY7))),CY7)),(IF(CY7>0,(IF(ABS(CY7)>ABS(SUM(CY1:CY6)),SUM(CY1:CY7),0)),0))) -> 0 | DC7: =IF(SUM(CY1:CY6)<0,(IF(CY7<0,CY7,(IF(ABS(CY7)>ABS(SUM(CY1:CY6)),SUM(CY1:CY6),0-CY7)))),(IF(CY7<0,(IF(ABS(CY7)>ABS(SUM(CY1:CY6)),SUM(CY1:CY7),0)),0))) -> 0 | DD7: Vrijednosna usklađenja Δ | DE7: 0 | DF7: 217.6 | DG7: 0 | DH7: 0 | DI7: 0 | DJ7: 0 | DK7: 0 | DM7: Ukupno pasiva | DN7: =SUM(DN2:DN6) -> 19429.373 | DO7: =SUM(DO2:DO6) -> 13600.121 | DP7: 20409.841 | DQ7: 14655.812 | DR7: 27049.16 | DW7: =Podloga!B36 -> 2023. planirano | DX7: =Podloga!C36 -> 2023. ostvareno | DY7: =Podloga!D36 -> 2024. planirano | DZ7: =Podloga!E36 -> 2024. procijenjeno | EA7: =Podloga!F36 -> 2025. planirano | EE7: Ukupni prihodi | EF7: =RDG!C57 -> 2132.276 | EG7: =RDG!D57 -> 2963.93357 | EH7: =RDG!E57 -> 3446.434 | EI7: =RDG!F57 -> 3855.953 | EJ7: =RDG!G57 -> 3992.201 | EL7: Investicijske akt. | EM7: =IF(Podloga!$B$19="Direktna",'NT dir.'!D33,'NT indir.'!D41) -> -12467.053 | EN7: =IF(Podloga!$B$19="Direktna",'NT dir.'!F33,'NT indir.'!F41) -> -1101.938 | EO7: =IF(Podloga!$B$19="Direktna",'NT dir.'!C33,'NT indir.'!C41) -> -6226.909 | EP7: =IF(Podloga!$B$19="Direktna",'NT dir.'!E33,'NT indir.'!E41) -> 0.52 | EQ7: =IF(Podloga!$B$19="Direktna",'NT dir.'!G33,'NT indir.'!G41) -> -12467.053
AT8: Grad Crikvenica | BA8: Neto profitna marža | BB8: =IFERROR(RDG!C63/RDG!C57,) -> 0.002460281877 | BC8: =IFERROR(RDG!D63/RDG!D57,) -> -0.2426972174 | BD8: =IFERROR(RDG!E63/RDG!E57,) -> 0.001456578017 | BE8: =IFERROR(RDG!F63/RDG!F57,) -> 0.004875059421 | BF8: =IFERROR(RDG!G63/RDG!G57,) -> 0.009931113188 | BL8: Donja granica | BM8: 1.8 | BN8: 1.8 | BO8: 1.8 | BP8: 1.8 | BQ8: 1.8 | CH8: Procijenjena bruto dobit tekuće godine | CI8: =RDG!F59 -> 18.798 | CJ8: =CI8 -> 18.798 | CN8: Procijenjena bruto dobit tekuće godine | CO8: =CJ8 -> 18.798 | CP8: 0 | CQ8: 0 | CR8: 0 | CS8: 0 | CT8: 0 | CU8: 0 | CX8: Rezerviranja Δ | CY8: =RDG!E26-RDG!F26 -> -63.854 | DA8: =IF(SUM(CY1:CY7)>=0,(IF(CY8>=0,SUM(CY1:CY7),(IF(ABS(SUM(CY1:CY7))>ABS(CY8),SUM(CY1:CY8),0)))),(IF(CY8<0,SUM(CY1:CY7),(IF(ABS(SUM(CY1:CY7))>ABS(CY8),SUM(CY1:CY8),0))))) -> 153.746 | DB8: =IF(SUM(CY1:CY7)>=0,(IF(CY8<0,(IF(ABS(CY8)>ABS(SUM(CY1:CY7)),SUM(CY1:CY7),ABS(CY8))),CY8)),(IF(CY8>0,(IF(ABS(CY8)>ABS(SUM(CY1:CY7)),SUM(CY1:CY8),0)),0))) -> 63.854 | DC8: =IF(SUM(CY1:CY7)<0,(IF(CY8<0,CY8,(IF(ABS(CY8)>ABS(SUM(CY1:CY7)),SUM(CY1:CY7),0-CY8)))),(IF(CY8<0,(IF(ABS(CY8)>ABS(SUM(CY1:CY7)),SUM(CY1:CY8),0)),0))) -> 0 | DD8: Rezerviranja Δ | DE8: 0 | DF8: 153.746 | DG8: 0 | DH8: 63.854 | DI8: 0 | DJ8: 0 | DK8: 0 | DM8: Udio kapitala u pasivi | DN8: =Bilanca!C75/Bilanca!C131 -> 0.07697690502 | DO8: =Bilanca!D75/Bilanca!D131 -> 0.05976535062 | DP8: =Bilanca!E75/Bilanca!E131 -> 0.04456796111 | DQ8: =Bilanca!F75/Bilanca!F131 -> 0.05674294949 | DR8: =Bilanca!G75/Bilanca!G131 -> 0.03221027936 | DV8: Novčani primici od kupaca | DW8: =IFERROR(IF(Podloga!$B$19="Direktna",'NT dir.'!C7,),) -> 0 | DX8: =IFERROR(IF(Podloga!$B$19="Direktna",'NT dir.'!D7,),) -> 0 | DY8: =IFERROR(IF(Podloga!$B$19="Direktna",'NT dir.'!E7,),) -> 0 | DZ8: =IFERROR(IF(Podloga!$B$19="Direktna",'NT dir.'!F7,),) -> 0 | EA8: =IFERROR(IF(Podloga!$B$19="Direktna",'NT dir.'!G7,),) -> 0 | EE8: Ukupni rashodi | EF8: =RDG!C58 -> 2127.03 | EG8: =RDG!D58 -> 3683.272 | EH8: =RDG!E58 -> 3441.414 | EI8: =RDG!F58 -> 3837.155 | EJ8: =RDG!G58 -> 3952.554 | EL8: Financijske akt. | EM8: =IF(Podloga!$B$19="Direktna",'NT dir.'!D46,'NT indir.'!D54) -> -217.491 | EN8: =IF(Podloga!$B$19="Direktna",'NT dir.'!F46,'NT indir.'!F54) -> 0 | EO8: =IF(Podloga!$B$19="Direktna",'NT dir.'!C46,'NT indir.'!C54) -> 0 | EP8: =IF(Podloga!$B$19="Direktna",'NT dir.'!E46,'NT indir.'!E54) -> 0 | EQ8: =IF(Podloga!$B$19="Direktna",'NT dir.'!G46,'NT indir.'!G54) -> -217.491
AT9: Grad Dubrovnik | BA9: Operativna profitna marža | BB9: =(RDG!C5-RDG!C11)/(RDG!C6+RDG!C7) -> 0.09538862406 | BC9: =(RDG!D5-RDG!D11)/(RDG!D6+RDG!D7) -> -0.5767823303 | BD9: =(RDG!E5-RDG!E11)/(RDG!E6+RDG!E7) -> 0.05269035644 | BE9: =(RDG!F5-RDG!F11)/(RDG!F6+RDG!F7) -> 0.04980915937 | BF9: =(RDG!G5-RDG!G11)/(RDG!G6+RDG!G7) -> 0.07497842368 | CX9: Ostali poslovni rashodi Δ | CY9: =(RDG!E22+RDG!E33+RDG!E55+RDG!E56)-(RDG!F22+RDG!F33+RDG!F55+RDG!F56) -> 291.015 | DA9: =IF(SUM(CY1:CY8)>=0,(IF(CY9>=0,SUM(CY1:CY8),(IF(ABS(SUM(CY1:CY8))>ABS(CY9),SUM(CY1:CY9),0)))),(IF(CY9<0,SUM(CY1:CY8),(IF(ABS(SUM(CY1:CY8))>ABS(CY9),SUM(CY1:CY9),0))))) -> 153.746 | DB9: =IF(SUM(CY1:CY8)>=0,(IF(CY9<0,(IF(ABS(CY9)>ABS(SUM(CY1:CY8)),SUM(CY1:CY8),ABS(CY9))),CY9)),(IF(CY9>0,(IF(ABS(CY9)>ABS(SUM(CY1:CY8)),SUM(CY1:CY9),0)),0))) -> 291.015 | DC9: =IF(SUM(CY1:CY8)<0,(IF(CY9<0,CY9,(IF(ABS(CY9)>ABS(SUM(CY1:CY8)),SUM(CY1:CY8),0-CY9)))),(IF(CY9<0,(IF(ABS(CY9)>ABS(SUM(CY1:CY8)),SUM(CY1:CY9),0)),0))) -> 0 | DD9: Ostali poslovni rashodi Δ | DE9: 0 | DF9: 153.746 | DG9: 291.015 | DH9: 0 | DI9: 0 | DJ9: 0 | DK9: 0 | DV9: Novčani primici od tantijema, naknada, provizija i slično | DW9: =IFERROR(IF(Podloga!$B$19="Direktna",'NT dir.'!C8,),) -> 0 | DX9: =IFERROR(IF(Podloga!$B$19="Direktna",'NT dir.'!D8,),) -> 0 | DY9: =IFERROR(IF(Podloga!$B$19="Direktna",'NT dir.'!E8,),) -> 0 | DZ9: =IFERROR(IF(Podloga!$B$19="Direktna",'NT dir.'!F8,),) -> 0 | EA9: =IFERROR(IF(Podloga!$B$19="Direktna",'NT dir.'!G8,),) -> 0 | EE9: Prihodi od poslovnih aktivnosti | EF9: =RDG!C5 -> 2131.827 | EG9: =RDG!D5 -> 2963.898 | EH9: =RDG!E5 -> 3445.894 | EI9: =RDG!F5 -> 3855.891 | EJ9: =RDG!G5 -> 3991.601 | EL9: Ukupno novč. tokovi | EM9: =IF(Podloga!$B$19="Direktna",'NT dir.'!D48,'NT indir.'!D56) -> 179.096 | EN9: =IF(Podloga!$B$19="Direktna",'NT dir.'!F48,'NT indir.'!F56) -> 253.018 | EO9: =IF(Podloga!$B$19="Direktna",'NT dir.'!C48,'NT indir.'!C56) -> 25.042 | EP9: =IF(Podloga!$B$19="Direktna",'NT dir.'!E48,'NT indir.'!E56) -> 51.208 | EQ9: =IF(Podloga!$B$19="Direktna",'NT dir.'!G48,'NT indir.'!G56) -> 179.096
AT10: Grad Kaštela | CH10: Planirana bruto dobit tekuće godine | CI10: =RDG!E59 -> 5.02 | CJ10: =CI10 -> 5.02 | CN10: =CH10 -> Planirana bruto dobit tekuće godine | CO10: =CJ10 -> 5.02 | CP10: =CK10 -> 0 | CQ10: 0 | CR10: 0 | CS10: 0 | CT10: 0 | CU10: 0 | CX10: Financijski rashodi (bez kamata) Δ | CY10: =(RDG!E45-RDG!E46-RDG!E48)-(RDG!F45-RDG!F46-RDG!F48) -> 6.597 | DA10: =IF(SUM(CY1:CY9)>=0,(IF(CY10>=0,SUM(CY1:CY9),(IF(ABS(SUM(CY1:CY9))>ABS(CY10),SUM(CY1:CY10),0)))),(IF(CY10<0,SUM(CY1:CY9),(IF(ABS(SUM(CY1:CY9))>ABS(CY10),SUM(CY1:CY10),0))))) -> 444.761 | DB10: =IF(SUM(CY1:CY9)>=0,(IF(CY10<0,(IF(ABS(CY10)>ABS(SUM(CY1:CY9)),SUM(CY1:CY9),ABS(CY10))),CY10)),(IF(CY10>0,(IF(ABS(CY10)>ABS(SUM(CY1:CY9)),SUM(CY1:CY10),0)),0))) -> 6.597 | DC10: =IF(SUM(CY1:CY9)<0,(IF(CY10<0,CY10,(IF(ABS(CY10)>ABS(SUM(CY1:CY9)),SUM(CY1:CY9),0-CY10)))),(IF(CY10<0,(IF(ABS(CY10)>ABS(SUM(CY1:CY9)),SUM(CY1:CY10),0)),0))) -> 0 | DD10: Financijski rashodi (bez kamata) Δ | DE10: 0 | DF10: 444.761 | DG10: 6.597 | DH10: 0 | DI10: 0 | DJ10: 0 | DK10: 0 | DV10: Novčani primici od osiguranja za naknadu šteta | DW10: =IFERROR(IF(Podloga!$B$19="Direktna",'NT dir.'!C9,),) -> 0 | DX10: =IFERROR(IF(Podloga!$B$19="Direktna",'NT dir.'!D9,),) -> 0 | DY10: =IFERROR(IF(Podloga!$B$19="Direktna",'NT dir.'!E9,),) -> 0 | DZ10: =IFERROR(IF(Podloga!$B$19="Direktna",'NT dir.'!F9,),) -> 0 | EA10: =IFERROR(IF(Podloga!$B$19="Direktna",'NT dir.'!G9,),) -> 0 | EE10: Rashodi od poslovnih aktivnosti | EF10: =RDG!C11 -> 2065.712 | EG10: =RDG!D11 -> 3590.895 | EH10: =RDG!E11 -> 3378.614 | EI10: =RDG!F11 -> 3774.355 | EJ10: =RDG!G11 -> 3862.156
AT11: Grad Krk i općina Omišalj | BB11: =Podloga!B36 -> 2023. planirano | BC11: =Podloga!C36 -> 2023. ostvareno | BD11: =Podloga!D36 -> 2024. planirano | BE11: =Podloga!E36 -> 2024. procijenjeno | BF11: =Podloga!F36 -> 2025. planirano | CH11: Poslovni prihodi Δ | CI11: =RDG!F5-RDG!E5 -> 409.997 | CK11: =IF(SUM(CI10)>=0,(IF(CI11>=0,SUM(CI10),(IF(ABS(SUM(CI10))>ABS(CI11),SUM(CI10:CI11),0)))),(IF(CI11<0,SUM(CI10),(IF(ABS(SUM(CI10))>ABS(CI11),SUM(CI10:CI11),0))))) -> 5.02 | CL11: =IF(SUM(CI10)>=0,(IF(CI11<0,(IF(ABS(CI11)>ABS(SUM(CI10)),SUM(CI10),ABS(CI11))),CI11)),(IF(CI11>0,(IF(ABS(CI11)>ABS(SUM(CI10)),SUM(CI10:CI11),0)),0))) -> 409.997 | CM11: =IF(SUM(CI10)<0,(IF(CI11<0,CI11,(IF(ABS(CI11)>ABS(SUM(CI10)),SUM(CI10),0-CI11)))),(IF(CI11<0,(IF(ABS(CI11)>ABS(SUM(CI10)),SUM(CI10:CI11),0)),0))) -> 0 | CN11: Poslovni prihodi Δ | CP11: =CK11 -> 5.02 | CQ11: 409.997 | CR11: 0 | CS11: 0 | CT11: 0 | CU11: 0 | CX11: Procijenjena EBITDA tekuće godine | CY11: =BE3 -> 451.358 | CZ11: =CY11 -> 451.358 | DD11: Procijenjena EBITDA tekuće godine | DE11: 451.358 | DF11: 0 | DG11: 0 | DH11: 0 | DI11: 0 | DJ11: 0 | DK11: 0 | DV11: Novčani primici s osnove povrata poreza | DW11: =IFERROR(IF(Podloga!$B$19="Direktna",'NT dir.'!C10,),) -> 0 | DX11: =IFERROR(IF(Podloga!$B$19="Direktna",'NT dir.'!D10,),) -> 0 | DY11: =IFERROR(IF(Podloga!$B$19="Direktna",'NT dir.'!E10,),) -> 0 | DZ11: =IFERROR(IF(Podloga!$B$19="Direktna",'NT dir.'!F10,),) -> 0 | EA11: =IFERROR(IF(Podloga!$B$19="Direktna",'NT dir.'!G10,),) -> 0 | EE11: Ekonomičnost ukupnog poslovanja | EF11: =EF7/EF8 -> 1.00246635 | EG11: =EG7/EG8 -> 0.8047012466 | EH11: 1.001458703 | EI11: 1.004898942 | EJ11: 1.010030729
AT12: Grad Opatija | BA12: ROE | BB12: =IFERROR((RDG!C83/Bilanca!C$75),) -> 0.00350759187 | BC12: =IFERROR((RDG!D83/Bilanca!D$75),) -> -0.884995411 | BD12: =IFERROR((RDG!E83/Bilanca!E$75),) -> 0.00551875773 | BE12: =IFERROR((RDG!F83/Bilanca!F$75),) -> 0.02260423706 | BF12: =IFERROR((RDG!G83/Bilanca!G$75),) -> 0.04550530782 | BL12: Altman a | CH12: Materijalni troškovi Δ | CI12: =RDG!E13-RDG!F13 -> -533.48 | CK12: =IF(SUM(CI10:CI11)>=0,(IF(CI12>=0,SUM(CI10:CI11),(IF(ABS(SUM(CI10:CI11))>ABS(CI12),SUM(CI10:CI12),0)))),(IF(CI12<0,SUM(CI10:CI11),(IF(ABS(SUM(CI10:CI11))>ABS(CI12),SUM(CI10:CI12),0))))) -> 0 | CL12: =IF(SUM(CI10:CI11)>=0,(IF(CI12<0,(IF(ABS(CI12)>ABS(SUM(CI10:CI11)),SUM(CI10:CI11),ABS(CI12))),CI12)),(IF(CI12>0,(IF(ABS(CI12)>ABS(SUM(CI10:CI11)),SUM(CI10:CI12),0)),0))) -> 415.017 | CM12: =IF(SUM(CI10:CI11)<0,(IF(CI12<0,CI12,(IF(ABS(CI12)>ABS(SUM(CI10:CI11)),SUM(CI10:CI11),0-CI12)))),(IF(CI12<0,(IF(ABS(CI12)>ABS(SUM(CI10:CI11)),SUM(CI10:CI12),0)),0))) -> -118.463 | CN12: Materijalni troškovi Δ | CP12: 0 | CQ12: 0 | CR12: 415.017 | CS12: 0 | CT12: -118.463 | CU12: 0 | DV12: Ostali novčani primici iz poslovanja | DW12: =IFERROR(IF(Podloga!$B$19="Direktna",'NT dir.'!#REF!,),) -> 0 | DX12: =IFERROR(IF(Podloga!$B$19="Direktna",'NT dir.'!#REF!,),) -> 0 | DY12: =IFERROR(IF(Podloga!$B$19="Direktna",'NT dir.'!#REF!,),) -> 0 | DZ12: =IFERROR(IF(Podloga!$B$19="Direktna",'NT dir.'!#REF!,),) -> 0 | EA12: =IFERROR(IF(Podloga!$B$19="Direktna",'NT dir.'!#REF!,),) -> 0 | EE12: Ekonomičnost poslovnih aktivnosti | EF12: =EF9/EF10 -> 1.032005914 | EG12: =EG9/EG10 -> 0.8253925553 | EH12: 1.019913491 | EI12: 1.021602631 | EJ12: 1.033516254
AT13: Grad Osijek | BA13: ROA | BB13: =IFERROR(RDG!C63/Bilanca!C68,) -> 0.0002700035857 | BC13: =IFERROR(RDG!D63/Bilanca!D68,) -> -0.05289208048 | BD13: =IFERROR(RDG!E63/Bilanca!E68,) -> 0.000245959816 | BE13: =IFERROR(RDG!F63/Bilanca!F68,) -> 0.001282631344 | BF13: =IFERROR(RDG!G63/Bilanca!G68,) -> 0.001465738623 | BL13: X1 | BM13: =IFERROR('Altman Integral (A)'!C35/'Altman Integral (A)'!C36,) -> 0.04798640014 | BN13: =IFERROR('Altman Integral (A)'!D35/'Altman Integral (A)'!D36,) -> 0.02276017352 | BO13: =IFERROR('Altman Integral (A)'!E35/'Altman Integral (A)'!E36,) -> 0.03220642908 | BP13: =IFERROR('Altman Integral (A)'!F35/'Altman Integral (A)'!F36,) -> 0.04094478851 | BQ13: =IFERROR('Altman Integral (A)'!G35/'Altman Integral (A)'!G36,) -> 0.0188570359 | BR13: Koeficijent: | BS13: X1 | BT13: 0.717 | CH13: Troškovi osoblja Δ | CI13: =RDG!E17-RDG!F17 -> -144.309 | CK13: =IF(SUM(CI10:CI12)>=0,(IF(CI13>=0,SUM(CI10:CI12),(IF(ABS(SUM(CI10:CI12))>ABS(CI13),SUM(CI10:CI13),0)))),(IF(CI13<0,SUM(CI10:CI12),(IF(ABS(SUM(CI10:CI12))>ABS(CI13),SUM(CI10:CI13),0))))) -> -118.463 | CL13: =IF(SUM(CI10:CI12)>=0,(IF(CI13<0,(IF(ABS(CI13)>ABS(SUM(CI10:CI12)),SUM(CI10:CI12),ABS(CI13))),CI13)),(IF(CI13>0,(IF(ABS(CI13)>ABS(SUM(CI10:CI12)),SUM(CI10:CI13),0)),0))) -> 0 | CM13: =IF(SUM(CI10:CI12)<0,(IF(CI13<0,CI13,(IF(ABS(CI13)>ABS(SUM(CI10:CI12)),SUM(CI10:CI12),0-CI13)))),(IF(CI13<0,(IF(ABS(CI13)>ABS(SUM(CI10:CI12)),SUM(CI10:CI13),0)),0))) -> -144.309 | CN13: Troškovi osoblja Δ | CP13: -118.463 | CQ13: 0 | CR13: 0 | CS13: 0 | CT13: -144.309 | CU13: 0
AT14: Grad Poreč | BB14: =Podloga!B36 -> 2023. planirano | BC14: =Podloga!C36 -> 2023. ostvareno | BD14: =Podloga!D36 -> 2024. planirano | BE14: =Podloga!E36 -> 2024. procijenjeno | BF14: =Podloga!F36 -> 2025. planirano | BL14: X2 | BM14: =IFERROR('Altman Integral (A)'!C37/'Altman Integral (A)'!C36,) -> -0.1023210138 | BN14: =IFERROR('Altman Integral (A)'!D37/'Altman Integral (A)'!D36,) -> -0.1430756179 | BO14: =IFERROR('Altman Integral (A)'!E37/'Altman Integral (A)'!E36,) -> -0.1261056065 | BP14: =IFERROR('Altman Integral (A)'!F37/'Altman Integral (A)'!F36,) -> -0.1818517149 | BQ14: =IFERROR('Altman Integral (A)'!G37/'Altman Integral (A)'!G36,) -> -0.09783615839 | BS14: X2 | BT14: 0.847 | CH14: Ostali poslovni rashodi Δ | CI14: =(RDG!E11-RDG!E13-RDG!E17)-(RDG!F11-RDG!F13-RDG!F17) -> 282.048 | CK14: =IF(SUM(CI10:CI13)>=0,(IF(CI14>=0,SUM(CI10:CI13),(IF(ABS(SUM(CI10:CI13))>ABS(CI14),SUM(CI10:CI14),0)))),(IF(CI14<0,SUM(CI10:CI13),(IF(ABS(SUM(CI10:CI13))>ABS(CI14),SUM(CI10:CI14),0))))) -> 0 | CL14: =IF(SUM(CI10:CI13)>=0,(IF(CI14<0,(IF(ABS(CI14)>ABS(SUM(CI10:CI13)),SUM(CI10:CI13),ABS(CI14))),CI14)),(IF(CI14>0,(IF(ABS(CI14)>ABS(SUM(CI10:CI13)),SUM(CI10:CI14),0)),0))) -> 19.276 | CM14: =IF(SUM(CI10:CI13)<0,(IF(CI14<0,CI14,(IF(ABS(CI14)>ABS(SUM(CI10:CI13)),SUM(CI10:CI13),0-CI14)))),(IF(CI14<0,(IF(ABS(CI14)>ABS(SUM(CI10:CI13)),SUM(CI10:CI14),0)),0))) -> -262.772 | CN14: Ostali poslovni rashodi Δ | CP14: 0 | CQ14: 19.276 | CR14: 0 | CS14: -262.772 | CT14: 0 | CU14: 0 | EF14: =Podloga!B36 -> 2023. planirano | EG14: =Podloga!C36 -> 2023. ostvareno | EH14: =Podloga!D36 -> 2024. planirano | EI14: =Podloga!E36 -> 2024. procijenjeno | EJ14: =Podloga!F36 -> 2025. planirano
AT15: Grad Pula | BA15: EBIT/trošak kamata | BB15: =(RDG!C59+RDG!C46+RDG!C48)/(RDG!C46+RDG!C48) -> 1.096286915 | BC15: =(RDG!D59+RDG!D46+RDG!D48)/(RDG!D46+RDG!D48) -> -6.809558463 | BD15: =(RDG!E59+RDG!E46+RDG!E48)/(RDG!E46+RDG!E48) -> 1.089883617 | BE15: =(RDG!F59+RDG!F46+RDG!F48)/(RDG!F46+RDG!F48) -> 1.301023268 | BF15: =(RDG!G59+RDG!G46+RDG!G48)/(RDG!G46+RDG!G48) -> 1.441778838 | BL15: X3 | BM15: =IFERROR('Altman Integral (A)'!C38/'Altman Integral (A)'!C36,) -> 0.003074160155 | BN15: =IFERROR('Altman Integral (A)'!D38/'Altman Integral (A)'!D36,) -> -0.04611934413 | BO15: =IFERROR('Altman Integral (A)'!E38/'Altman Integral (A)'!E36,) -> 0.00298238526 | BP15: =IFERROR('Altman Integral (A)'!F38/'Altman Integral (A)'!F36,) -> 0.005543535672 | BQ15: =IFERROR('Altman Integral (A)'!G38/'Altman Integral (A)'!G36,) -> 0.004783549479 | BS15: X3 | BT15: 3.107 | CH15: Financijski i investicijski prihodi Δ | CI15: =(RDG!F34+RDG!F53+RDG!F54)-(RDG!E34+RDG!E53+RDG!E54) -> -0.478 | CK15: =IF(SUM(CI10:CI14)>=0,(IF(CI15>=0,SUM(CI10:CI14),(IF(ABS(SUM(CI10:CI14))>ABS(CI15),SUM(CI10:CI15),0)))),(IF(CI15<0,SUM(CI10:CI14),(IF(ABS(SUM(CI10:CI14))>ABS(CI15),SUM(CI10:CI15),0))))) -> 18.798 | CL15: =IF(SUM(CI10:CI14)>=0,(IF(CI15<0,(IF(ABS(CI15)>ABS(SUM(CI10:CI14)),SUM(CI10:CI14),ABS(CI15))),CI15)),(IF(CI15>0,(IF(ABS(CI15)>ABS(SUM(CI10:CI14)),SUM(CI10:CI15),0)),0))) -> 0.478 | CM15: =IF(SUM(CI10:CI14)<0,(IF(CI15<0,CI15,(IF(ABS(CI15)>ABS(SUM(CI10:CI14)),SUM(CI10:CI14),0-CI15)))),(IF(CI15<0,(IF(ABS(CI15)>ABS(SUM(CI10:CI14)),SUM(CI10:CI15),0)),0))) -> 0 | CN15: Financijski i investicijski prihodi Δ | CP15: 18.798 | CQ15: 0 | CR15: 0.478 | CS15: 0 | CT15: 0 | CU15: 0 | DX15: Omjer primitaka od poslovnih aktivnosti i poslovnih prihoda | EE15: Glavnica | EF15: =Bilanca!C75 -> 1495.613 | EG15: =Bilanca!D75 -> 812.816 | EH15: =Bilanca!E75 -> 909.625 | EI15: =Bilanca!F75 -> 831.614 | EJ15: =Bilanca!G75 -> 871.261
AT16: Grad Rijeka | BA16: Trošak kamata | BB16: =RDG!C46+RDG!C48 -> 54.483 | BC16: =RDG!D46+RDG!D48 -> 92.11 | BD16: =RDG!E46+RDG!E48 -> 55.85 | BE16: =RDG!F46+RDG!F48 -> 62.447 | BF16: =RDG!G46+RDG!G48 -> 89.744 | BL16: X4 | BM16: =IFERROR('Altman Integral (A)'!C41/'Altman Integral (A)'!C39,) -> 0.1943856486 | BN16: =IFERROR('Altman Integral (A)'!D41/'Altman Integral (A)'!D39,) -> 1.029754212 | BO16: =IFERROR('Altman Integral (A)'!E41/'Altman Integral (A)'!E39,) -> 0.1783775113 | BP16: =IFERROR('Altman Integral (A)'!F41/'Altman Integral (A)'!F39,) -> 1.02717222 | BQ16: =IFERROR('Altman Integral (A)'!G41/'Altman Integral (A)'!G39,) -> 0.9907062186 | BS16: X4 | BT16: 0.42 | CH16: Financijski i investicijski rashodi Δ | CI16: =(RDG!E45+RDG!E55+RDG!E56)-(RDG!F45+RDG!F55+RDG!F56) -> 0 | CK16: =IF(SUM(CI10:CI15)>=0,(IF(CI16>=0,SUM(CI10:CI15),(IF(ABS(SUM(CI10:CI15))>ABS(CI16),SUM(CI10:CI16),0)))),(IF(CI16<0,SUM(CI10:CI15),(IF(ABS(SUM(CI10:CI15))>ABS(CI16),SUM(CI10:CI16),0))))) -> 18.798 | CL16: =IF(SUM(CI10:CI15)>=0,(IF(CI16<0,(IF(ABS(CI16)>ABS(SUM(CI10:CI15)),SUM(CI10:CI15),ABS(CI16))),CI16)),(IF(CI16>0,(IF(ABS(CI16)>ABS(SUM(CI10:CI15)),SUM(CI10:CI16),0)),0))) -> 0 | CM16: =IF(SUM(CI10:CI15)<0,(IF(CI16<0,CI16,(IF(ABS(CI16)>ABS(SUM(CI10:CI15)),SUM(CI10:CI15),0-CI16)))),(IF(CI16<0,(IF(ABS(CI16)>ABS(SUM(CI10:CI15)),SUM(CI10:CI16),0)),0))) -> 0 | CN16: Financijski i investicijski rashodi Δ | CP16: 18.798 | CQ16: 0 | CR16: 0 | CS16: 0 | CT16: 0 | CU16: 0 | CW16: U milijunima kuna | DY16: =LEFT(Podloga!B36,5) -> 2023. | DZ16: =LEFT(Podloga!D36,5) -> 2024. | EA16: =LEFT(Podloga!F36,5) -> 2025. | EE16: Glavnica + dug. Obv | EF16: =Bilanca!C75+Bilanca!C103 -> 4460.004 | EG16: =Bilanca!D75+Bilanca!D103 -> 3772.47 | EH16: =Bilanca!E75+Bilanca!E103 -> 3709.042 | EI16: =Bilanca!F75+Bilanca!F103 -> 3791.267 | EJ16: =Bilanca!G75+Bilanca!G103 -> 3614.531
AT17: Grad Split | BB17: =Podloga!B36 -> 2023. planirano | BC17: =Podloga!C36 -> 2023. ostvareno | BD17: =Podloga!D36 -> 2024. planirano | BE17: =Podloga!E36 -> 2024. procijenjeno | BF17: =Podloga!F36 -> 2025. planirano | BL17: X5 | BM17: =IFERROR('Altman Integral (A)'!C40/'Altman Integral (A)'!C36,) -> 0.1097449801 | BN17: =IFERROR('Altman Integral (A)'!D40/'Altman Integral (A)'!D36,) -> 0.2179344331 | BO17: =IFERROR('Altman Integral (A)'!E40/'Altman Integral (A)'!E36,) -> 0.1688614089 | BP17: =IFERROR('Altman Integral (A)'!F40/'Altman Integral (A)'!F36,) -> 0.2631006586 | BQ17: =IFERROR('Altman Integral (A)'!G40/'Altman Integral (A)'!G36,) -> 0.1475905667 | BS17: X5 | BT17: 0.998 | CH17: Procijenjena bruto dobit tekuće godine | CI17: =RDG!F59 -> 18.798 | CJ17: =CI17 -> 18.798 | CN17: Procijenjena bruto dobit tekuće godine | CO17: =CJ17 -> 18.798 | CP17: 0 | CQ17: 0 | CR17: 0 | CS17: 0 | CT17: 0 | CU17: 0 | DL17: Analiza EBITDA (prethodne i tekuće godine) | DX17: Planirano | DY17: =DW4 -> 0 | DZ17: =DY4 -> 0 | EA17: =EA4 -> 0 | EE17: Dug. Imov | EF17: =Bilanca!C5 -> 18497.026 | EG17: =Bilanca!D5 -> 13185.73 | EH17: =Bilanca!E5 -> 19752.51 | EI17: =Bilanca!F5 -> 13933.584 | EJ17: =Bilanca!G5 -> 26432.344
AT18: Grad Trogir | BA18: Dug. materijalna | BB18: =Bilanca!C13 -> 18448.052 | BC18: =Bilanca!D13 -> 12957.886 | BD18: =Bilanca!E13 -> 19542.2 | BE18: =Bilanca!F13 -> 13744.809 | BF18: =Bilanca!G13 -> 26212.465 | BL18: Gornja granica | BM18: 2.9 | BN18: 2.9 | BO18: 2.9 | BP18: 2.9 | BQ18: 2.9 | DL18: U tisućama kuna | DR18: U milijunima kuna | DX18: Ostvareno | DY18: =DX4 -> 0.1689636418 | DZ18: =DZ4 -> 0.1262175202 | EE18: Stupanj pokrića I | EF18: =EF15/EF17 -> 0.08085694425 | EG18: =EG15/EG17 -> 0.06164361018 | EH18: 0.04605110945 | EI18: 0.05968414157 | EJ18: 0.03296192725
AT19: Grad Zadar | BA19: Dug. nematerijalna | BB19: =Bilanca!C6 -> 39.763 | BC19: =Bilanca!D6 -> 213.753 | BD19: =Bilanca!E6 -> 195.3 | BE19: =Bilanca!F6 -> 174.685 | BF19: =Bilanca!G6 -> 205.789 | BL19: Donja granica | BM19: 1.23 | BN19: 1.23 | BO19: 1.23 | BP19: 1.23 | BQ19: 1.23 | CG19: U milijunima kuna | CH19: Bruto dobit prethodne godine | CI19: =CI1/1000 -> -0.71933843 | CJ19: =CJ1/1000 -> -0.71933843 | CN19: =CN1 -> Bruto dobit prethodne godine | CO19: =CO1/1000 -> -0.71933843 | CP19: =CP1/1000 -> 0 | CQ19: 0 | CR19: 0 | CS19: 0 | CT19: 0 | CU19: 0 | CX19: Planirana EBITDA tekuće godine | CY19: =CY1/1000 -> 0.48587 | CZ19: =CZ1/1000 -> 0.48587 | DD19: =DD1 -> Planirana EBITDA tekuće godine | DE19: =DE1/1000 -> 0.48587 | DF19: =DF1/1000 -> 0 | DG19: =IF(CY19>=0,DB19,0) -> 0 | DH19: =IF(CY19<0,DB19,0) -> 0 | DI19: =IF(CY19>=0,DC19,0) -> 0 | DJ19: =IF(CY19<0,DC19,0) -> 0 | DK19: 0 | DL19: EBITDA prethodne godine | DM19: =BC3 -> -260.30743 | DN19: =DM19 -> -260.30743 | DR19: Ostvarena EBITDA prethodne godine | DS19: =DM19/1000 -> -0.26030743 | DT19: =DN19/1000 -> -0.26030743 | EE19: Stupanj pokrića II | EF19: =EF16/EF17 -> 0.241120059 | EG19: =EG16/EG17 -> 0.2861024759 | EH19: =EH16/EH17 -> 0.1877757308 | EI19: =EI16/EI17 -> 0.2720956073 | EJ19: =EJ16/EJ17 -> 0.1367465178
AT20: Grad Zagreb | BA20: Potraživanja | BB20: =Bilanca!C34+Bilanca!C49 -> 272.905 | BC20: =Bilanca!D34+Bilanca!D49 -> 232.881 | BD20: =Bilanca!E34+Bilanca!E49 -> 268.828 | BE20: =Bilanca!F34+Bilanca!F49 -> 254.74 | BF20: =Bilanca!G34+Bilanca!G49 -> 230.515 | CH20: Poslovni prihodi Δ | CI20: =CI2/1000 -> 0.891993 | CK20: =CK2/1000 -> 0 | CL20: =CL2/1000 -> 0.17265457 | CM20: =CM2/1000 -> -0.71933843 | CN20: =CN2 -> Poslovni prihodi Δ | CO20: =CO2/1000 -> 0 | CP20: 0 | CQ20: 0.17265457 | CR20: 0 | CS20: -0.71933843 | CT20: 0 | CU20: 0 | CX20: Prihodi od prodaje Δ | CY20: =CY2/1000 -> 0.360074 | DA20: =DA2/1000 -> 0.48587 | DB20: =DB2/1000 -> 0.360074 | DC20: =DC2/1000 -> 0 | DD20: =DD2 -> Prihodi od prodaje Δ | DE20: =DE2/1000 -> 0 | DF20: 0.48587 | DG20: 0.360074 | DH20: 0 | DI20: 0 | DJ20: 0 | DK20: 0 | DL20: Prihodi od prodaje Δ | DM20: =(RDG!F6+RDG!F7)-(RDG!D6+RDG!D7) -> 549.908 | DO20: =IF(SUM(DM19)>=0,(IF(DM20>=0,SUM(DM19),(IF(ABS(SUM(DM19))>ABS(DM20),SUM(DM19:DM20),0)))),(IF(DM20<0,SUM(DM19),(IF(ABS(SUM(DM19))>ABS(DM20),SUM(DM19:DM20),0))))) -> 0 | DP20: =IF(SUM(DM19)>=0,(IF(DM20<0,(IF(ABS(DM20)>ABS(SUM(DM19)),SUM(DM19),ABS(DM20))),DM20)),(IF(DM20>0,(IF(ABS(DM20)>ABS(SUM(DM19)),SUM(DM19:DM20),0)),0))) -> 289.60057 | DQ20: =IF(SUM(DM19)<0,(IF(DM20<0,DM20,(IF(ABS(DM20)>ABS(SUM(DM19)),SUM(DM19),0-DM20)))),(IF(DM20<0,(IF(ABS(DM20)>ABS(SUM(DM19)),SUM(DM19:DM20),0)),0))) -> -260.30743 | DR20: Prihodi od prodaje Δ | DS20: =DM20/1000 -> 0.549908 | DU20: =DO20/1000 -> 0 | DV20: =DP20/1000 -> 0.28960057 | DW20: =DQ20/1000 -> -0.26030743 | DX20: Koeficijent obrtaja imovine
AT21: Dubrovačko - neretvanska županija | BA21: Financijska imovina | BB21: =Bilanca!C23+Bilanca!C56+Bilanca!C39 -> 9.211 | BC21: =Bilanca!D23+Bilanca!D56+Bilanca!D39 -> 14.091 | BD21: =Bilanca!E23+Bilanca!E56+Bilanca!E39 -> 15.01 | BE21: =Bilanca!F23+Bilanca!F56+Bilanca!F39 -> 14.09 | BF21: =Bilanca!G23+Bilanca!G56+Bilanca!G39 -> 14.09 | CH21: Materijalni troškovi Δ | CI21: 0.075977 | CK21: =CK3/1000 -> 0.17265457 | CL21: 0.075977 | CM21: =CM3/1000 -> 0 | CN21: =CN3 -> Materijalni troškovi Δ | CO21: 0 | CP21: 0.17265457 | CQ21: 0.075977 | CR21: 0 | CS21: 0 | CT21: 0 | CU21: 0 | CX21: Ostali prihodi Δ | CY21: 0.049445 | DA21: 0.845944 | DB21: 0.049445 | DC21: =DC3/1000 -> 0 | DD21: Ostali prihodi Δ | DE21: 0 | DF21: 0.845944 | DG21: 0.049445 | DH21: 0 | DI21: 0 | DJ21: 0 | DK21: 0 | DL21: Ostali prihodi Δ | DM21: =(RDG!F57-RDG!F6-RDG!F7)-(RDG!D57-RDG!D6-RDG!D7) -> 342.11143 | DO21: =IF(SUM(DM19:DM20)>=0,(IF(DM21>=0,SUM(DM19:DM20),(IF(ABS(SUM(DM19:DM20))>ABS(DM21),SUM(DM19:DM21),0)))),(IF(DM21<0,SUM(DM19:DM20),(IF(ABS(SUM(DM19:DM20))>ABS(DM21),SUM(DM19:DM21),0))))) -> 289.60057 | DP21: =IF(SUM(DM19:DM20)>=0,(IF(DM21<0,(IF(ABS(DM21)>ABS(SUM(DM19:DM20)),SUM(DM19:DM20),ABS(DM21))),DM21)),(IF(DM21>0,(IF(ABS(DM21)>ABS(SUM(DM19:DM20)),SUM(DM19:DM21),0)),0))) -> 342.11143 | DQ21: =IF(SUM(DM19:DM20)<0,(IF(DM21<0,DM21,(IF(ABS(DM21)>ABS(SUM(DM19:DM20)),SUM(DM19:DM20),0-DM21)))),(IF(DM21<0,(IF(ABS(DM21)>ABS(SUM(DM19:DM20)),SUM(DM19:DM21),0)),0))) -> 0 | DR21: Ostali prihodi Δ | DS21: 0.34211143 | DU21: =DO21/1000 -> 0.28960057 | DV21: =DP21/1000 -> 0.34211143 | DW21: 0 | DY21: =LEFT(Podloga!B36,5) -> 2023. | DZ21: =LEFT(Podloga!D36,5) -> 2024. | EA21: =LEFT(Podloga!F36,5) -> 2025.
AT22: Istarska županija | BA22: Zalihe | BB22: =Bilanca!C41 -> 35.6436 | BC22: =Bilanca!D41 -> 25.756 | BD22: =Bilanca!E41 -> 36.499 | BE22: =Bilanca!F41 -> 41.417 | BF22: =Bilanca!G41 -> 49.552 | BL22: Altman b | CH22: Troškovi osoblja Δ | CI22: -0.286945 | CK22: 0 | CL22: 0.24863157 | CM22: =CM4/1000 -> -0.03831343 | CN22: Troškovi osoblja Δ | CO22: 0 | CP22: 0 | CQ22: 0 | CR22: 0.24863157 | CS22: 0 | CT22: -0.03831343 | CU22: 0 | CX22: Promjena vrijednosti zaliha Δ | CY22: 0 | DA22: 0.895389 | DB22: 0 | DC22: =DC4/1000 -> 0 | DD22: Promjena vrijednosti zaliha Δ | DE22: 0 | DF22: 0.895389 | DG22: 0 | DH22: 0 | DI22: 0 | DJ22: 0 | DK22: 0 | DL22: Promjena vrijednosti zaliha Δ | DM22: =RDG!D12-RDG!F12 -> 0 | DO22: =IF(SUM(DM19:DM21)>=0,(IF(DM22>=0,SUM(DM19:DM21),(IF(ABS(SUM(DM19:DM21))>ABS(DM22),SUM(DM19:DM22),0)))),(IF(DM22<0,SUM(DM19:DM21),(IF(ABS(SUM(DM19:DM21))>ABS(DM22),SUM(DM19:DM22),0))))) -> 631.712 | DP22: =IF(SUM(DM19:DM21)>=0,(IF(DM22<0,(IF(ABS(DM22)>ABS(SUM(DM19:DM21)),SUM(DM19:DM21),ABS(DM22))),DM22)),(IF(DM22>0,(IF(ABS(DM22)>ABS(SUM(DM20:DM21)),SUM(DM19:DM22),0)),0))) -> 0 | DQ22: =IF(SUM(DM19:DM21)<0,(IF(DM22<0,DM22,(IF(ABS(DM22)>ABS(SUM(DM19:DM21)),SUM(DM19:DM21),0-DM22)))),(IF(DM22<0,(IF(ABS(DM22)>ABS(SUM(DM19:DM21)),SUM(DM19:DM22),0)),0))) -> 0 | DR22: Promjena vrijednosti zaliha Δ | DS22: 0 | DU22: 0.631712 | DV22: 0 | DW22: 0 | DX22: Planirano | DY22: =EF4 -> 0.1097449801 | DZ22: =EH4 -> 0.1688614089 | EA22: =EJ4 -> 0.1475905667
AT23: Osječko - baranjska županija | BA23: Novac u banci i blagajni | BB23: =Bilanca!C66 -> 623.797 | BC23: =Bilanca!D66 -> 50.904 | BD23: =Bilanca!E66 -> 352.001 | BE23: =Bilanca!F66 -> 303.922 | BF23: =Bilanca!G66 -> 230 | BL23: X1 | BM23: ='Altman Integral (B)'!C35/'Altman Integral (B)'!C36 -> 0.04798640014 | BN23: ='Altman Integral (B)'!D35/'Altman Integral (B)'!D36 -> 0.02276017352 | BO23: ='Altman Integral (B)'!E35/'Altman Integral (B)'!E36 -> 0.03220642908 | BP23: ='Altman Integral (B)'!F35/'Altman Integral (B)'!F36 -> 0.04094478851 | BQ23: ='Altman Integral (B)'!G35/'Altman Integral (B)'!G36 -> 0.0188570359 | BR23: Koeficijent: | BS23: X1 | BT23: 6.56 | CH23: Ostali poslovni rashodi Δ | CI23: 0.027508 | CK23: -0.01080543 | CL23: 0 | CM23: =CM5/1000 -> -0.027508 | CN23: Ostali poslovni rashodi Δ | CO23: 0 | CP23: -0.01080543 | CQ23: 0 | CR23: 0 | CS23: -0.027508 | CT23: 0 | CU23: 0 | CX23: Materijalni troškovi Δ | CY23: -0.53348 | DA23: 0.361909 | DB23: 0.53348 | DC23: =DC5/1000 -> 0 | DD23: Materijalni troškovi Δ | DE23: 0 | DF23: 0.361909 | DG23: 0 | DH23: 0.53348 | DI23: 0 | DJ23: 0 | DK23: 0 | DL23: Materijalni troškovi Δ | DM23: =RDG!D13-RDG!F13 -> 75.977 | DO23: =IF(SUM(DM19:DM22)>=0,(IF(DM23>=0,SUM(DM19:DM22),(IF(ABS(SUM(DM19:DM22))>ABS(DM23),SUM(DM19:DM23),0)))),(IF(DM23<0,SUM(DM19:DM22),(IF(ABS(SUM(DM19:DM22))>ABS(DM23),SUM(DM19:DM23),0))))) -> 631.712 | DP23: =IF(SUM(DM19:DM22)>=0,(IF(DM23<0,(IF(ABS(DM23)>ABS(SUM(DM19:DM22)),SUM(DM19:DM22),ABS(DM23))),DM23)),(IF(DM23>0,(IF(ABS(DM23)>ABS(SUM(DM19:DM22)),SUM(DM19:DM23),0)),0))) -> 75.977 | DQ23: =IF(SUM(DM19:DM22)<0,(IF(DM23<0,DM23,(IF(ABS(DM23)>ABS(SUM(DM19:DM22)),SUM(DM19:DM22),0-DM23)))),(IF(DM23<0,(IF(ABS(DM23)>ABS(SUM(DM19:DM22)),SUM(DM19:DM23),0)),0))) -> 0 | DR23: Materijalni troškovi Δ | DS23: 0.075977 | DU23: 0.631712 | DV23: 0.075977 | DW23: 0 | DX23: Ostvareno | DY23: =EG4 -> 0.2179344331 | DZ23: =EI4 -> 0.2631006586
AT24: Primorsko-goranska županija | BA24: Ostalo | BB24: =Bilanca!C4+Bilanca!C67 -> 0 | BC24: =Bilanca!D4+Bilanca!D67 -> 104.845 | BD24: =Bilanca!E4+Bilanca!E67 -> 0 | BE24: =Bilanca!F4+Bilanca!F67 -> 122.146 | BF24: =Bilanca!G4+Bilanca!G67 -> 106.75 | BL24: X2 | BM24: ='Altman Integral (B)'!C37/'Altman Integral (B)'!C36 -> -0.1023210138 | BN24: ='Altman Integral (B)'!D37/'Altman Integral (B)'!D36 -> -0.1430756179 | BO24: ='Altman Integral (B)'!E37/'Altman Integral (B)'!E36 -> -0.1261056065 | BP24: ='Altman Integral (B)'!F37/'Altman Integral (B)'!F36 -> -0.1818517149 | BQ24: ='Altman Integral (B)'!G37/'Altman Integral (B)'!G36 -> -0.09783615839 | BS24: X2 | BT24: 3.26 | CH24: Financijski i investicijski prihodi Δ | CI24: 2.643e-05 | CK24: -0.010779 | CL24: 0 | CM24: =CM6/1000 -> -2.643e-05 | CN24: Financijski i investicijski prihodi Δ | CO24: 0 | CP24: -0.010779 | CQ24: 0 | CR24: 0 | CS24: -2.643e-05 | CT24: 0 | CU24: 0 | CX24: Troškovi osoblja Δ | CY24: -0.144309 | DA24: 0.2176 | DB24: 0.144309 | DC24: =DC6/1000 -> 0 | DD24: Troškovi osoblja Δ | DE24: 0 | DF24: 0.2176 | DG24: 0 | DH24: 0.144309 | DI24: 0 | DJ24: 0 | DK24: 0 | DL24: Troškovi osoblja Δ | DM24: =RDG!D17-RDG!F17 -> -286.945 | DO24: =IF(SUM(DM19:DM23)>=0,(IF(DM24>=0,SUM(DM19:DM23),(IF(ABS(SUM(DM19:DM23))>ABS(DM24),SUM(DM19:DM24),0)))),(IF(DM24<0,SUM(DM19:DM23),(IF(ABS(SUM(DM19:DM23))>ABS(DM24),SUM(DM19:DM24),0))))) -> 420.744 | DP24: =IF(SUM(DM19:DM23)>=0,(IF(DM24<0,(IF(ABS(DM24)>ABS(SUM(DM19:DM23)),SUM(DM19:DM23),ABS(DM24))),DM24)),(IF(DM24>0,(IF(ABS(DM24)>ABS(SUM(DM19:DM23)),SUM(DM19:DM24),0)),0))) -> 286.945 | DQ24: =IF(SUM(DM19:DM23)<0,(IF(DM24<0,DM24,(IF(ABS(DM24)>ABS(SUM(DM19:DM23)),SUM(DM19:DM23),0-DM24)))),(IF(DM24<0,(IF(ABS(DM24)>ABS(SUM(DM19:DM23)),SUM(DM19:DM24),0)),0))) -> 0 | DR24: Troškovi osoblja Δ | DS24: -0.286945 | DU24: 0.420744 | DV24: 0.286945 | DW24: 0
AT25: Splitsko-dalmatinska županija | BA25: Dug. materijalna / dug. izvori financiranja | BB25: =Bilanca!C13/(Bilanca!C75+Bilanca!C103) -> 4.136330819 | BC25: =Bilanca!D13/(Bilanca!D75+Bilanca!D103) -> 3.434854618 | BD25: =Bilanca!E13/(Bilanca!E75+Bilanca!E103) -> 5.268799868 | BE25: =Bilanca!F13/(Bilanca!F75+Bilanca!F103) -> 3.625386711 | BF25: =Bilanca!G13/(Bilanca!G75+Bilanca!G103) -> 7.251968513 | BL25: X3 | BM25: ='Altman Integral (B)'!C38/'Altman Integral (B)'!C36 -> 0.003074160155 | BN25: ='Altman Integral (B)'!D38/'Altman Integral (B)'!D36 -> -0.04611934413 | BO25: ='Altman Integral (B)'!E38/'Altman Integral (B)'!E36 -> 0.00298238526 | BP25: ='Altman Integral (B)'!F38/'Altman Integral (B)'!F36 -> 0.005543535672 | BQ25: ='Altman Integral (B)'!G38/'Altman Integral (B)'!G36 -> 0.004783549479 | BS25: X3 | BT25: 6.72 | CH25: Financijski i investicijski rashodi Δ | CI25: 0.029577 | CK25: 0 | CL25: 0.018798 | CM25: =CM7/1000 -> -0.010779 | CN25: Financijski i investicijski rashodi Δ | CO25: 0 | CP25: 0 | CQ25: 0.018798 | CR25: 0 | CS25: -0.010779 | CT25: 0 | CU25: 0 | CX25: Vrijednosna usklađenja Δ | CY25: 0 | DA25: 0.2176 | DB25: 0 | DC25: =DC7/1000 -> 0 | DD25: Vrijednosna usklađenja Δ | DE25: 0 | DF25: 0.2176 | DG25: 0 | DH25: 0 | DI25: 0 | DJ25: 0 | DK25: 0 | DL25: Vrijednosna usklađenja Δ | DM25: =RDG!D23-RDG!F23 -> 0 | DO25: =IF(SUM(DM19:DM24)>=0,(IF(DM25>=0,SUM(DM19:DM24),(IF(ABS(SUM(DM19:DM24))>ABS(DM25),SUM(DM19:DM25),0)))),(IF(DM25<0,SUM(DM19:DM24),(IF(ABS(SUM(DM19:DM24))>ABS(DM25),SUM(DM19:DM25),0))))) -> 420.744 | DP25: =IF(SUM(DM19:DM24)>=0,(IF(DM25<0,(IF(ABS(DM25)>ABS(SUM(DM19:DM24)),SUM(DM19:DM24),ABS(DM25))),DM25)),(IF(DM25>0,(IF(ABS(DM25)>ABS(SUM(DM19:DM24)),SUM(DM19:DM25),0)),0))) -> 0 | DQ25: =IF(SUM(DM19:DM24)<0,(IF(DM25<0,DM25,(IF(ABS(DM25)>ABS(SUM(DM19:DM24)),SUM(DM19:DM24),0-DM25)))),(IF(DM25<0,(IF(ABS(DM25)>ABS(SUM(DM19:DM24)),SUM(DM19:DM25),0)),0))) -> 0 | DR25: Vrijednosna usklađenja Δ | DS25: 0 | DU25: 0.420744 | DV25: 0 | DW25: 0
AT26: Zadarska županija | BA26: Ukupno: | BB26: =SUM(BB18:BB24) -> 19429.3716 | BC26: =SUM(BC18:BC24) -> 13600.116 | BD26: 20409.838 | BE26: 14655.809 | BF26: 27049.161 | BL26: X4 | BM26: ='Altman Integral (B)'!C41/'Altman Integral (B)'!C39 ->  | BN26: ='Altman Integral (B)'!D41/'Altman Integral (B)'!D39 ->  | BO26: ='Altman Integral (B)'!E41/'Altman Integral (B)'!E39 ->  | BP26: ='Altman Integral (B)'!F41/'Altman Integral (B)'!F39 ->  | BQ26: ='Altman Integral (B)'!G41/'Altman Integral (B)'!G39 ->  | BS26: X4 | BT26: 1.05 | CH26: Procijenjena bruto dobit tekuće godine | CI26: 0.018798 | CJ26: =CJ8/1000 -> 0.018798 | CN26: Procijenjena bruto dobit tekuće godine | CO26: 0.018798 | CP26: 0 | CQ26: 0 | CR26: 0 | CS26: 0 | CT26: 0 | CU26: 0 | CX26: Rezerviranja Δ | CY26: -0.063854 | DA26: 0.153746 | DB26: 0.063854 | DC26: =DC8/1000 -> 0 | DD26: Rezerviranja Δ | DE26: 0 | DF26: 0.153746 | DG26: 0 | DH26: 0.063854 | DI26: 0 | DJ26: 0 | DK26: 0 | DL26: Rezerviranja Δ | DM26: =RDG!D26-RDG!F26 -> 1.576 | DO26: =IF(SUM(DM19:DM25)>=0,(IF(DM26>=0,SUM(DM19:DM25),(IF(ABS(SUM(DM19:DM25))>ABS(DM26),SUM(DM19:DM26),0)))),(IF(DM26<0,SUM(DM19:DM25),(IF(ABS(SUM(DM19:DM25))>ABS(DM26),SUM(DM19:DM26),0))))) -> 420.744 | DP26: =IF(SUM(DM19:DM25)>=0,(IF(DM26<0,(IF(ABS(DM26)>ABS(SUM(DM19:DM25)),SUM(DM19:DM25),ABS(DM26))),DM26)),(IF(DM26>0,(IF(ABS(DM26)>ABS(SUM(DM19:DM25)),SUM(DM19:DM26),0)),0))) -> 1.576 | DQ26: =IF(SUM(DM19:DM25)<0,(IF(DM26<0,DM26,(IF(ABS(DM26)>ABS(SUM(DM19:DM25)),SUM(DM19:DM25),0-DM26)))),(IF(DM26<0,(IF(ABS(DM26)>ABS(SUM(DM19:DM25)),SUM(DM19:DM26),0)),0))) -> 0 | DR26: Rezerviranja Δ | DS26: 0.001576 | DU26: 0.420744 | DV26: 0.001576 | DW26: 0
AT27: općina Zemunik Donji | BB27: =Podloga!B36 -> 2023. planirano | BC27: =Podloga!C36 -> 2023. ostvareno | BD27: =Podloga!D36 -> 2024. planirano | BE27: =Podloga!E36 -> 2024. procijenjeno | BF27: =Podloga!F36 -> 2025. planirano | BL27: Gornja granica | BM27: 2.6 | BN27: 2.6 | BO27: 2.6 | BP27: 2.6 | BQ27: 2.6 | CX27: Ostali poslovni rashodi Δ | CY27: =CY9/1000 -> 0.291015 | DA27: 0.153746 | DB27: 0.291015 | DC27: =DC9/1000 -> 0 | DD27: Ostali poslovni rashodi Δ | DE27: 0 | DF27: 0.153746 | DG27: 0.291015 | DH27: 0 | DI27: 0 | DJ27: 0 | DK27: 0 | DL27: Ostali poslovni rashodi Δ | DM27: =(RDG!D22+RDG!D33+RDG!D55+RDG!D56)-(RDG!F22+RDG!F33+RDG!F55+RDG!F56) -> 29.124 | DO27: =IF(SUM(DM19:DM26)>=0,(IF(DM27>=0,SUM(DM19:DM26),(IF(ABS(SUM(DM19:DM26))>ABS(DM27),SUM(DM19:DM27),0)))),(IF(DM27<0,SUM(DM19:DM26),(IF(ABS(SUM(DM19:DM26))>ABS(DM27),SUM(DM19:DM27),0))))) -> 422.32 | DP27: =IF(SUM(DM19:DM26)>=0,(IF(DM27<0,(IF(ABS(DM27)>ABS(SUM(DM19:DM26)),SUM(DM19:DM26),ABS(DM27))),DM27)),(IF(DM27>0,(IF(ABS(DM27)>ABS(SUM(DM19:DM26)),SUM(DM19:DM27),0)),0))) -> 29.124 | DQ27: =IF(SUM(DM19:DM26)<0,(IF(DM27<0,DM27,(IF(ABS(DM27)>ABS(SUM(DM19:DM26)),SUM(DM19:DM26),0-DM27)))),(IF(DM27<0,(IF(ABS(DM27)>ABS(SUM(DM19:DM26)),SUM(DM19:DM27),0)),0))) -> 0 | DR27: Ostali poslovni rashodi Δ | DS27: 0.029124 | DU27: 0.42232 | DV27: 0.029124 | DW27: 0
BA28: Neto radni kapital | BB28: =Bilanca!C40-Bilanca!C115 -> -13997.5834 | BC28: =Bilanca!D40-Bilanca!D115 -> -108.31 | BD28: =Bilanca!E40-Bilanca!E115 -> -16043.471 | BE28: =Bilanca!F40-Bilanca!F115 -> 173.737 | BF28: =Bilanca!G40-Bilanca!G115 -> -257.29 | BL28: Donja granica | BM28: 1.1 | BN28: 1.1 | BO28: 1.1 | BP28: 1.1 | BQ28: 1.1 | CH28: Planirana bruto dobit tekuće godine | CI28: =CI10/1000 -> 0.00502 | CJ28: =CJ10/1000 -> 0.00502 | CN28: Planirana bruto dobit tekuće godine | CO28: 0.00502 | CP28: 0 | CQ28: 0 | CR28: 0 | CS28: 0 | CT28: 0 | CU28: 0 | CX28: Financijski rashodi (bez kamata) Δ | CY28: 0.006597 | DA28: 0.444761 | DB28: 0.006597 | DC28: =DC10/1000 -> 0 | DD28: Financijski rashodi (bez kamata) Δ | DE28: 0 | DF28: 0.444761 | DG28: 0.006597 | DH28: 0 | DI28: 0 | DJ28: 0 | DK28: 0 | DL28: Financijski rashodi (bez kamata) Δ | DM28: =(RDG!D45-RDG!D46-RDG!D48)-(RDG!F45-RDG!F46-RDG!F48) -> -0.086 | DO28: =IF(SUM(DM19:DM27)>=0,(IF(DM28>=0,SUM(DM19:DM27),(IF(ABS(SUM(DM19:DM27))>ABS(DM28),SUM(DM19:DM28),0)))),(IF(DM28<0,SUM(DM19:DM27),(IF(ABS(SUM(DM19:DM27))>ABS(DM28),SUM(DM19:DM28),0))))) -> 451.358 | DP28: =IF(SUM(DM19:DM27)>=0,(IF(DM28<0,(IF(ABS(DM28)>ABS(SUM(DM19:DM27)),SUM(DM19:DM27),ABS(DM28))),DM28)),(IF(DM28>0,(IF(ABS(DM28)>ABS(SUM(DM19:DM27)),SUM(DM19:DM28),0)),0))) -> 0.086 | DQ28: =IF(SUM(DM19:DM27)<0,(IF(DM28<0,DM28,(IF(ABS(DM28)>ABS(SUM(DM19:DM27)),SUM(DM19:DM27),0-DM28)))),(IF(DM28<0,(IF(ABS(DM28)>ABS(SUM(DM19:DM27)),SUM(DM19:DM28),0)),0))) -> 0 | DR28: Financijski rashodi (bez kamata) Δ | DS28: -8.6e-05 | DU28: 0.451358 | DV28: 8.6e-05 | DW28: 0
BA29: Koeficijent tekuće likvidnosti | BB29: =Bilanca!C40/Bilanca!C115 -> 0.06244809336 | BC29: =Bilanca!D40/Bilanca!D115 -> 0.7407927706 | BD29: =Bilanca!E40/Bilanca!E115 -> 0.03935907498 | BE29: =Bilanca!F40/Bilanca!F115 -> 1.40750618 | BF29: =Bilanca!G40/Bilanca!G115 -> 0.664706258 | CH29: Poslovni prihodi Δ | CI29: =CI11/1000 -> 0.409997 | CK29: =CK11/1000 -> 0.00502 | CL29: 0.409997 | CM29: =CM11/1000 -> 0 | CN29: Poslovni prihodi Δ | CO29: 0 | CP29: 0.00502 | CQ29: 0.409997 | CR29: 0 | CS29: 0 | CT29: =IF(CI29<0,CM29,0) -> 0 | CU29: 0 | CX29: Procijenjena EBITDA tekuće godine | CY29: =CY11/1000 -> 0.451358 | CZ29: =CZ11/1000 -> 0.451358 | DD29: Procijenjena EBITDA tekuće godine | DE29: 0.451358 | DF29: 0 | DG29: 0 | DH29: 0 | DI29: 0 | DJ29: 0 | DK29: 0 | DL29: Procijenjena EBITDA tekuće godine | DM29: =BE3 -> 451.358 | DN29: =DM29 -> 451.358 | DR29: Procijenjena EBITDA tekuće godine | DS29: 0.451358 | DT29: =DN29/1000 -> 0.451358
BA30: Koeficijent ubrzane likvidnosti | BB30: =(Bilanca!C40-Bilanca!C41)/Bilanca!C115 -> 0.06006070089 | BC30: =(Bilanca!D40-Bilanca!D41)/Bilanca!D115 -> 0.6791535739 | BD30: =(Bilanca!E40-Bilanca!E41)/Bilanca!E115 -> 0.03717361068 | BE30: =(Bilanca!F40-Bilanca!F41)/Bilanca!F115 -> 1.310361165 | BF30: =(Bilanca!G40-Bilanca!G41)/Bilanca!G115 -> 0.60013136 | CH30: Materijalni troškovi Δ | CI30: -0.53348 | CK30: 0 | CL30: 0.415017 | CM30: =CM12/1000 -> -0.118463 | CN30: Materijalni troškovi Δ | CO30: 0 | CP30: 0 | CQ30: 0 | CR30: 0.415017 | CS30: 0 | CT30: -0.118463 | CU30: 0 | DO30: =DR19 -> Ostvarena EBITDA prethodne godine | DP30: =DS19 -> -0.26030743 | DQ30: =DT19 -> -0.26030743 | DR30: =DU19 -> 0 | DS30: =IF(DS19>=0,DV19,0) -> 0 | DT30: =IF(DS19<0,DV19,0) -> 0 | DU30: =IF(DS19>=0,DW19,0) -> 0 | DV30: =IF(DS19<0,DW19,0) -> 0 | DW30: 0
BB31: =Podloga!B36 -> 2023. planirano | BC31: =Podloga!C36 -> 2023. ostvareno | BD31: =Podloga!D36 -> 2024. planirano | BE31: =Podloga!E36 -> 2024. procijenjeno | BF31: =Podloga!F36 -> 2025. planirano | CH31: Troškovi osoblja Δ | CI31: -0.144309 | CK31: -0.118463 | CL31: 0 | CM31: =CM13/1000 -> -0.144309 | CN31: Troškovi osoblja Δ | CO31: 0 | CP31: -0.118463 | CQ31: 0 | CR31: 0 | CS31: 0 | CT31: -0.144309 | CU31: 0 | DO31: =DR20 -> Prihodi od prodaje Δ | DP31: =DS20 -> 0.549908 | DR31: =DU20 -> 0 | DS31: 0.28960057 | DT31: 0 | DU31: -0.26030743 | DV31: 0 | DW31: 0
BA32: Kapital/imovina | BB32: =Bilanca!C75/Bilanca!C68 -> 0.07697691057 | BC32: =Bilanca!D75/Bilanca!D68 -> 0.05976537259 | BD32: =Bilanca!E75/Bilanca!E68 -> 0.04456796766 | BE32: =Bilanca!F75/Bilanca!F68 -> 0.0567429611 | BF32: =Bilanca!G75/Bilanca!G68 -> 0.03221027817 | CH32: Ostali poslovni rashodi Δ | CI32: 0.282048 | CK32: 0 | CL32: 0.019276 | CM32: =CM14/1000 -> -0.262772 | CN32: Ostali poslovni rashodi Δ | CO32: 0 | CP32: 0 | CQ32: 0.019276 | CR32: 0 | CS32: -0.262772 | CT32: 0 | CU32: 0 | DO32: Ostali prihodi Δ | DP32: 0.34211143 | DR32: 0.28960057 | DS32: 0.34211143 | DT32: 0 | DU32: 0 | DV32: 0 | DW32: 0
BA33: Kapacitet zaduženja na 5 godina | BB33: =BB3*5 -> 1745.325 | BC33: =BC3*5 -> -1301.53715 | BD33: 2429.35 | BE33: 2256.79 | BF33: 2506.955 | CH33: Financijski i investicijski prihodi Δ | CI33: -0.000478 | CK33: 0.018798 | CL33: 0.000478 | CM33: =CM15/1000 -> 0 | CN33: Financijski i investicijski prihodi Δ | CO33: 0 | CP33: 0.018798 | CQ33: 0 | CR33: 0.000478 | CS33: 0 | CT33: 0 | CU33: 0 | DO33: Promjena vrijednosti zaliha Δ | DP33: 0 | DR33: 0.631712 | DS33: 0 | DT33: 0 | DU33: 0 | DV33: 0 | DW33: 0
BA34: Odnos duga i EBITDA | BB34: =BB44/BB3 -> 51.26357555 | BC34: -49.03894599 | BD34: 40.13463684 | BE34: 30.57904147 | BF34: 52.21054825 | CH34: Financijski i investicijski rashodi Δ | CI34: 0 | CK34: 0.018798 | CL34: 0 | CM34: =CM16/1000 -> 0 | CN34: Financijski i investicijski rashodi Δ | CO34: 0 | CP34: 0.018798 | CQ34: 0 | CR34: 0 | CS34: 0 | CT34: 0 | CU34: 0 | DO34: Materijalni troškovi Δ | DP34: 0.075977 | DR34: 0.631712 | DS34: 0.075977 | DT34: 0 | DU34: 0 | DV34: 0 | DW34: 0
BB35: =Podloga!B36 -> 2023. planirano | BC35: =Podloga!C36 -> 2023. ostvareno | BD35: =Podloga!D36 -> 2024. planirano | BE35: =Podloga!E36 -> 2024. procijenjeno | BF35: =Podloga!F36 -> 2025. planirano | CH35: Procijenjena bruto dobit tekuće godine | CI35: 0.018798 | CJ35: =CJ17/1000 -> 0.018798 | CN35: Procijenjena bruto dobit tekuće godine | CO35: 0.018798 | CP35: 0 | CQ35: 0 | CR35: 0 | CS35: 0 | CT35: 0 | CU35: 0 | DO35: Troškovi osoblja Δ | DP35: -0.286945 | DR35: 0.420744 | DS35: 0 | DT35: 0.286945 | DU35: 0 | DV35: 0 | DW35: 0
BA36: Dani vezivanja zaliha | BB36: =365/BB37 -> 18.77029109 | BC36: 8.648041506 | BD36: 10.43323487 | BE36: 9.234881195 | BF36: 10.4762313 | DO36: Vrijednosna usklađenja Δ | DP36: 0 | DR36: 0.420744 | DS36: 0 | DT36: 0 | DU36: 0 | DV36: 0 | DW36: 0
BA37: Koeficijent obrtaja zaliha | BB37: =(RDG!C6+RDG!C7)/Bilanca!C41 -> 19.44562278 | BC37: =(RDG!D6+RDG!D7)/Bilanca!D41 -> 42.2060879 | BD37: =(RDG!E6+RDG!E7)/Bilanca!E41 -> 34.98435574 | BE37: =(RDG!F6+RDG!F7)/Bilanca!F41 -> 39.52406017 | BF37: =(RDG!G6+RDG!G7)/Bilanca!G41 -> 34.84077333 | DO37: Rezerviranja Δ | DP37: 0.001576 | DR37: 0.420744 | DS37: 0.001576 | DT37: 0 | DU37: 0 | DV37: 0 | DW37: 0
BA38: Dugoročne obveze | BB38: =Bilanca!C103 -> 2964.391 | BC38: =Bilanca!D103 -> 2959.654 | BD38: =Bilanca!E103 -> 2799.417 | BE38: =Bilanca!F103 -> 2959.653 | BF38: =Bilanca!G103 -> 2743.27 | DO38: Ostali poslovni rashodi Δ | DP38: 0.029124 | DR38: 0.42232 | DS38: 0.029124 | DT38: 0 | DU38: 0 | DV38: 0 | DW38: 0
BB39: =Podloga!B36 -> 2023. planirano | BC39: =Podloga!C36 -> 2023. ostvareno | BD39: =Podloga!D36 -> 2024. planirano | BE39: =Podloga!E36 -> 2024. procijenjeno | BF39: =Podloga!F36 -> 2025. planirano | DO39: Financijski rashodi (bez kamata) Δ | DP39: -8.6e-05 | DR39: 0.451358 | DS39: 0 | DT39: 8.6e-05 | DU39: 0 | DV39: 0 | DW39: 0
BA40: Trajanje naplate potraživanja | BB40: =365/BB41 ->  | DO40: Procijenjena EBITDA tekuće godine | DP40: 0.451358 | DQ40: =DT29 -> 0.451358 | DR40: 0 | DS40: 0 | DT40: 0 | DU40: 0 | DV40: 0 | DW40: 0
BA41: Koeficijent obrtaja potraživanja | BB41: =(RDG!C6+RDG!C7)/(Bilanca!C51) ->  | BC41: =(RDG!D6+RDG!D7)/(Bilanca!D51) ->  | BD41: =(RDG!E6+RDG!E7)/(Bilanca!E51) ->  | BE41: =(RDG!F6+RDG!F7)/(Bilanca!F51) ->  | BF41: =(RDG!G6+RDG!G7)/(Bilanca!G51) -> 
BB43: =Podloga!B36 -> 2023. planirano | BC43: =Podloga!C36 -> 2023. ostvareno | BD43: =Podloga!D36 -> 2024. planirano | BE43: =Podloga!E36 -> 2024. procijenjeno | BF43: =Podloga!F36 -> 2025. planirano
BA44: Dug | BB44: =Bilanca!C103+Bilanca!C115+Bilanca!C130 -> 17894.32 | BC44: =Bilanca!D103+Bilanca!D115+Bilanca!D130 -> 12765.202 | BD44: =Bilanca!E103+Bilanca!E115+Bilanca!E130 -> 19500.216 | BE44: =Bilanca!F103+Bilanca!F115+Bilanca!F130 -> 13802.095 | BF44: =Bilanca!G103+Bilanca!G115+Bilanca!G130 -> 26177.899
BB46: =Podloga!C36 -> 2023. ostvareno | BC46: =Podloga!E36 -> 2024. procijenjeno | BD46: =Podloga!B36 -> 2023. planirano | BE46: =Podloga!D36 -> 2024. planirano | BF46: =Podloga!F36 -> 2025. planirano
BA47: Dug/EBITDA | BB47: =BC44/BC3 -> -49.03894599 | BC47: =BE44/BE3 -> 30.57904147 | BD47: =BB44/BB3 -> 51.26357555 | BE47: =BD44/BD3 -> 40.13463684 | BF47: =BF44/BF3 -> 52.21054825
BA48: Dug/Pasiva | BB48: =BC44/BC91 -> 0.9386094433 | BC48: =BE44/BE91 -> 0.9417489116 | BD48: =BB44/BB91 -> 0.9209931787 | BE48: =BD44/BD91 -> 0.9554320389 | BF48: =BF44/BF91 -> 0.9677897206
BA49: Tekuća likvidnost | BB49: =IFERROR(Bilanca!D40/Bilanca!D115,) -> 0.7407927706 | BC49: =IFERROR(Bilanca!F40/Bilanca!F115,) -> 1.40750618 | BD49: =IFERROR(Bilanca!C40/Bilanca!C115,) -> 0.06244809336 | BE49: =IFERROR(Bilanca!E40/Bilanca!E115,) -> 0.03935907498 | BF49: =IFERROR(Bilanca!G40/Bilanca!G115,) -> 0.664706258
BB52: =Podloga!B36 -> 2023. planirano | BC52: =Podloga!C36 -> 2023. ostvareno | BD52: =Podloga!D36 -> 2024. planirano | BE52: =Podloga!E36 -> 2024. procijenjeno | BF52: =Podloga!F36 -> 2025. planirano
BA53: Poslovne akt. | BB53: =IF(Podloga!$B$19="Direktna",'NT dir.'!C18,'NT indir.'!C26) -> -54.483 | BC53: =IF(Podloga!$B$19="Direktna",'NT dir.'!D18,'NT indir.'!D26) -> 12863.64 | BD53: =IF(Podloga!$B$19="Direktna",'NT dir.'!E18,'NT indir.'!E26) -> -55.85 | BE53: =IF(Podloga!$B$19="Direktna",'NT dir.'!F18,'NT indir.'!F26) -> 1354.956 | BF53: =IF(Podloga!$B$19="Direktna",'NT dir.'!G18,'NT indir.'!G26) -> 12863.64
BA54: Investicijske akt. | BB54: =IF(Podloga!$B$19="Direktna",'NT dir.'!C33,'NT indir.'!C41) -> -6226.909 | BC54: =IF(Podloga!$B$19="Direktna",'NT dir.'!D33,'NT indir.'!D41) -> -12467.053 | BD54: =IF(Podloga!$B$19="Direktna",'NT dir.'!E33,'NT indir.'!E41) -> 0.52 | BE54: =IF(Podloga!$B$19="Direktna",'NT dir.'!F33,'NT indir.'!F41) -> -1101.938 | BF54: =IF(Podloga!$B$19="Direktna",'NT dir.'!G33,'NT indir.'!G41) -> -12467.053
BA55: Financijske akt. | BB55: =IF(Podloga!$B$19="Direktna",'NT dir.'!C46+'NT dir.'!C47,'NT indir.'!C54+'NT indir.'!C55) -> 0 | BC55: =IF(Podloga!$B$19="Direktna",'NT dir.'!D46+'NT dir.'!D47,'NT indir.'!D54+'NT indir.'!D55) -> -217.491 | BD55: =IF(Podloga!$B$19="Direktna",'NT dir.'!E46+'NT dir.'!E47,'NT indir.'!E54+'NT indir.'!E55) -> 0 | BE55: =IF(Podloga!$B$19="Direktna",'NT dir.'!F46+'NT dir.'!F47,'NT indir.'!F54+'NT indir.'!F55) -> 0 | BF55: =IF(Podloga!$B$19="Direktna",'NT dir.'!G46+'NT dir.'!G47,'NT indir.'!G54+'NT indir.'!G55) -> -217.491
BA56: Ukupno novč. tokovi | BB56: =IF(Podloga!$B$19="Direktna",'NT dir.'!C48,'NT indir.'!C56) -> 25.042 | BC56: =IF(Podloga!$B$19="Direktna",'NT dir.'!D48,'NT indir.'!D56) -> 179.096 | BD56: =IF(Podloga!$B$19="Direktna",'NT dir.'!E48,'NT indir.'!E56) -> 51.208 | BE56: =IF(Podloga!$B$19="Direktna",'NT dir.'!F48,'NT indir.'!F56) -> 253.018 | BF56: =IF(Podloga!$B$19="Direktna",'NT dir.'!G48,'NT indir.'!G56) -> 179.096
BB59: =Podloga!B36 -> 2023. planirano | BC59: =Podloga!C36 -> 2023. ostvareno | BD59: =Podloga!D36 -> 2024. planirano | BE59: =Podloga!E36 -> 2024. procijenjeno | BF59: =Podloga!F36 -> 2025. planirano
BA60: Ukupni prihodi | BB60: =RDG!C57 -> 2132.276 | BC60: =RDG!D57 -> 2963.93357 | BD60: =RDG!E57 -> 3446.434 | BE60: =RDG!F57 -> 3855.953 | BF60: =RDG!G57 -> 3992.201
BA61: Prihodi od prodaje | BB61: =RDG!C6+RDG!C7 -> 693.112 | BC61: =RDG!D6+RDG!D7 -> 1087.06 | BD61: =RDG!E6+RDG!E7 -> 1276.894 | BE61: =RDG!F6+RDG!F7 -> 1636.968 | BF61: =RDG!G6+RDG!G7 -> 1726.43
BA62: Ostali prihodi | BB62: =RDG!C57-RDG!C6-RDG!C7 -> 1439.164 | BC62: =RDG!D57-RDG!D6-RDG!D7 -> 1876.87357 | BD62: =RDG!E57-RDG!E6-RDG!E7 -> 2169.54 | BE62: =RDG!F57-RDG!F6-RDG!F7 -> 2218.985 | BF62: =RDG!G57-RDG!G6-RDG!G7 -> 2265.771
BA63: Ukupni rashodi | BB63: =(0-RDG!C58) -> -2127.03 | BC63: =(0-RDG!D58) -> -3683.272 | BD63: =(0-RDG!E58) -> -3441.414 | BE63: =(0-RDG!F58) -> -3837.155 | BF63: =(0-RDG!G58) -> -3952.554
BA64: Bruto dobit | BB64: =RDG!C59 -> 5.246 | BC64: =RDG!D59 -> -719.33843 | BD64: =RDG!E59 -> 5.02 | BE64: =RDG!F59 -> 18.798 | BF64: =RDG!G59 -> 39.647
BA65: Marža bruto dobiti | BB65: =BB64/BB60 -> 0.002460281877 | BC65: =BC64/BC60 -> -0.2426972174 | BD65: 0.001456578017 | BE65: 0.004875059421 | BF65: 0.009931113188
BB68: =Podloga!B36 -> 2023. planirano | BC68: =Podloga!C36 -> 2023. ostvareno | BD68: =Podloga!D36 -> 2024. planirano | BE68: =Podloga!E36 -> 2024. procijenjeno | BF68: =Podloga!F36 -> 2025. planirano
BA69: Promjene vrijednosti zaliha | BB69: =RDG!C12 -> 0 | BC69: =RDG!D12 -> 0 | BD69: =RDG!E12 -> 0 | BE69: =RDG!F12 -> 0 | BF69: =RDG!G12 -> 0
BA70: Materijalni troškovi | BB70: =RDG!C13 -> 736.45 | BC70: =RDG!D13 -> 2032.807 | BD70: =RDG!E13 -> 1423.35 | BE70: =RDG!F13 -> 1956.83 | BF70: =RDG!G13 -> 1697.981
BA71: Troškovi osoblja | BB71: =RDG!C17 -> 877.529 | BC71: =RDG!D17 -> 838.818 | BD71: =RDG!E17 -> 981.454 | BE71: =RDG!F17 -> 1125.763 | BF71: =RDG!G17 -> 1509.675
BA72: Amortizacija | BB72: =RDG!C21 -> 289.336 | BC72: =RDG!D21 -> 366.921 | BD72: =RDG!E21 -> 425 | BE72: =RDG!F21 -> 370.113 | BF72: =RDG!G21 -> 372
BA73: Vrijednosna usklađenja | BB73: =RDG!C23 -> 0 | BC73: =RDG!D23 -> 0 | BD73: =RDG!E23 -> 0 | BE73: =RDG!F23 -> 0 | BF73: =RDG!G23 -> 0
BA74: Rezerviranja | BB74: =RDG!C26 -> 0 | BC74: =RDG!D26 -> 65.43 | BD74: =RDG!E26 -> 0 | BE74: =RDG!F26 -> 63.854 | BF74: =RDG!G26 -> 0
BA75: Ostali poslovni rashodi | BB75: =RDG!C22+RDG!C33 -> 162.397 | BC75: =RDG!D22+RDG!D33 -> 286.919 | BD75: =RDG!E22+RDG!E33 -> 548.81 | BE75: =RDG!F22+RDG!F33 -> 257.795 | BF75: =RDG!G22+RDG!G33 -> 282.5
BA79: Bilanca (u 000 kn)
BB80: =Podloga!B36 -> 2023. planirano | BC80: =Podloga!C36 -> 2023. ostvareno | BD80: =Podloga!D36 -> 2024. planirano | BE80: =Podloga!E36 -> 2024. procijenjeno | BF80: =Podloga!F36 -> 2025. planirano
BA81: Dugotrajna imovina | BB81: =Bilanca!C5+Bilanca!C4 -> 18497.026 | BC81: =Bilanca!D5+Bilanca!D4 -> 13185.73 | BD81: =Bilanca!E5+Bilanca!E4 -> 19752.51 | BE81: =Bilanca!F5+Bilanca!F4 -> 13933.584 | BF81: =Bilanca!G5+Bilanca!G4 -> 26432.344
BA82: Kratkotrajna imovina | BB82: =Bilanca!C40 -> 932.3456 | BC82: =Bilanca!D40 -> 309.541 | BD82: =Bilanca!E40 -> 657.328 | BE82: =Bilanca!F40 -> 600.079 | BF82: =Bilanca!G40 -> 510.067
BA83: Plaćeni troškovi budućeg razdoblja i obračunati prihodi | BB83: =Bilanca!C67 -> 0 | BC83: =Bilanca!D67 -> 104.845 | BD83: =Bilanca!E67 -> 0 | BE83: =Bilanca!F67 -> 122.146 | BF83: =Bilanca!G67 -> 106.75
BA84: Ukupno aktiva | BB84: =SUM(BB81:BB83) -> 19429.3716 | BC84: 13600.116 | BD84: 20409.838 | BE84: 14655.809 | BF84: 27049.161
BA86: Kapital i rezerve | BB86: =Bilanca!C75 -> 1495.613 | BC86: =Bilanca!D75 -> 812.816 | BD86: =Bilanca!E75 -> 909.625 | BE86: =Bilanca!F75 -> 831.614 | BF86: =Bilanca!G75 -> 871.261
BA87: Rezerviranja | BB87: =Bilanca!C96 -> 39.44 | BC87: =Bilanca!D96 -> 22.103 | BD87: =Bilanca!E96 -> 0 | BE87: =Bilanca!F96 -> 22.103 | BF87: =Bilanca!G96 -> 0
BA88: Dugoročne obveze | BB88: =Bilanca!C103 -> 2964.391 | BC88: =Bilanca!D103 -> 2959.654 | BD88: =Bilanca!E103 -> 2799.417 | BE88: =Bilanca!F103 -> 2959.653 | BF88: =Bilanca!G103 -> 2743.27
BA89: Kratkoročne obveze | BB89: =Bilanca!C115 -> 14929.929 | BC89: =Bilanca!D115 -> 417.851 | BD89: =Bilanca!E115 -> 16700.799 | BE89: =Bilanca!F115 -> 426.342 | BF89: =Bilanca!G115 -> 767.357
BA90: Odgođeno plaćanje troškova i prihod budućeg razdoblja | BB90: =Bilanca!C130 -> 0 | BC90: =Bilanca!D130 -> 9387.697 | BD90: =Bilanca!E130 -> 0 | BE90: =Bilanca!F130 -> 10416.1 | BF90: =Bilanca!G130 -> 22667.272
BA91: Ukupna pasiva | BB91: =SUM(BB86:BB90) -> 19429.373 | BC91: 13600.121 | BD91: 20409.841 | BE91: 14655.812 | BF91: 27049.16
BA92: Ukupne obveze | BB92: =SUM(BB87:BB90) -> 17933.76 | BC92: 12787.305 | BD92: 19500.216 | BE92: 13824.198 | BF92: 26177.899
BB93: =IFERROR(((Bilanca!C96+Bilanca!C103+Bilanca!C115+Bilanca!C130)/Bilanca!C68),) -> 0.9230231615 | BC93: =IFERROR(((Bilanca!D96+Bilanca!D103+Bilanca!D115+Bilanca!D130)/Bilanca!D68),) -> 0.9402349951 | BD93: =IFERROR(((Bilanca!E96+Bilanca!E103+Bilanca!E115+Bilanca!E130)/Bilanca!E68),) -> 0.9554321793 | BE93: =IFERROR(((Bilanca!F96+Bilanca!F103+Bilanca!F115+Bilanca!F130)/Bilanca!F68),) -> 0.9432572436 | BF93: =IFERROR(((Bilanca!G96+Bilanca!G103+Bilanca!G115+Bilanca!G130)/Bilanca!G68),) -> 0.9677896849
BB94: =IFERROR((Bilanca!C75/Bilanca!C68),) -> 0.07697691057 | BC94: =IFERROR((Bilanca!D75/Bilanca!D68),) -> 0.05976537259 | BD94: =IFERROR((Bilanca!E75/Bilanca!E68),) -> 0.04456796766 | BE94: =IFERROR((Bilanca!F75/Bilanca!F68),) -> 0.0567429611 | BF94: =IFERROR((Bilanca!G75/Bilanca!G68),) -> 0.03221027817
BB95: =Podloga!D36 -> 2024. planirano | BC95: =Podloga!E36 -> 2024. procijenjeno
BA96: Ukupni prihod | BB96: =RDG!E57 -> 3446.434 | BC96: =RDG!F57 -> 3855.953
BA97: Trošak prodanih proizvoda | BB97: =RDG!E13 -> 1423.35 | BC97: =RDG!F13 -> 1956.83
BA98: Bruto marža | BB98: =BB96-BB97 -> 2023.084 | BC98: =BC96-BC97 -> 1899.123
BA99: Promjene vrijednosti zaliha | BB99: =RDG!E12 -> 0 | BC99: =RDG!F12 -> 0
BA100: Trošak osoblja | BB100: =RDG!E17 -> 981.454 | BC100: =RDG!F17 -> 1125.763
BA101: Vrijednosna usklađenja | BB101: =RDG!E23 -> 0 | BC101: =RDG!F23 -> 0
BA102: Rezerviranja | BB102: =RDG!E26 -> 0 | BC102: =RDG!F26 -> 63.854
BA103: Financijski rashod (bez kamata) | BB103: =RDG!E45-RDG!E46-RDG!E48 -> 6.95 | BC103: =RDG!F45-RDG!F46-RDG!F48 -> 0.353
BA104: Ostali rashodi | BB104: =RDG!E22+RDG!E33+RDG!E55+RDG!E56 -> 548.81 | BC104: =RDG!F22+RDG!F33+RDG!F55+RDG!F56 -> 257.795
BA105: EBITDA | BB105: =BD3 -> 485.87 | BC105: =BE3 -> 451.358
BA107: Kontrola | BB107: =BB96-BB97-BB99-BB100-BB101-BB102-BB103-BB104 -> 485.87 | BC107: =BC96-BC97-BC99-BC100-BC101-BC102-BC103-BC104 -> 451.358
BN120: Analiza novčanih izdataka
BO121: =Podloga!B36 -> 2023. planirano | BP121: =Podloga!C36 -> 2023. ostvareno | BQ121: =Podloga!D36 -> 2024. planirano | BR121: =Podloga!E36 -> 2024. procijenjeno | BS121: =Podloga!F36 -> 2025. planirano
BN122: Novčani izdaci dobavljačima | BO122: =IFERROR(IF(Podloga!$B$19="Direktna",'NT dir.'!C11,),) -> 0 | BP122: =IFERROR(IF(Podloga!$B$19="Direktna",'NT dir.'!D11,),) -> 0 | BQ122: =IFERROR(IF(Podloga!$B$19="Direktna",'NT dir.'!E11,),) -> 0 | BR122: =IFERROR(IF(Podloga!$B$19="Direktna",'NT dir.'!F11,),) -> 0 | BS122: =IFERROR(IF(Podloga!$B$19="Direktna",'NT dir.'!G11,),) -> 0
BN123: Novčani izdaci za zaposlene | BO123: =IFERROR(IF(Podloga!$B$19="Direktna",'NT dir.'!C12,),) -> 0 | BP123: =IFERROR(IF(Podloga!$B$19="Direktna",'NT dir.'!D12,),) -> 0 | BQ123: =IFERROR(IF(Podloga!$B$19="Direktna",'NT dir.'!E12,),) -> 0 | BR123: =IFERROR(IF(Podloga!$B$19="Direktna",'NT dir.'!F12,),) -> 0 | BS123: =IFERROR(IF(Podloga!$B$19="Direktna",'NT dir.'!G12,),) -> 0
BN124: Novčani izdaci za osiguranje za naknadu štete | BO124: =IFERROR(IF(Podloga!$B$19="Direktna",'NT dir.'!C13,),) -> 0 | BP124: =IFERROR(IF(Podloga!$B$19="Direktna",'NT dir.'!D13,),) -> 0 | BQ124: =IFERROR(IF(Podloga!$B$19="Direktna",'NT dir.'!E13,),) -> 0 | BR124: =IFERROR(IF(Podloga!$B$19="Direktna",'NT dir.'!F13,),) -> 0 | BS124: =IFERROR(IF(Podloga!$B$19="Direktna",'NT dir.'!G13,),) -> 0
BN125: Novčani izdaci za kamate | BO125: =IFERROR(IF(Podloga!$B$19="Direktna",'NT dir.'!C16,),) -> 0 | BP125: =IFERROR(IF(Podloga!$B$19="Direktna",'NT dir.'!D16,),) -> 0 | BQ125: =IFERROR(IF(Podloga!$B$19="Direktna",'NT dir.'!E16,),) -> 0 | BR125: =IFERROR(IF(Podloga!$B$19="Direktna",'NT dir.'!F16,),) -> 0 | BS125: =IFERROR(IF(Podloga!$B$19="Direktna",'NT dir.'!G16,),) -> 0
BN126: Plaćeni porez na dobit | BO126: =IFERROR(IF(Podloga!$B$19="Direktna",'NT dir.'!C17,),) -> 0 | BP126: =IFERROR(IF(Podloga!$B$19="Direktna",'NT dir.'!D17,),) -> 0 | BQ126: =IFERROR(IF(Podloga!$B$19="Direktna",'NT dir.'!E17,),) -> 0 | BR126: =IFERROR(IF(Podloga!$B$19="Direktna",'NT dir.'!F17,),) -> 0 | BS126: =IFERROR(IF(Podloga!$B$19="Direktna",'NT dir.'!G17,),) -> 0
BN127: Ostali novčani izdaci iz poslovanja | BO127: =IFERROR(IF(Podloga!$B$19="Direktna",'NT dir.'!C14,),) -> 0 | BP127: =IFERROR(IF(Podloga!$B$19="Direktna",'NT dir.'!D14,),) -> 0 | BQ127: =IFERROR(IF(Podloga!$B$19="Direktna",'NT dir.'!E14,),) -> 0 | BR127: =IFERROR(IF(Podloga!$B$19="Direktna",'NT dir.'!F14,),) -> 0 | BS127: =IFERROR(IF(Podloga!$B$19="Direktna",'NT dir.'!G14,),) -> 0

Sheet Sektorski pokazatelji
A1: Sektorski ključni pokazatelji
A2: Obveznik: | B2: =IF(ISBLANK(Podloga!B2),"",Podloga!B2) -> Zračna luka Osijek d.o.o. | C2: =Podloga!B36 -> 2023. planirano | D2: =Podloga!C36 -> 2023. ostvareno | E2: =Podloga!D36 -> 2024. planirano | F2: =Podloga!E36 -> 2024. procijenjeno | G2: =Podloga!F36 -> 2025. planirano | H2: ="Indeks "& RIGHT(LEFT(Podloga!C36,7),5) &" / "& RIGHT(LEFT(Podloga!B36,8),6) -> Indeks 23. o / 23. pl | I2: ="Indeks "& RIGHT(LEFT(Podloga!E36,8),6) &" / "& RIGHT(LEFT(Podloga!D36,8),6) -> Indeks 24. pr / 24. pl | J2: ="Indeks "& RIGHT(LEFT(Podloga!E36,8),6) &" / "& RIGHT(LEFT(Podloga!C36,7),5) -> Indeks 24. pr / 23. o | K2: ="Indeks "& RIGHT(LEFT(Podloga!D36,8),6) &" / "& RIGHT(LEFT(Podloga!B36,8),6) -> Indeks 24. pl / 23. pl | L2: ="Indeks "& RIGHT(LEFT(Podloga!F36,8),6) &" / "& RIGHT(LEFT(Podloga!D36,8),6) -> Indeks 25. pl / 24. pl | M2: ="Indeks "& RIGHT(LEFT(Podloga!F36,8),6) &" / "& RIGHT(LEFT(Podloga!E36,8),6) -> Indeks 25. pl / 24. pr
A3: Operativni pokazatelji | B3: Način izračuna
A4: ostvareni promet zrakoplova | B4: ukupan broj polijetanja | C4: 1378 | D4: 1313 | E4: 1449 | F4: 1450 | G4: 1483 | H4: =IFERROR(D4/C4*100,) -> 95.28301887 | I4: =IFERROR(F4/E4*100,) -> 100.0690131 | J4: =IFERROR(F4/D4*100,) -> 110.4341203 | K4: =IFERROR(E4/C4*100,) -> 105.1523948 | L4: =IFERROR(G4/E4*100,) -> 102.3464458 | M4: =IFERROR(G4/F4*100,) -> 102.2758621
A5: broj putnika | C5: 32871 | D5: 36791 | E5: 42414 | F5: 45349 | G5: 50015 | H5: =IFERROR(D5/C5*100,) -> 111.9254054 | I5: 106.9198849 | J5: =IFERROR(F5/D5*100,) -> 123.2611236 | K5: 129.0316693 | L5: 117.9209695 | M5: =IFERROR(G5/F5*100,) -> 110.2890913
A6: Promet po redovitim letovima | C6: 31021 | D6: 35526 | E6: 40936 | F6: 43549 | G6: 47860 | H6: =IFERROR(D6/C6*100,) -> 114.5224203 | I6: 106.3831346 | J6: =IFERROR(F6/D6*100,) -> 122.58346 | K6: 131.9622191 | L6: 116.9142075 | M6: =IFERROR(G6/F6*100,) -> 109.899194
A7: promet po charter letovima | C7: 1850 | D7: 1265 | E7: 1478 | F7: 1800 | G7: 2155 | H7: =IFERROR(D7/C7*100,) -> 68.37837838 | I7: 121.7861976 | J7: =IFERROR(F7/D7*100,) -> 142.2924901 | K7: 79.89189189 | L7: 145.8051421 | M7: =IFERROR(G7/F7*100,) -> 119.7222222
A8: promet po ostalim letovima | H8: =IFERROR(D8/C8*100,) -> 0 | I8: =IFERROR(F8/E8*100,) -> 0 | J8: =IFERROR(F8/D8*100,) -> 0 | K8: =IFERROR(E8/C8*100,) -> 0 | L8: =IFERROR(G8/E8*100,) -> 0 | M8: =IFERROR(G8/F8*100,) -> 0
A9: promet po avio kompanijama | D9: 8507 | F9: 9837 | G9: 11889 | H9: =IFERROR(D9/C9*100,) -> 0 | I9: =IFERROR(F9/E9*100,) -> 0 | J9: =IFERROR(F9/D9*100,) -> 115.6341836 | K9: =IFERROR(E9/C9*100,) -> 0 | L9: =IFERROR(G9/E9*100,) -> 0 | M9: =IFERROR(G9/F9*100,) -> 120.8600183
A10: 1. Trade Air | C10: 6841 | D10: 13759 | E10: 9192 | F10: 14765 | G10: 15962 | H10: =IFERROR(D10/C10*100,) -> 201.1255664 | I10: =IFERROR(F10/E10*100,) -> 160.6288077 | J10: =IFERROR(F10/D10*100,) -> 107.3115779 | K10: =IFERROR(E10/C10*100,) -> 134.3663207 | L10: =IFERROR(G10/E10*100,) -> 173.6510009 | M10: =IFERROR(G10/F10*100,) -> 108.1070098
A11: 2. Croatia Airlines | C11: 15540 | D11: 0 | E11: 14690 | F11: 0 | G11: 0 | H11: =IFERROR(D11/C11*100,) -> 0 | I11: =IFERROR(F11/E11*100,) -> 0 | J11: =IFERROR(F11/D11*100,) -> 0 | K11: =IFERROR(E11/C11*100,) -> 94.53024453 | L11: =IFERROR(G11/E11*100,) -> 0 | M11: =IFERROR(G11/F11*100,) -> 0
A12: 3. Wizz Air | C12: 8640 | D12: 0 | E12: 23760 | F12: 0 | G12: 0 | H12: =IFERROR(D12/C12*100,) -> 0 | I12: =IFERROR(F12/E12*100,) -> 0 | J12: =IFERROR(F12/D12*100,) -> 0 | K12: =IFERROR(E12/C12*100,) -> 275 | L12: =IFERROR(G12/E12*100,) -> 0 | M12: =IFERROR(G12/F12*100,) -> 0
A13: 4. Ryanair | C13: 0 | D13: 13260 | E13: 17054 | F13: 18947 | G13: 20009 | H13: =IFERROR(D13/C13*100,) -> 0 | I13: =IFERROR(F13/E13*100,) -> 111.1000352 | J13: =IFERROR(F13/D13*100,) -> 142.8883861 | K13: =IFERROR(E13/C13*100,) -> 0 | L13: =IFERROR(G13/E13*100,) -> 117.3273132 | M13: =IFERROR(G13/F13*100,) -> 105.605109
A14: Promet po zemljama odredišta: | H14: 0 | I14: 0 | J14: 0 | K14: 0 | L14: 0 | M14: 0
A15: 1. RH | C15: 13458 | D15: 14888 | E15: 15832 | F15: 16552 | G15: 18834 | H15: 110.6256502 | I15: 104.5477514 | J15: 111.1767867 | K15: 117.6400654 | L15: 118.9615968 | M15: 113.7868536
A16: 2. Velika Britanija | C16: 0 | D16: 13260 | E16: 17054 | F16: 18947 | G16: 20009 | H16: 0 | I16: 111.1000352 | J16: 142.8883861 | K16: 0 | L16: 117.3273132 | M16: 105.605109
A17: 3. Njemačka | C17: 17563 | D17: 7378 | E17: 8050 | F17: 8050 | G17: 9017 | H17: 42.00876843 | I17: 100 | J17: 109.1081594 | K17: 45.83499402 | L17: 112.0124224 | M17: 112.0124224
A18: 4. Švicarska | C18: 0 | D18: 0 | E18: 0 | F18: 0 | G18: 0 | H18: 0 | I18: 0 | J18: 0 | K18: 0 | L18: 0 | M18: 0
H19: 0 | I19: 0 | J19: 0 | K19: 0 | L19: 0 | M19: 0
H20: 0 | I20: 0 | J20: 0 | K20: 0 | L20: 0 | M20: 0
H21: 0 | I21: 0 | J21: 0 | K21: 0 | L21: 0 | M21: 0
H22: 0 | I22: 0 | J22: 0 | K22: 0 | L22: 0 | M22: 0
H23: 0 | I23: 0 | J23: 0 | K23: 0 | L23: 0 | M23: 0
A24: Financijsko - naturalni pokazatelji
A25: Komercijalni prihod po putniku | B25: komercijalni prihod/broj putnika | C25: 21.1 | D25: 30.39 | E25: 30.1 | F25: 39 | G25: 35 | H25: =IFERROR(D25/C25*100,) -> 144.028436 | I25: 129.5681063 | J25: =IFERROR(F25/D25*100,) -> 128.3316881 | K25: 142.6540284 | L25: 116.2790698 | M25: =IFERROR(G25/F25*100,) -> 89.74358974
A26: Troškovi po putniku | B26: troškovi/broj putnika | C26: 64.77 | D26: 100 | E26: 81.14 | F26: 91 | G26: 79 | H26: =IFERROR(D26/C26*100,) -> 154.3924656 | I26: =IFERROR(F26/E26*100,) -> 112.1518363 | J26: =IFERROR(F26/D26*100,) -> 91 | K26: =IFERROR(E26/C26*100,) -> 125.2740466 | L26: =IFERROR(G26/E26*100,) -> 97.36258319 | M26: =IFERROR(G26/F26*100,) -> 86.81318681
H27: 0 | I27: 0 | J27: 0 | K27: 0 | L27: 0 | M27: 0
A28: Tržišni pokazatelji
A29: Ukupan broj kupaca | C29: 0 | D29: 172 | E29: 0 | F29: 209 | G29: 217 | H29: =IFERROR(D29/C29*100,) -> 0 | I29: 0 | J29: =IFERROR(F29/D29*100,) -> 121.5116279 | K29: 0 | L29: 0 | M29: =IFERROR(G29/F29*100,) -> 103.8277512
A30: Domaći kupci | C30: 0 | D30: 88 | E30: 0 | F30: 120 | G30: 123 | H30: 0 | I30: 0 | J30: 136.3636364 | K30: 0 | L30: 0 | M30: 102.5
A31: Kupci iz zemalja EU | C31: 0 | D31: 72 | E31: 0 | F31: 70 | G31: 73
A32: Kupci iz trećih zemalja | C32: 0 | D32: 12 | E32: 0 | F32: 19 | G32: 21 | H32: 0 | I32: 0 | J32: 158.3333333 | K32: 0 | L32: 0 | M32: 110.5263158
A33: Razvojni pokazatelji
A34: Broj destinacija | C34: 21.1 | D34: 30.39 | E34: 30.1 | F34: 39 | G34: 35 | H34: =IFERROR(D34/C34*100,) -> 144.028436 | I34: 129.5681063 | J34: =IFERROR(F34/D34*100,) -> 128.3316881 | K34: 142.6540284 | L34: 116.2790698 | M34: =IFERROR(G34/F34*100,) -> 89.74358974
A35: Domaće | C35: 64.77 | D35: 100 | E35: 81.14 | F35: 91 | G35: 79 | H35: =IFERROR(D35/C35*100,) -> 154.3924656 | I35: 112.1518363 | J35: 91 | K35: 125.2740466 | L35: 97.36258319 | M35: =IFERROR(G35/F35*100,) -> 86.81318681
A36: Inozemne | H36: =IFERROR(D36/C36*100,) -> 0 | I36: 0 | J36: 0 | K36: 0 | L36: 0 | M36: =IFERROR(G36/F36*100,) -> 0
A39: * Plavo osjenčana pozadina označava planirane vrijednosti

Sheet Compliance
B1: Izvješće o provođenju funkcije praćenja usklađenosti
B2: =Podloga!B2 -> Zračna luka Osijek d.o.o.
B4: AKTI | C4: ODGOVOR | D4: DODATNI KOMENTAR / OBRAZLOŽENJE
B5: Je li donesen interni akt kojim je definirana funkcija praćenja usklađenosti? | C5: DA
B6: Naziv akta | C6: Odluka o provođenju funkcije usklađenosti, Pravilnik o organizaciji i sistematizaciji radnih mjesta
B7: Tko donosi interne akte u društvu / pravnoj osobi? | C7: Direktor
B8: Je li internim aktom kojim je definirana funkcija praćenja usklađenosti predviđeno donošenje drugih akata? | C8: DA
B9: Naziv drugih akata | C9: Plan za upravljanje rizicima
B10: Jesu li doneseni drugi akti predviđeni internim aktom kojim je definirana funkcija praćenja usklađenosti? | C10: NE
B11: Je li internim aktima o funkciji usklađenosti predviđena samostalnost i neovisnost osobe zadužene za funkcije praćenja usklađenosti? | C11: DA | D11: Dana 20.11.2020. godine izradili smo dokument Strategija upravljanja rizicima.
B12: Je li internim aktom propisana minimalna stručna sprema i potrebna znanja za obavljanje funkcije praćenja usklađenosti | C12: DA | D12: Pravilnikom o organizaciji i sistematizaciji radnih mjesta
B14: Formalni status funkcije praćenja usklađenosti | C14: ODGOVOR | D14: DODATNI KOMENTAR / OBRAZLOŽENJE
B15: Na koji je način organizirana funkcija praćenja usklađenosti?
B16: (A) Jedinica za praćenje funkcije usklađenosti | C16: NE
B17: (B) osoba / službenik | C17: DA
B18: Obavljaju li funkciju praćenja usklađenosti zaposlenici koji su već zaposleni u pravnoj osobi? | C18: DA
B19: A) Ustrojstvena jedinica | C19: ODGOVOR | D19: DODATNI KOMENTAR / OBRAZLOŽENJE
B20: Je li formirana nova ustrojstvena jedinica za funkciju praćenje usklađenosti poslovanja? | C20: NE
B21: Naziv ustrojstvene jedinice | C21: 0
B22: Je li rađena nova sistematizacija zbog uvođenja ustrojstvene jedinice za praćenje funkcije praćenja usklađenosti poslovanja? | C22: DA
B23: Je li tom sistematizacijom povećan ukupni broj zaposlenika u pravnoj osobi? | C23: DA | D23: Ali ne samo zbog funkcije praćenja usklađenosti poslovanja, već i zbog drugih poslova koji se obavljaju u okviru tog radnog mjesta
B24: Ako DA, u kojim je ustrojstvenim jedinicama bilo promjena i za koliko? | C24: 0
B25: Je li ustrojstvena jedinica ustrojena samo za obavljanje poslova funkcije praćenja usklađenosti? | C25: NE
B26: Ako NE, koje dodatne poslove obavlja? | C26: Kontroling, ljudske potencijale
B27: Broj službenika predviđenih ustrojstvenom jedinicom | C27: 0
B28: Broj službenika zaposlenih u ustrojstvenoj jedinici | C28: 0
B29: B) Osoba / službenik | C29: ODGOVOR | D29: DODATNI KOMENTAR / OBRAZLOŽENJE
B30: Obavlja li funkciju praćenja usklađenosti samostalni službenik? | C30: DA
B31: Kojim je aktom imenovana osoba unutar organizacije? | C31: Odluka o uvođenju funkcije praćenja usklađenosti poslovanja, Pravilnik o organizaciji I sistematizaciji radnih mjesta
B32: Naziv radnog mjesta osobe? | C32: Rukovoditelj kontrolinga, ljudskih potencijala i sustava praćenja usklađenosti poslovanja
B33: Je li službenik zaposlen na to radno mjesto samo za obavljanje posla funkcije praćenja usklađenosti? | C33: NE
B34: Ako NE, koje poslove obavlja pored poslova funkcije usklađenosti? | C34: Kontroling, ljudske potencijale
B36: OPIS POSLOVA | C36: ODGOVOR | D36: DODATNI KOMENTAR / OBRAZLOŽENJE
B37: Kratak opis poslova funkcije praćenja usklađenosti | C37: Funkcija praćenja usklađenosti poslovanja podrazumijeva sve poslove koji se odnose na usklađivanje funkcioniranja i poslovanja Zračne luke Osijek d.o.o. s pravnom regulativom i internim aktima, procjene rizika u funkcioniranju i poslovanju Zračne luke Osijek d.o.o., brigu o provođenju dobre poslovne prakse te sprječavanje sukoba interesa i koruptivnih radnji.
B38: Jesu li osobe zadužene za funkciju praćenja usklađenosti neovisne u obavljanju poslova? | C38: DA
B39: Ako NE, obrazložiti.
B40: Jesu li osobe zadužene za funkciju praćenja usklađenosti samostalne u obavljanju poslova? | C40: DA
B41: Ako NE, obrazložiti.
B42: Imaju li osobe zadužene za funkciju praćenja usklađenosti pristup osoblju i stručnim službama u društvu koje su potrebne za obavljanje poslova funkcije usklađenosti? | C42: DA
B43: Ako NE, obrazložiti.
B44: Jesu li osobe zadužene za funkciju praćenja usklađenosti u sukobu interesa između obavljanja poslova funkcije usklađenosti i drugih svojih odgovornosti? | C44: NE
B45: Ako DA, obrazložiti.
B46: Imaju li osobe zadužene za funkciju funkciju praćenja usklađenosti potrebne ovlasti i pristup svim bitnim podacima za obavljanje funkcije poslova praćenja usklađenosti? | C46: DA
B48: Povezane PO | C48: ODGOVOR | D48: DODATNI KOMENTAR / OBRAZLOŽENJE
B49: Je li funkcija usklađenosti uvedena u povezanim pravnim osobama društva? | C49: N/P
B50: U kojima? | C50: N/P
B51: Na koji je način organizirana funkcija praćenja usklađenosti? | C51: N/P
B52: (A) Jedinica za praćenje funkcije usklađenosti | C52: N/P
B53: (B) Samostalna osoba / službenik | C53: N/P
B54: Da li je donesen interni akt kojim je definirana funkcija praćenja usklađenosti? | C54: N/P
B55: Naziv akta | C55: N/P
B56: Izvještavaju li povezane osobe matičnu pravnu osobu o provođenju funkcije praćenja usklađenosti? | C56: N/P
B57: Na koji način povezane pravne osobe izvještavaju matičnu pravnu osobu? | C57: N/P
B59: KOMUNIKACIJA | C59: ODGOVOR | D59: DODATNI KOMENTAR / OBRAZLOŽENJE
B60: Imaju li osobe zadužene za obavljanje funkcije praćenja usklađenosti mogućnost izravne komunikacije s NO ili drugim nadzornim tijelom PO? | C60: DA
B61: Oblik komunikacije (formalna, neformalna) | C61: NEFORMALNA
B64: Utjecaj funkcije praćenja usklađenosti na poslovanje PO (opisati efekte) | C64: ODGOVOR | D64: DODATNI KOMENTAR / OBRAZLOŽENJE
B65: Financijski | C65: Smanjenje troškova i spriječavanje nepotrebnih gubitaka.
B66: Organizacijski | C66: Optimizacija procesa i procedura.
B67: Antikorupcijski | C67: Spriječavanje stvaranja mogućnosti za korupciju
B69: IZVJEŠTAVANJE | C69: ODGOVOR | D69: DODATNI KOMENTAR / OBRAZLOŽENJE
B70: Prate li i ocjenjuju osobe zadužene za funkciju praćenja usklađenosti učinkovitost politika, mjera i postupaka propisanih u svrhu praćenja usklađenosti poslovanja društva u cilju rješavanja nedostataka i nepravilnosti u poslovanju? | C70: DA
B71: Izvještavaju li osobe zadužene za funkciju praćenja usklađenosti poslovanja društva tijela društva o nedostacima i nepravilnostima otkrivenim u provođenju svojih aktivnosti? | C71: DA
B72: Savjetuju li osobe zadužene za funkciju praćenja usklađenosti poslovanja društva tijela društva o ispravljanju nedostaka i nepravilnosti otkrivenih u provođenju svojih aktivnosti? | C72: DA
B73: Broj zaprimljenih prijava o nepravilnosti: | C73: 0
B74: Broj riješenih prijava o nepravilnosti: | C74: 0
B75: Broj uočenih nepravilnosti: | C75: 0
B76: Broj riješenih uočenih nepravilnosti: | C76: 0
B77: Je li uprava ili drugo tijelo upravljanja identificiralo glavne rizike usklađenosti poslovanja? | C77: NE
B78: Donosi li uprava ili drugo tijelo upravljanja godišnje planove za upravljanje rizicima usklađenosti? | C78: NE
B80: * Stupac DODATNI KOMENTAR / OBRAZLOŽENJE popuniti ukoliko smatrate potrebnim

Sheet Sazetak (hidden)
L1: Tablica za Interni izvještaj
B2: =Podloga!B2 -> Zračna luka Osijek d.o.o. | L2: =Podloga!L2 -> 0
B6: BILANCA (HRK 000) | C6: =Podloga!B36 -> 2023. planirano | D6: =Podloga!C36 -> 2023. ostvareno | E6: =Podloga!D36 -> 2024. planirano | F6: =Podloga!E36 -> 2024. procijenjeno | G6: =Podloga!F36 -> 2025. planirano | I6: Pokazatelji | J6: Izračun | L6: BILANCA (HRK 000) | M6: =D6 -> 2023. ostvareno | N6: =F6 -> 2024. procijenjeno | O6: =G6 -> 2025. planirano
B7: Dugotrajna imovina | C7: =Bilanca!C5 -> 18497.026 | D7: =Bilanca!D5 -> 13185.73 | E7: =Bilanca!E5 -> 19752.51 | F7: =Bilanca!F5 -> 13933.584 | G7: =Bilanca!G5 -> 26432.344 | I7: EBITDA | J7: Poslovni prihod - poslovni rashod + amortizacija | L7: Dugotrajna imovina | M7: =D7 -> 13185.73 | N7: =F7 -> 13933.584 | O7: =G7 -> 26432.344
B8: Kratkotrajna imovina | C8: =Bilanca!C40 -> 932.3456 | D8: =Bilanca!D40 -> 309.541 | E8: =Bilanca!E40 -> 657.328 | F8: =Bilanca!F40 -> 600.079 | G8: =Bilanca!G40 -> 510.067 | I8: EBITDA marža | J8: (Pos. prihod - pos. rashod + amortizacija) / posl. prihod | L8: Kratkotrajna imovina | M8: 309.541 | N8: 600.079 | O8: 510.067
B9: Pl. troš. budućeg razd.. | C9: =Bilanca!C67 -> 0 | D9: =Bilanca!D67 -> 104.845 | E9: =Bilanca!E67 -> 0 | F9: =Bilanca!F67 -> 122.146 | G9: =Bilanca!G67 -> 106.75 | I9: Neto profitna marža | J9: Neto dobit / uk. prihod | L9: Pl. troš. budućeg razd.. | M9: 104.845 | N9: 122.146 | O9: 106.75
B10: Aktiva | C10: =Bilanca!C68 -> 19429.3716 | D10: =Bilanca!D68 -> 13600.116 | E10: =Bilanca!E68 -> 20409.838 | F10: =Bilanca!F68 -> 14655.809 | G10: =Bilanca!G68 -> 27049.161 | I10: RoA | J10: Neto dobit / aktiva | L10: Aktiva | M10: 13600.116 | N10: 14655.809 | O10: 27049.161
B11: Kapital i rezerve | C11: =Bilanca!C75 -> 1495.613 | D11: =Bilanca!D75 -> 812.816 | E11: =Bilanca!E75 -> 909.625 | F11: =Bilanca!F75 -> 831.614 | G11: =Bilanca!G75 -> 871.261 | I11: RoE | J11: Neto dobit / kapital i rezerve | L11: Kapital i rezerve | M11: 812.816 | N11: 831.614 | O11: 871.261
B12: Rezerviranja | C12: =Bilanca!C96 -> 39.44 | D12: =Bilanca!D96 -> 22.103 | E12: =Bilanca!E96 -> 0 | F12: =Bilanca!F96 -> 22.103 | G12: =Bilanca!G96 -> 0 | I12: Koef. tekuće likvidnosti | J12: Kratkotrajna imovina / kratkoročne obveze | L12: Rezerviranja | M12: 22.103 | N12: 22.103 | O12: 0
B13: Dugoročne obveze | C13: =Bilanca!C103 -> 2964.391 | D13: =Bilanca!D103 -> 2959.654 | E13: =Bilanca!E103 -> 2799.417 | F13: =Bilanca!F103 -> 2959.653 | G13: =Bilanca!G103 -> 2743.27 | I13: Koeficijent financijske stabilnosti | J13: Dugotrajna imovina / (Kapital i rezerve + Dugoročne obveze) | L13: Dugoročne obveze | M13: 2959.654 | N13: 2959.653 | O13: 2743.27
B14: Kratkoročne obveze | C14: =Bilanca!C115 -> 14929.929 | D14: =Bilanca!D115 -> 417.851 | E14: =Bilanca!E115 -> 16700.799 | F14: =Bilanca!F115 -> 426.342 | G14: =Bilanca!G115 -> 767.357 | I14: Koef. zaduženosti | J14: (Rezerviranja + Dugoročne obveze + Kratkoročne obveze + Ostalo) / Aktiva | L14: Kratkoročne obveze | M14: 417.851 | N14: 426.342 | O14: 767.357
B15: Odg. pl. troš. i prihod.. | C15: =Bilanca!C130 -> 0 | D15: =Bilanca!D130 -> 9387.697 | E15: =Bilanca!E130 -> 0 | F15: =Bilanca!F130 -> 10416.1 | G15: =Bilanca!G130 -> 22667.272 | L15: Odg. pl. troš. i prihod.. | M15: 9387.697 | N15: 10416.1 | O15: 22667.272
B16: Pasiva | C16: =Bilanca!C131 -> 19429.373 | D16: =Bilanca!D131 -> 13600.121 | E16: =Bilanca!E131 -> 20409.841 | F16: =Bilanca!F131 -> 14655.812 | G16: =Bilanca!G131 -> 27049.16 | L16: Pasiva | M16: 13600.121 | N16: 14655.812 | O16: 27049.16
B18: RAČUN DOBITI I GUBITKA (HRK 000) | L18: RAČUN DOBITI I GUBITKA (HRK 000) | M18: 0 | N18: 0 | O18: 0
B19: Poslovni prihodi | C19: =RDG!C5 -> 2131.827 | D19: =RDG!D5 -> 2963.898 | E19: =RDG!E5 -> 3445.894 | F19: =RDG!F5 -> 3855.891 | G19: =RDG!G5 -> 3991.601 | L19: Poslovni prihodi | M19: 2963.898 | N19: 3855.891 | O19: 3991.601
B20: Poslovni rashodi | C20: =RDG!C11 -> 2065.712 | D20: =RDG!D11 -> 3590.895 | E20: =RDG!E11 -> 3378.614 | F20: =RDG!F11 -> 3774.355 | G20: =RDG!G11 -> 3862.156 | L20: Poslovni rashodi | M20: 3590.895 | N20: 3774.355 | O20: 3862.156
B21: Financijski prihodi | C21: =RDG!C34 -> 0.449 | D21: =RDG!D34 -> 0.03557 | E21: =RDG!E34 -> 0.54 | F21: =RDG!F34 -> 0.062 | G21: =RDG!G34 -> 0.6 | L21: Financijski prihodi | M21: 0.03557 | N21: 0.062 | O21: 0.6
B22: Financijski rashodi | C22: =RDG!C45 -> 61.318 | D22: =RDG!D45 -> 92.377 | E22: =RDG!E45 -> 62.8 | F22: =RDG!F45 -> 62.8 | G22: =RDG!G45 -> 90.398 | L22: Financijski rashodi | M22: 92.377 | N22: 62.8 | O22: 90.398
B23: Ukupni prihodi | C23: =RDG!C57 -> 2132.276 | D23: =RDG!D57 -> 2963.93357 | E23: =RDG!E57 -> 3446.434 | F23: =RDG!F57 -> 3855.953 | G23: =RDG!G57 -> 3992.201 | L23: Ukupni prihodi | M23: 2963.93357 | N23: 3855.953 | O23: 3992.201
B24: Ukupni rashodi | C24: =RDG!C58 -> 2127.03 | D24: =RDG!D58 -> 3683.272 | E24: =RDG!E58 -> 3441.414 | F24: =RDG!F58 -> 3837.155 | G24: =RDG!G58 -> 3952.554 | L24: Ukupni rashodi | M24: 3683.272 | N24: 3837.155 | O24: 3952.554
B25: Dobit/gubitak prije oporezivanja | C25: =RDG!C59 -> 5.246 | D25: =RDG!D59 -> -719.33843 | E25: =RDG!E59 -> 5.02 | F25: =RDG!F59 -> 18.798 | G25: =RDG!G59 -> 39.647 | L25: Dobit/gubitak prije oporezivanja | M25: -719.33843 | N25: 18.798 | O25: 39.647
B26: Porez na dobit | C26: =RDG!C62 -> 0 | D26: =RDG!D62 -> 0 | E26: =RDG!E62 -> 0 | F26: =RDG!F62 -> 0 | G26: =RDG!G62 -> 0 | L26: Porez na dobit | M26: 0 | N26: 0 | O26: 0
B27: Neto dobit/gubitak | C27: =RDG!C63 -> 5.246 | D27: =RDG!D63 -> -719.33843 | E27: =RDG!E63 -> 5.02 | F27: =RDG!F63 -> 18.798 | G27: =RDG!G63 -> 39.647 | L27: Neto dobit/gubitak | M27: -719.33843 | N27: 18.798 | O27: 39.647
B29: KLJUČNI POKAZATELJI | L29: KLJUČNI POKAZATELJI
B30: EBITDA (HRK 000) | C30: =C19-C20+C42 -> 355.451 | D30: =D19-D20+D42 -> -260.076 | E30: 492.28 | F30: 451.649 | G30: 501.445 | L30: EBITDA (HRK 000) | M30: -260.076 | N30: 451.649 | O30: 501.445
B31: EBITDA marža | C31: =IFERROR(C30/C19,0) -> 0.1667353871 | D31: =IFERROR(D30/D19,0) -> -0.08774795894 | E31: 0.142859879 | F31: 0.1171322011 | G31: 0.1256250312 | L31: EBITDA marža | M31: -0.08774795894 | N31: 0.1171322011 | O31: 0.1256250312
B32: Neto profitna marža | C32: =IFERROR(C27/C23,0) -> 0.002460281877 | D32: =IFERROR(D27/D23,0) -> -0.2426972174 | E32: 0.001456578017 | F32: 0.004875059421 | G32: 0.009931113188 | L32: Neto profitna marža | M32: -0.2426972174 | N32: 0.004875059421 | O32: 0.009931113188
B33: ROA | C33: =IFERROR(C27/C10,0) -> 0.0002700035857 | D33: =IFERROR(D27/D10,0) -> -0.05289208048 | E33: 0.000245959816 | F33: 0.001282631344 | G33: 0.001465738623 | L33: ROA | M33: -0.05289208048 | N33: 0.001282631344 | O33: 0.001465738623
B34: ROE | C34: =IFERROR(C27/C11,0) -> 0.00350759187 | D34: =IFERROR(D27/D11,0) -> -0.884995411 | E34: 0.00551875773 | F34: 0.02260423706 | G34: 0.04550530782 | L34: ROE | M34: -0.884995411 | N34: 0.02260423706 | O34: 0.04550530782
B35: Koef. tekuće likvidnosti | C35: =IFERROR(C8/C14,0) -> 0.06244809336 | D35: =IFERROR(D8/D14,0) -> 0.7407927706 | E35: 0.03935907498 | F35: 1.40750618 | G35: 0.664706258 | L35: Koef. tekuće likvidnosti | M35: 0.7407927706 | N35: 1.40750618 | O35: 0.664706258
B36: Koef. financijske stab. | C36: =IFERROR(C7/(C11+C13),0) -> 4.147311527 | D36: =IFERROR(D7/(D11+D13),0) -> 3.495251122 | E36: 5.325501841 | F36: 3.675178773 | G36: 7.312800471 | L36: Koef. financijske stab. | M36: 3.495251122 | N36: 3.675178773 | O36: 7.312800471
B37: Koef. zaduženosti | C37: =IFERROR((C12+C13+C14+C15)/C10,0) -> 0.9230231615 | D37: =IFERROR((D12+D13+D14+D15)/D10,0) -> 0.9402349951 | E37: 0.9554321793 | F37: 0.9432572436 | G37: 0.9677896849 | L37: Koef. zaduženosti | M37: 0.9402349951 | N37: 0.9432572436 | O37: 0.9677896849
B38: Zaposleni | C38: =Podloga!B37 -> 0 | D38: =Podloga!C37 -> 0 | E38: =Podloga!D37 -> 0 | F38: =Podloga!E37 -> 0 | G38: =Podloga!F37 -> 0 | L38: Zaposleni | M38: 0 | N38: 0 | O38: 0
B39: Investicije (HRK 000) | C39: =Podloga!B38 -> 0 | D39: =Podloga!C38 -> 0 | E39: =Podloga!D38 -> 0 | F39: =Podloga!E38 -> 0 | G39: =Podloga!F38 -> 0 | L39: Investicije (HRK 000) | M39: 0 | N39: 0 | O39: 0
B42: Amortizacija | C42: =RDG!C21 -> 289.336 | D42: =RDG!D21 -> 366.921 | E42: =RDG!E21 -> 425 | F42: =RDG!F21 -> 370.113 | G42: =RDG!G21 -> 372 | L42: Amortizacija | M42: 366.921 | N42: 370.113 | O42: 372

Sheet AI (hidden)
A2: Naziv društva | B2: Ukupni prihodi | G2: Ukupni rashodi | L2: Neto dobit/gubitak | Q2: Planirane investicije | V2: Dugotrajna imovina | AA2: Kratkotrajna imovina | AF2: Pl. troš. budućeg razd.. | AK2: Aktiva | AP2: Kapital i rezerve | AU2: Rezerviranja | AZ2: Dugoročne obveze | BE2: Kratkoročne obveze | BJ2: Odg. pl. troš. i prihod.. | BO2: Pasiva | BT2: Poslovni prihodi | BY2: Poslovni rashodi | CD2: Financijski prihodi | CI2: Financijski rashodi | CN2: Ukupni prihodi | CS2: Ukupni rashodi | CX2: Dobit/gubitak prije oporezivanja | DC2: Porez na dobit | DH2: Neto dobit/gubitak | DM2: EBITDA (HRK 000) | DR2: EBITDA marža | DW2: Neto profitna marža | EB2: ROA | EG2: ROE | EL2: Tekuća likvidnost | EQ2: Koef. financijske stab. | EV2: Koef. zaduženosti | FA2: Zaposleni | FF2: Investicije (HRK 000) | FK2: Amortizacija
B3: 2019. planirano | C3: 2019. ostvareno | D3: 2020. planirano | E3: 2020. procijenjeno | F3: 2021. planirano | G3: 2019. planirano | H3: 2019. ostvareno | I3: 2020. planirano | J3: 2020. procijenjeno | K3: 2021. planirano | L3: 2019. planirano | M3: 2019. ostvareno | N3: 2020. planirano | O3: 2020. procijenjeno | P3: 2021. planirano | Q3: 2019. planirano | R3: 2019. ostvareno | S3: 2020. planirano | T3: 2020. procijenjeno | U3: 2021. planirano | V3: 2019. planirano | W3: 2019. ostvareno | X3: 2020. planirano | Y3: 2020. procijenjeno | Z3: 2021. planirano | AA3: 2019. planirano | AB3: 2019. ostvareno | AC3: 2020. planirano | AD3: 2020. procijenjeno | AE3: 2021. planirano | AF3: 2019. planirano | AG3: 2019. ostvareno | AH3: 2020. planirano | AI3: 2020. procijenjeno | AJ3: 2021. planirano | AK3: 2019. planirano | AL3: 2019. ostvareno | AM3: 2020. planirano | AN3: 2020. procijenjeno | AO3: 2021. planirano | AP3: 2019. planirano | AQ3: 2019. ostvareno | AR3: 2020. planirano | AS3: 2020. procijenjeno | AT3: 2021. planirano | AU3: 2019. planirano | AV3: 2019. ostvareno | AW3: 2020. planirano | AX3: 2020. procijenjeno | AY3: 2021. planirano | AZ3: 2019. planirano | BA3: 2019. ostvareno | BB3: 2020. planirano | BC3: 2020. procijenjeno | BD3: 2021. planirano | BE3: 2019. planirano | BF3: 2019. ostvareno | BG3: 2020. planirano | BH3: 2020. procijenjeno | BI3: 2021. planirano | BJ3: 2019. planirano | BK3: 2019. ostvareno | BL3: 2020. planirano | BM3: 2020. procijenjeno | BN3: 2021. planirano | BO3: 2019. planirano | BP3: 2019. ostvareno | BQ3: 2020. planirano | BR3: 2020. procijenjeno | BS3: 2021. planirano | BT3: 2019. planirano | BU3: 2019. ostvareno | BV3: 2020. planirano | BW3: 2020. procijenjeno | BX3: 2021. planirano | BY3: 2019. planirano | BZ3: 2019. ostvareno | CA3: 2020. planirano | CB3: 2020. procijenjeno | CC3: 2021. planirano | CD3: 2019. planirano | CE3: 2019. ostvareno | CF3: 2020. planirano | CG3: 2020. procijenjeno | CH3: 2021. planirano | CI3: 2019. planirano | CJ3: 2019. ostvareno | CK3: 2020. planirano | CL3: 2020. procijenjeno | CM3: 2021. planirano | CN3: 2019. planirano | CO3: 2019. ostvareno | CP3: 2020. planirano | CQ3: 2020. procijenjeno | CR3: 2021. planirano | CS3: 2019. planirano | CT3: 2019. ostvareno | CU3: 2020. planirano | CV3: 2020. procijenjeno | CW3: 2021. planirano | CX3: 2019. planirano | CY3: 2019. ostvareno | CZ3: 2020. planirano | DA3: 2020. procijenjeno | DB3: 2021. planirano | DC3: 2019. planirano | DD3: 2019. ostvareno | DE3: 2020. planirano | DF3: 2020. procijenjeno | DG3: 2021. planirano | DH3: 2019. planirano | DI3: 2019. ostvareno | DJ3: 2020. planirano | DK3: 2020. procijenjeno | DL3: 2021. planirano | DM3: 2019. planirano | DN3: 2019. ostvareno | DO3: 2020. planirano | DP3: 2020. procijenjeno | DQ3: 2021. planirano | DR3: 2019. planirano | DS3: 2019. ostvareno | DT3: 2020. planirano | DU3: 2020. procijenjeno | DV3: 2021. planirano | DW3: 2019. planirano | DX3: 2019. ostvareno | DY3: 2020. planirano | DZ3: 2020. procijenjeno | EA3: 2021. planirano | EB3: 2019. planirano | EC3: 2019. ostvareno | ED3: 2020. planirano | EE3: 2020. procijenjeno | EF3: 2021. planirano | EG3: 2019. planirano | EH3: 2019. ostvareno | EI3: 2020. planirano | EJ3: 2020. procijenjeno | EK3: 2021. planirano | EL3: 2019. planirano | EM3: 2019. ostvareno | EN3: 2020. planirano | EO3: 2020. procijenjeno | EP3: 2021. planirano | EQ3: 2019. planirano | ER3: 2019. ostvareno | ES3: 2020. planirano | ET3: 2020. procijenjeno | EU3: 2021. planirano | EV3: 2019. planirano | EW3: 2019. ostvareno | EX3: 2020. planirano | EY3: 2020. procijenjeno | EZ3: 2021. planirano | FA3: 2019. planirano | FB3: 2019. ostvareno | FC3: 2020. planirano | FD3: 2020. procijenjeno | FE3: 2021. planirano | FF3: 2019. planirano | FG3: 2019. ostvareno | FH3: 2020. planirano | FI3: 2020. procijenjeno | FJ3: 2021. planirano | FK3: 2019. planirano | FL3: 2019. ostvareno | FM3: 2020. planirano | FN3: 2020. procijenjeno | FO3: 2021. planirano | FP3: 2019. planirano | FQ3: 2019. ostvareno | FR3: 2020. planirano | FS3: 2020. procijenjeno | FT3: 2021. planirano | FU3: 2019. planirano | FV3: 2019. ostvareno | FW3: 2020. planirano | FX3: 2020. procijenjeno | FY3: 2021. planirano
A4: =Podloga!B2 -> Zračna luka Osijek d.o.o. | B4: =Sazetak!C23 -> 2132.276 | C4: =Sazetak!D23 -> 2963.93357 | D4: =Sazetak!E23 -> 3446.434 | E4: =Sazetak!F23 -> 3855.953 | F4: =Sazetak!G23 -> 3992.201 | G4: =Sazetak!C24 -> 2127.03 | H4: =Sazetak!D24 -> 3683.272 | I4: =Sazetak!E24 -> 3441.414 | J4: =Sazetak!F24 -> 3837.155 | K4: =Sazetak!G24 -> 3952.554 | L4: =Sazetak!C27 -> 5.246 | M4: =Sazetak!D27 -> -719.33843 | N4: =Sazetak!E27 -> 5.02 | O4: =Sazetak!F27 -> 18.798 | P4: =Sazetak!G27 -> 39.647 | Q4: =Sazetak!C39 -> 0 | R4: =Sazetak!D39 -> 0 | S4: =Sazetak!E39 -> 0 | T4: =Sazetak!F39 -> 0 | U4: =Sazetak!G39 -> 0 | V4: =Sazetak!C7 -> 18497.026 | W4: =Sazetak!D7 -> 13185.73 | X4: =Sazetak!E7 -> 19752.51 | Y4: =Sazetak!F7 -> 13933.584 | Z4: =Sazetak!G7 -> 26432.344 | AA4: =Sazetak!C8 -> 932.3456 | AB4: =Sazetak!D8 -> 309.541 | AC4: =Sazetak!E8 -> 657.328 | AD4: =Sazetak!F8 -> 600.079 | AE4: =Sazetak!G8 -> 510.067 | AF4: =Sazetak!C9 -> 0 | AG4: =Sazetak!D9 -> 104.845 | AH4: =Sazetak!E9 -> 0 | AI4: =Sazetak!F9 -> 122.146 | AJ4: =Sazetak!G9 -> 106.75 | AK4: =Sazetak!C10 -> 19429.3716 | AL4: =Sazetak!D10 -> 13600.116 | AM4: =Sazetak!E10 -> 20409.838 | AN4: =Sazetak!F10 -> 14655.809 | AO4: =Sazetak!G10 -> 27049.161 | AP4: =Sazetak!C11 -> 1495.613 | AQ4: =Sazetak!D11 -> 812.816 | AR4: =Sazetak!E11 -> 909.625 | AS4: =Sazetak!F11 -> 831.614 | AT4: =Sazetak!G11 -> 871.261 | AU4: =Sazetak!C12 -> 39.44 | AV4: =Sazetak!D12 -> 22.103 | AW4: =Sazetak!E12 -> 0 | AX4: =Sazetak!F12 -> 22.103 | AY4: =Sazetak!G12 -> 0 | AZ4: =Sazetak!C13 -> 2964.391 | BA4: =Sazetak!D13 -> 2959.654 | BB4: =Sazetak!E13 -> 2799.417 | BC4: =Sazetak!F13 -> 2959.653 | BD4: =Sazetak!G13 -> 2743.27 | BE4: =Sazetak!C14 -> 14929.929 | BF4: =Sazetak!D14 -> 417.851 | BG4: =Sazetak!E14 -> 16700.799 | BH4: =Sazetak!F14 -> 426.342 | BI4: =Sazetak!G14 -> 767.357 | BJ4: =Sazetak!C15 -> 0 | BK4: =Sazetak!D15 -> 9387.697 | BL4: =Sazetak!E15 -> 0 | BM4: =Sazetak!F15 -> 10416.1 | BN4: =Sazetak!G15 -> 22667.272 | BO4: =Sazetak!C16 -> 19429.373 | BP4: =Sazetak!D16 -> 13600.121 | BQ4: =Sazetak!E16 -> 20409.841 | BR4: =Sazetak!F16 -> 14655.812 | BS4: =Sazetak!G16 -> 27049.16 | BT4: =Sazetak!C19 -> 2131.827 | BU4: =Sazetak!D19 -> 2963.898 | BV4: =Sazetak!E19 -> 3445.894 | BW4: =Sazetak!F19 -> 3855.891 | BX4: =Sazetak!G19 -> 3991.601 | BY4: =Sazetak!C20 -> 2065.712 | BZ4: =Sazetak!D20 -> 3590.895 | CA4: =Sazetak!E20 -> 3378.614 | CB4: =Sazetak!F20 -> 3774.355 | CC4: =Sazetak!G20 -> 3862.156 | CD4: =Sazetak!C21 -> 0.449 | CE4: =Sazetak!D21 -> 0.03557 | CF4: =Sazetak!E21 -> 0.54 | CG4: =Sazetak!F21 -> 0.062 | CH4: =Sazetak!G21 -> 0.6 | CI4: =Sazetak!C22 -> 61.318 | CJ4: =Sazetak!D22 -> 92.377 | CK4: =Sazetak!E22 -> 62.8 | CL4: =Sazetak!F22 -> 62.8 | CM4: =Sazetak!G22 -> 90.398 | CN4: =Sazetak!C23 -> 2132.276 | CO4: =Sazetak!D23 -> 2963.93357 | CP4: =Sazetak!E23 -> 3446.434 | CQ4: =Sazetak!F23 -> 3855.953 | CR4: =Sazetak!G23 -> 3992.201 | CS4: =Sazetak!C24 -> 2127.03 | CT4: =Sazetak!D24 -> 3683.272 | CU4: =Sazetak!E24 -> 3441.414 | CV4: =Sazetak!F24 -> 3837.155 | CW4: =Sazetak!G24 -> 3952.554 | CX4: =Sazetak!C25 -> 5.246 | CY4: =Sazetak!D25 -> -719.33843 | CZ4: =Sazetak!E25 -> 5.02 | DA4: =Sazetak!F25 -> 18.798 | DB4: =Sazetak!G25 -> 39.647 | DC4: =Sazetak!C26 -> 0 | DD4: =Sazetak!D26 -> 0 | DE4: =Sazetak!E26 -> 0 | DF4: =Sazetak!F26 -> 0 | DG4: =Sazetak!G26 -> 0 | DH4: =Sazetak!C27 -> 5.246 | DI4: =Sazetak!D27 -> -719.33843 | DJ4: =Sazetak!E27 -> 5.02 | DK4: =Sazetak!F27 -> 18.798 | DL4: =Sazetak!G27 -> 39.647 | DM4: =Sazetak!C30 -> 355.451 | DN4: =Sazetak!D30 -> -260.076 | DO4: =Sazetak!E30 -> 492.28 | DP4: =Sazetak!F30 -> 451.649 | DQ4: =Sazetak!G30 -> 501.445 | DR4: =Sazetak!C31 -> 0.1667353871 | DS4: =Sazetak!D31 -> -0.08774795894 | DT4: =Sazetak!E31 -> 0.142859879 | DU4: =Sazetak!F31 -> 0.1171322011 | DV4: =Sazetak!G31 -> 0.1256250312 | DW4: =Sazetak!C32 -> 0.002460281877 | DX4: =Sazetak!D32 -> -0.2426972174 | DY4: =Sazetak!E32 -> 0.001456578017 | DZ4: =Sazetak!F32 -> 0.004875059421 | EA4: =Sazetak!G32 -> 0.009931113188 | EB4: =Sazetak!C33 -> 0.0002700035857 | EC4: =Sazetak!D33 -> -0.05289208048 | ED4: =Sazetak!E33 -> 0.000245959816 | EE4: =Sazetak!F33 -> 0.001282631344 | EF4: =Sazetak!G33 -> 0.001465738623 | EG4: =Sazetak!C34 -> 0.00350759187 | EH4: =Sazetak!D34 -> -0.884995411 | EI4: =Sazetak!E34 -> 0.00551875773 | EJ4: =Sazetak!F34 -> 0.02260423706 | EK4: =Sazetak!G34 -> 0.04550530782 | EL4: =Sazetak!C35 -> 0.06244809336 | EM4: =Sazetak!D35 -> 0.7407927706 | EN4: =Sazetak!E35 -> 0.03935907498 | EO4: =Sazetak!F35 -> 1.40750618 | EP4: =Sazetak!G35 -> 0.664706258 | EQ4: =Sazetak!C36 -> 4.147311527 | ER4: =Sazetak!D36 -> 3.495251122 | ES4: =Sazetak!E36 -> 5.325501841 | ET4: =Sazetak!F36 -> 3.675178773 | EU4: =Sazetak!G36 -> 7.312800471 | EV4: =Sazetak!C37 -> 0.9230231615 | EW4: =Sazetak!D37 -> 0.9402349951 | EX4: =Sazetak!E37 -> 0.9554321793 | EY4: =Sazetak!F37 -> 0.9432572436 | EZ4: =Sazetak!G37 -> 0.9677896849 | FA4: =Sazetak!C38 -> 0 | FB4: =Sazetak!D38 -> 0 | FC4: =Sazetak!E38 -> 0 | FD4: =Sazetak!F38 -> 0 | FE4: =Sazetak!G38 -> 0 | FF4: =Sazetak!C39 -> 0 | FG4: =Sazetak!D39 -> 0 | FH4: =Sazetak!E39 -> 0 | FI4: =Sazetak!F39 -> 0 | FJ4: =Sazetak!G39 -> 0 | FK4: =Sazetak!C42 -> 289.336 | FL4: =Sazetak!D42 -> 366.921 | FM4: =Sazetak!E42 -> 425 | FN4: =Sazetak!F42 -> 370.113 | FO4: =Sazetak!G42 -> 372 | FP4: =Sazetak!FF39 -> 0 | FQ4: =Sazetak!FG39 -> 0 | FR4: =Sazetak!FH39 -> 0 | FS4: =Sazetak!FI39 -> 0 | FT4: =Sazetak!FJ39 -> 0 | FU4: =Sazetak!FK39 -> 0 | FV4: =Sazetak!FL39 -> 0 | FW4: =Sazetak!FM39 -> 0 | FX4: =Sazetak!FN39 -> 0 | FY4: =Sazetak!FO39 -> 0
